Body name,Directorate,Service Area Categorisation,Supplier Name,Payment Date,Card Transaction,Net Amount,Purpose of Spend,Procurement Classification: ProClass Label
Solihull MBC,Children's Services & Skills,Children & Education Services,1GC Chambers,03/08/2018,,1100.00,Other Fees,Not Yet Classified
Solihull MBC,Children's Services & Skills,Children & Education Services,1GC Chambers,03/08/2018,,-100.00,Other Fees,Not Yet Classified
Solihull MBC,Children's Services - DSG Central.,Children & Education Services,1st Planner Ltd,14/08/2018,,4000.00,Professional Fees,Not Yet Classified
Solihull MBC,Children's Services & Skills,Children & Education Services,43 Templerow Chambers,03/08/2018,,750.00,Other Fees,Not Yet Classified
Solihull MBC,Children's Services & Skills,Children & Education Services,A S C Birch,08/08/2018,,1083.95,Transport-Contract Hire,360000 - Public Transport
Solihull MBC,Adult Social Care,Adult Social Care,A S C Birch,02/08/2018,,136.00,Clients Transport Costs,360000 - Public Transport
Solihull MBC,Adult Social Care,Adult Social Care,A S C Birch,02/08/2018,,648.00,Clients Transport Costs,360000 - Public Transport
Solihull MBC,Children's Services & Skills,Children & Education Services,A1 Support Limited,20/08/2018,,527.31,Clients Expenses,Not Yet Classified
Solihull MBC,Children's Services & Skills,Children & Education Services,A1 Support Limited,20/08/2018,,2760.00,External Fostering,Not Yet Classified
Solihull MBC,Children's Services & Skills,Children & Education Services,A1 Support Limited,28/08/2018,,2760.00,Supported Lodgings,Not Yet Classified
Solihull MBC,Children's Services & Skills,Children & Education Services,A1 Support Limited,28/08/2018,,2760.00,Supported Lodgings,Not Yet Classified
Solihull MBC,Children's Services & Skills,Children & Education Services,A1 Support Limited,28/08/2018,,2760.00,Supported Lodgings,Not Yet Classified
Solihull MBC,Children's Services & Skills,Children & Education Services,A1 Support Limited,28/08/2018,,2760.00,Supported Lodgings,Not Yet Classified
Solihull MBC,Children's Services & Skills,Children & Education Services,AA Membership R T,24/08/2018,Card Transaction,278.45,Purchase Card Statement Summary,161000 - Domestic Goods - Commercial
Solihull MBC,Children's Services - DSG Central.,Children & Education Services,Abable Ltd,03/08/2018,,1983.75,Professional Fees,Not Yet Classified
Solihull MBC,Children's Services & Skills,Children & Education Services,Abacus Fostering Ltd,28/08/2018,,2978.12,External Fostering,Not Yet Classified
Solihull MBC,Adult Social Care,Adult Social Care,Absolute Care Homes,23/08/2018,,3400.00,ASC - Nursing Care Permanent,Not Yet Classified
Solihull MBC,Adult Social Care,Adult Social Care,Absolute Care Homes,22/08/2018,,2767.36,ASC - Nursing Care Permanent,Not Yet Classified
Solihull MBC,Children's Services & Skills,Children & Education Services,Absolute Interpreting & Translation Ltd,17/08/2018,,585.00,Professional Fees,261100 - Human Resources - Interpretation & Translation
Solihull MBC,Children's Services & Skills,Children & Education Services,Absolute Interpreting & Translation Ltd,06/08/2018,,330.00,Professional Fees,261100 - Human Resources - Interpretation & Translation
Solihull MBC,Adult Social Care,Adult Social Care,Accomplish Group Lifestyles Ltd,31/08/2018,,9100.00,ASC - Residential Care Permanent,Not Yet Classified
Solihull MBC,Adult Social Care,Adult Social Care,Accomplish Group Lifestyles Ltd,31/08/2018,,5296.36,ASC - Residential Care Permanent,Not Yet Classified
Solihull MBC,Adult Social Care,Adult Social Care,Accora,08/08/2018,,1241.00,Furniture & Equipment,Not Yet Classified
Solihull MBC,Adult Social Care,Adult Social Care,Accora,15/08/2018,,980.00,Furniture & Equipment,Not Yet Classified
Solihull MBC,Adult Social Care,Adult Social Care,Accord Housing Association,13/08/2018,,430.84,Block Contracts,321000 - Social Community Care Supplies & Services - Adult
Solihull MBC,Adult Social Care,Adult Social Care,Accord Housing Association,03/08/2018,,29110.86,ASC - Extra Care,321000 - Social Community Care Supplies & Services - Adult
Solihull MBC,Adult Social Care,Adult Social Care,Accord Housing Association,30/08/2018,,29065.61,ASC - Extra Care,321000 - Social Community Care Supplies & Services - Adult
Solihull MBC,Adult Social Care,Adult Social Care,Accord Housing Asssociation,07/08/2018,,2284.24,ASC - Residential Care Permanent,321000 - Social Community Care Supplies & Services - Adult
Solihull MBC,Adult Social Care,Adult Social Care,Accord Housing Asssociation,07/08/2018,,2284.24,ASC - Residential Care Respite,321000 - Social Community Care Supplies & Services - Adult
Solihull MBC,Adult Social Care,Adult Social Care,Accord Housing Asssociation,07/08/2018,,1142.12,ASC - Residential Care Permanent,321000 - Social Community Care Supplies & Services - Adult
Solihull MBC,Adult Social Care,Adult Social Care,Accord Housing Asssociation,07/08/2018,,607.09,ASC - Residential Care Respite,321000 - Social Community Care Supplies & Services - Adult
Solihull MBC,Adult Social Care,Adult Social Care,Accord Housing Asssociation,07/08/2018,,2284.24,ASC - Residential Care Permanent,321000 - Social Community Care Supplies & Services - Adult
Solihull MBC,Adult Social Care,Adult Social Care,Accord Housing Asssociation,07/08/2018,,2284.24,ASC - Residential Care Permanent,321000 - Social Community Care Supplies & Services - Adult
Solihull MBC,Adult Social Care,Adult Social Care,Accord Housing Asssociation,07/08/2018,,2284.24,ASC - Residential Care Permanent,321000 - Social Community Care Supplies & Services - Adult
Solihull MBC,Adult Social Care,Adult Social Care,Accord Housing Asssociation,07/08/2018,,2284.24,ASC - Residential Care Permanent,321000 - Social Community Care Supplies & Services - Adult
Solihull MBC,Adult Social Care,Adult Social Care,Accord Housing Asssociation,07/08/2018,,815.80,ASC - Residential Care Permanent,321000 - Social Community Care Supplies & Services - Adult
Solihull MBC,Adult Social Care,Adult Social Care,Accord Housing Asssociation,07/08/2018,,520.36,ASC - Residential Care Respite,321000 - Social Community Care Supplies & Services - Adult
Solihull MBC,Adult Social Care,Adult Social Care,Accord Housing Asssociation,07/08/2018,,1305.28,ASC - Residential Care Permanent,321000 - Social Community Care Supplies & Services - Adult
Solihull MBC,Adult Social Care,Adult Social Care,Accord Housing Asssociation,07/08/2018,,1977.92,ASC - Residential Care Permanent,321000 - Social Community Care Supplies & Services - Adult
Solihull MBC,Adult Social Care,Adult Social Care,Accord Housing Asssociation,07/08/2018,,2284.24,ASC - Residential Care Permanent,321000 - Social Community Care Supplies & Services - Adult
Solihull MBC,Adult Social Care,Adult Social Care,Accord Housing Asssociation,07/08/2018,,2284.24,ASC - Residential Care Permanent,321000 - Social Community Care Supplies & Services - Adult
Solihull MBC,Adult Social Care,Adult Social Care,Accord Housing Asssociation,07/08/2018,,2284.24,ASC - Residential Care Permanent,321000 - Social Community Care Supplies & Services - Adult
Solihull MBC,Adult Social Care,Adult Social Care,Accord Housing Asssociation,07/08/2018,,1977.92,ASC - Residential Care Permanent,321000 - Social Community Care Supplies & Services - Adult
Solihull MBC,Adult Social Care,Adult Social Care,Accord Housing Asssociation,07/08/2018,,2039.50,ASC - Residential Care Permanent,321000 - Social Community Care Supplies & Services - Adult
Solihull MBC,Adult Social Care,Adult Social Care,Accord Housing Asssociation,07/08/2018,,2284.24,ASC - Residential Care Permanent,321000 - Social Community Care Supplies & Services - Adult
Solihull MBC,Adult Social Care,Adult Social Care,Accord Housing Asssociation,07/08/2018,,2284.24,ASC - Residential Care Permanent,321000 - Social Community Care Supplies & Services - Adult
Solihull MBC,Adult Social Care,Adult Social Care,Accord Housing Asssociation,07/08/2018,,2284.24,ASC - Residential Care Permanent,321000 - Social Community Care Supplies & Services - Adult
Solihull MBC,Adult Social Care,Adult Social Care,Accord Housing Asssociation,07/08/2018,,2284.24,ASC - Residential Care Permanent,321000 - Social Community Care Supplies & Services - Adult
Solihull MBC,Adult Social Care,Adult Social Care,Accord Housing Asssociation,07/08/2018,,2284.24,ASC - Residential Care Permanent,321000 - Social Community Care Supplies & Services - Adult
Solihull MBC,Adult Social Care,Adult Social Care,Accord Housing Asssociation,10/08/2018,,6689.56,ASC - Residential Care Permanent,321000 - Social Community Care Supplies & Services - Adult
Solihull MBC,Adult Social Care,Adult Social Care,Accord Housing Asssociation,10/08/2018,,9300.12,ASC - Residential Care Permanent,321000 - Social Community Care Supplies & Services - Adult
Solihull MBC,Adult Social Care,Adult Social Care,Accord Housing Asssociation,10/08/2018,,6526.40,ASC - Residential Care Permanent,321000 - Social Community Care Supplies & Services - Adult
Solihull MBC,Adult Social Care,Adult Social Care,Accord Housing Asssociation,10/08/2018,,7505.36,ASC - Residential Care Permanent,321000 - Social Community Care Supplies & Services - Adult
Solihull MBC,Adult Social Care,Adult Social Care,Accord Housing Asssociation,07/08/2018,,2284.24,ASC - Residential Care Permanent,321000 - Social Community Care Supplies & Services - Adult
Solihull MBC,Adult Social Care,Adult Social Care,Accord Housing Asssociation,07/08/2018,,2284.24,ASC - Residential Care Permanent,321000 - Social Community Care Supplies & Services - Adult
Solihull MBC,Adult Social Care,Adult Social Care,Accord Housing Asssociation,07/08/2018,,2284.24,ASC - Residential Care Permanent,321000 - Social Community Care Supplies & Services - Adult
Solihull MBC,Adult Social Care,Adult Social Care,Accord Housing Asssociation,07/08/2018,,2284.24,ASC - Residential Care Permanent,321000 - Social Community Care Supplies & Services - Adult
Solihull MBC,Adult Social Care,Adult Social Care,Accord Housing Asssociation,07/08/2018,,2284.24,ASC - Residential Care Permanent,321000 - Social Community Care Supplies & Services - Adult
Solihull MBC,Adult Social Care,Adult Social Care,Accord Housing Asssociation,07/08/2018,,607.09,ASC - Residential Care Respite,321000 - Social Community Care Supplies & Services - Adult
Solihull MBC,Adult Social Care,Adult Social Care,Accord Housing Asssociation,07/08/2018,,2284.24,ASC - Residential Care Permanent,321000 - Social Community Care Supplies & Services - Adult
Solihull MBC,Adult Social Care,Adult Social Care,Accord Housing Asssociation,07/08/2018,,2284.24,ASC - Residential Care Permanent,321000 - Social Community Care Supplies & Services - Adult
Solihull MBC,Adult Social Care,Adult Social Care,Accord Housing Asssociation,07/08/2018,,2284.24,ASC - Residential Care Permanent,321000 - Social Community Care Supplies & Services - Adult
Solihull MBC,Adult Social Care,Adult Social Care,Accord Housing Asssociation,07/08/2018,,2284.24,ASC - Residential Care Permanent,321000 - Social Community Care Supplies & Services - Adult
Solihull MBC,Adult Social Care,Adult Social Care,Accord Housing Asssociation,07/08/2018,,2284.24,ASC - Residential Care Permanent,321000 - Social Community Care Supplies & Services - Adult
Solihull MBC,Adult Social Care,Adult Social Care,Accord Housing Asssociation,07/08/2018,,2284.24,ASC - Residential Care Permanent,321000 - Social Community Care Supplies & Services - Adult
Solihull MBC,Adult Social Care,Adult Social Care,Accord Housing Asssociation,07/08/2018,,2284.24,ASC - Residential Care Permanent,321000 - Social Community Care Supplies & Services - Adult
Solihull MBC,Adult Social Care,Adult Social Care,Accord Housing Asssociation,07/08/2018,,2284.24,ASC - Residential Care Permanent,321000 - Social Community Care Supplies & Services - Adult
Solihull MBC,Adult Social Care,Adult Social Care,Accord Housing Asssociation,07/08/2018,,2284.24,ASC - Residential Care Permanent,321000 - Social Community Care Supplies & Services - Adult
Solihull MBC,Adult Social Care,Adult Social Care,Accord Housing Asssociation,08/08/2018,,727.98,ASC - Domiciliary Care,321000 - Social Community Care Supplies & Services - Adult
Solihull MBC,Adult Social Care,Adult Social Care,Accord Housing Asssociation,08/08/2018,,1853.04,ASC - Domiciliary Care,321000 - Social Community Care Supplies & Services - Adult
Solihull MBC,Adult Social Care,Adult Social Care,Accord Housing Asssociation,07/08/2018,,2284.24,ASC - Residential Care Permanent,321000 - Social Community Care Supplies & Services - Adult
Solihull MBC,Adult Social Care,Adult Social Care,Accord Housing Asssociation,07/08/2018,,2284.24,ASC - Residential Care Permanent,321000 - Social Community Care Supplies & Services - Adult
Solihull MBC,Adult Social Care,Adult Social Care,Accord Housing Asssociation,07/08/2018,,2284.24,ASC - Residential Care Permanent,321000 - Social Community Care Supplies & Services - Adult
Solihull MBC,Adult Social Care,Adult Social Care,Accord Housing Asssociation,07/08/2018,,2284.24,ASC - Residential Care Permanent,321000 - Social Community Care Supplies & Services - Adult
Solihull MBC,Adult Social Care,Adult Social Care,Accord Housing Asssociation,07/08/2018,,2284.24,ASC - Residential Care Permanent,321000 - Social Community Care Supplies & Services - Adult
Solihull MBC,Adult Social Care,Adult Social Care,Accord Housing Asssociation,07/08/2018,,2284.24,ASC - Residential Care Permanent,321000 - Social Community Care Supplies & Services - Adult
Solihull MBC,Adult Social Care,Adult Social Care,Accord Housing Asssociation,07/08/2018,,2284.24,ASC - Residential Care Permanent,321000 - Social Community Care Supplies & Services - Adult
Solihull MBC,Children's Services - DSG Central.,Children & Education Services,Active Angels,09/08/2018,,468.00,Grant & Subscription (SCITT),321100 - Social Community Care Supplies & Services - Children
Solihull MBC,Resources,Central Services to the Public,Active Visual Supplies Ltd,17/08/2018,,1705.00,Furniture & Equipment,171011 - Education - School Services
Solihull MBC,Managed Growth and Communities,Environmental and Regulatory Services,Actso Ltd,10/08/2018,,300.00,General Office Expenses,Not Yet Classified
Solihull MBC,Resources,Central Services to the Public,Adam Continuity Ltd,28/08/2018,,20203.00,IT Equipment & Software,Not Yet Classified
Solihull MBC,Resources,Central Services to the Public,ADT Fire & Security PLC,09/08/2018,,1305.22,IT Equipment & Software,192200 - Facilities & Management Services - Security
Solihull MBC,Resources,Central Services to the Public,ADT Fire & Security PLC,09/08/2018,,494.71,IT Equipment & Software,192200 - Facilities & Management Services - Security
Solihull MBC,Resources - Non Monitored,Central Services to the Public,Advance Credit Union,02/08/2018,,270.00,NBCC Savings,Not Yet Classified
Solihull MBC,Adult Social Care,Adult Social Care,Advanced Caring Ltd,29/08/2018,,6188.28,ASC - Residential Care Permanent,Not Yet Classified
Solihull MBC,Adult Social Care,Adult Social Care,Aidapt Bathrooms Ltd,02/08/2018,,895.20,Furniture & Equipment,321000 - Social Community Care Supplies & Services - Adult
Solihull MBC,Adult Social Care,Adult Social Care,Aidapt Bathrooms Ltd,08/08/2018,,449.40,Furniture & Equipment,321000 - Social Community Care Supplies & Services - Adult
Solihull MBC,Adult Social Care,Adult Social Care,Aidapt Bathrooms Ltd,10/08/2018,,447.60,Furniture & Equipment,321000 - Social Community Care Supplies & Services - Adult
Solihull MBC,Adult Social Care,Adult Social Care,Aidapt Bathrooms Ltd,20/08/2018,,239.40,Furniture & Equipment,321000 - Social Community Care Supplies & Services - Adult
Solihull MBC,Adult Social Care,Adult Social Care,Aidapt Bathrooms Ltd,20/08/2018,,179.00,Furniture & Equipment,321000 - Social Community Care Supplies & Services - Adult
Solihull MBC,Adult Social Care,Adult Social Care,Aidapt Bathrooms Ltd,20/08/2018,,449.40,Furniture & Equipment,321000 - Social Community Care Supplies & Services - Adult
Solihull MBC,Adult Social Care,Adult Social Care,Akari Care Ltd,20/08/2018,,1977.92,ASC - Residential Care Permanent,Not Yet Classified
Solihull MBC,Adult Social Care,Adult Social Care,Akari Care Ltd,20/08/2018,,1977.92,ASC - Residential Care Permanent,Not Yet Classified
Solihull MBC,Adult Social Care,Adult Social Care,Akari Care Ltd,20/08/2018,,1903.84,ASC - Residential Care Permanent,Not Yet Classified
Solihull MBC,Adult Social Care,Adult Social Care,Akari Care Ltd,20/08/2018,,1903.84,ASC - Residential Care Permanent,Not Yet Classified
Solihull MBC,Adult Social Care,Adult Social Care,Akari Care Ltd,20/08/2018,,2476.88,ASC - Nursing Care Permanent,Not Yet Classified
Solihull MBC,Adult Social Care,Adult Social Care,Akari Care Ltd,20/08/2018,,2299.96,ASC - Nursing Care Permanent,Not Yet Classified
Solihull MBC,Adult Social Care,Adult Social Care,Akari Care Ltd,20/08/2018,,2039.50,ASC - Residential Care Permanent,Not Yet Classified
Solihull MBC,Adult Social Care,Adult Social Care,Akari Care Ltd,20/08/2018,,404.65,ASC - Nursing Care Permanent,Not Yet Classified
Solihull MBC,Adult Social Care,Adult Social Care,Akari Care Ltd,20/08/2018,,489.48,ASC - Residential Care Permanent,Not Yet Classified
Solihull MBC,Adult Social Care,Adult Social Care,Akari Care Ltd,20/08/2018,,2284.24,ASC - Residential Care Permanent,Not Yet Classified
Solihull MBC,Children's Services & Skills,Children & Education Services,Alderbrook School,23/08/2018,,111754.43,Contractors,171011 - Education - School Services
Solihull MBC,Adult Social Care,Adult Social Care,Alexandra House - SJMT,07/08/2018,,2161.04,ASC - Residential Care Permanent,Not Yet Classified
Solihull MBC,Adult Social Care,Adult Social Care,Alexandra House - SJMT,31/08/2018,,2161.04,ASC - Residential Care Permanent,Not Yet Classified
Solihull MBC,Adult Social Care,Adult Social Care,Alexandra House - SJMT,07/08/2018,,1813.28,ASC - Residential Care Permanent,Not Yet Classified
Solihull MBC,Adult Social Care,Adult Social Care,Alexandra House - SJMT,31/08/2018,,1813.28,ASC - Residential Care Permanent,Not Yet Classified
Solihull MBC,Adult Social Care,Adult Social Care,Alexandra House - SJMT,07/08/2018,,2175.60,ASC - Residential Care Permanent,Not Yet Classified
Solihull MBC,Adult Social Care,Adult Social Care,Alexandra House - SJMT,31/08/2018,,2175.60,ASC - Residential Care Permanent,Not Yet Classified
Solihull MBC,Adult Social Care,Adult Social Care,Alexandra House - SJMT,07/08/2018,,2284.24,ASC - Residential Care Permanent,Not Yet Classified
Solihull MBC,Adult Social Care,Adult Social Care,Alexandra House - SJMT,31/08/2018,,2284.24,ASC - Residential Care Permanent,Not Yet Classified
Solihull MBC,Adult Social Care,Adult Social Care,Alexandra House - SJMT,07/08/2018,,2161.04,ASC - Residential Care Permanent,Not Yet Classified
Solihull MBC,Adult Social Care,Adult Social Care,Alexandra House - SJMT,31/08/2018,,2161.04,ASC - Residential Care Permanent,Not Yet Classified
Solihull MBC,Adult Social Care,Adult Social Care,Alexandra House - SJMT,07/08/2018,,2284.24,ASC - Residential Care Permanent,Not Yet Classified
Solihull MBC,Adult Social Care,Adult Social Care,Alexandra House - SJMT,31/08/2018,,2284.24,ASC - Residential Care Permanent,Not Yet Classified
Solihull MBC,Adult Social Care,Adult Social Care,Alexandra House - SJMT,07/08/2018,,2039.50,ASC - Residential Care Permanent,Not Yet Classified
Solihull MBC,Adult Social Care,Adult Social Care,Alexandra House - SJMT,07/08/2018,,2506.28,ASC - Residential Care Permanent,Not Yet Classified
Solihull MBC,Adult Social Care,Adult Social Care,Alexandra House - SJMT,31/08/2018,,2506.28,ASC - Residential Care Permanent,Not Yet Classified
Solihull MBC,Adult Social Care,Adult Social Care,Alexandra House - SJMT,07/08/2018,,2199.96,ASC - Residential Care Permanent,Not Yet Classified
Solihull MBC,Adult Social Care,Adult Social Care,Alexandra House - SJMT,31/08/2018,,2199.96,ASC - Residential Care Permanent,Not Yet Classified
Solihull MBC,Adult Social Care,Adult Social Care,Alexandra House - SJMT,07/08/2018,,2284.24,ASC - Residential Care Permanent,Not Yet Classified
Solihull MBC,Adult Social Care,Adult Social Care,Alexandra House - SJMT,31/08/2018,,2284.24,ASC - Residential Care Permanent,Not Yet Classified
Solihull MBC,Adult Social Care,Adult Social Care,Alexandra House - SJMT,07/08/2018,,2161.04,ASC - Residential Care Permanent,Not Yet Classified
Solihull MBC,Adult Social Care,Adult Social Care,Alexandra House - SJMT,31/08/2018,,2161.04,ASC - Residential Care Permanent,Not Yet Classified
Solihull MBC,Adult Social Care,Cultural & Related Services,Alexandra Workwear PLC,14/08/2018,,236.25,Clothing & Uniforms,171100 - Education - Supplies
Solihull MBC,Adult Social Care,Cultural & Related Services,Alexandra Workwear PLC,06/08/2018,,488.50,Clothing & Uniforms,171100 - Education - Supplies
Solihull MBC,Adult Social Care,Adult Social Care,Alison Thorneywork,20/08/2018,,2375.72,ASC - Residential Care Permanent,321000 - Social Community Care Supplies & Services - Adult
Solihull MBC,Adult Social Care,Adult Social Care,Alison Thorneywork,20/08/2018,,2422.88,ASC - Residential Care Permanent,321000 - Social Community Care Supplies & Services - Adult
Solihull MBC,Adult Social Care,Adult Social Care,Allambie Court Nursing Home,07/08/2018,,2892.86,ASC - Nursing Care Permanent,Not Yet Classified
Solihull MBC,Adult Social Care,Adult Social Care,Allambie Court Nursing Home,07/08/2018,,3000.00,ASC - Nursing Care Permanent,Not Yet Classified
Solihull MBC,Adult Social Care,Adult Social Care,Allambie Court Nursing Home,20/08/2018,,3000.00,ASC - Nursing Care Permanent,Not Yet Classified
Solihull MBC,Adult Social Care,Adult Social Care,Alophonsus Services Ltd,22/08/2018,,10804.88,ASC - Residential Care Permanent,321000 - Social Community Care Supplies & Services - Adult
Solihull MBC,Children's Services & Skills,Children & Education Services,Alpha Biolaboratories Ltd,20/08/2018,,649.00,Professional Fees,Not Yet Classified
Solihull MBC,Adult Social Care,Adult Social Care,Alpha Health Care Ltd,28/08/2018,,2266.04,ASC - Nursing Care Permanent,321000 - Social Community Care Supplies & Services - Adult
Solihull MBC,Adult Social Care,Adult Social Care,Alphabet GB Ltd,16/08/2018,,153.90,Transport-Contract Hire,Not Yet Classified
Solihull MBC,Adult Social Care,Adult Social Care,Alphabet GB Ltd,16/08/2018,,158.10,Transport-Contract Hire,Not Yet Classified
Solihull MBC,Adult Social Care,Adult Social Care,Alphabet GB Ltd,30/08/2018,,159.03,Transport-Contract Hire,Not Yet Classified
Solihull MBC,Adult Social Care,Adult Social Care,Alphabet GB Ltd,30/08/2018,,93.33,Transport-Contract Hire,Not Yet Classified
Solihull MBC,Adult Social Care,Adult Social Care,Alphabet GB Ltd,30/08/2018,,163.37,Transport-Contract Hire,Not Yet Classified
Solihull MBC,Adult Social Care,Adult Social Care,Alphabet GB Ltd,30/08/2018,,328.91,Transport-Contract Hire,Not Yet Classified
Solihull MBC,Resources,Central Services to the Public,Alzheimers Society,28/08/2018,,2181.72,Training,321000 - Social Community Care Supplies & Services - Adult
Solihull MBC,Resources,Central Services to the Public,Alzheimers Society,28/08/2018,,-1388.36,Training,321000 - Social Community Care Supplies & Services - Adult
Solihull MBC,Children's Services & Skills,Children & Education Services,Amazon UK Marketplace,18/07/2018,Card Transaction,266.66,Other Employee Costs,171114 - Education - Literature
Solihull MBC,Adult Social Care,Adult Social Care,Amberley Court Nursing Home,28/08/2018,,4000.00,ASC - Nursing Care Permanent,321000 - Social Community Care Supplies & Services - Adult
Solihull MBC,Children's Services & Skills,Children & Education Services,Angel Springs Ltd,16/08/2018,,592.32,Water,171100 - Education - Supplies
Solihull MBC,Adult Social Care,Adult Social Care,Angela Logan Sinclair,20/08/2018,,898.84,ASC - Shared Lives,Not Yet Classified
Solihull MBC,Adult Social Care,Adult Social Care,Angela Logan Sinclair,20/08/2018,,898.84,ASC - Shared Lives,Not Yet Classified
Solihull MBC,Adult Social Care,Adult Social Care,Angels Healthcare Ltd,22/08/2018,,278.74,ASC - Domiciliary Care,321000 - Social Community Care Supplies & Services - Adult
Solihull MBC,Adult Social Care,Adult Social Care,Angels Healthcare Ltd,22/08/2018,,405.44,ASC - Domiciliary Care,321000 - Social Community Care Supplies & Services - Adult
Solihull MBC,Adult Social Care,Adult Social Care,Angels Healthcare Ltd,22/08/2018,,781.92,ASC - Domiciliary Care,321000 - Social Community Care Supplies & Services - Adult
Solihull MBC,Adult Social Care,Adult Social Care,Angels Healthcare Ltd,22/08/2018,,298.28,ASC - Domiciliary Care,321000 - Social Community Care Supplies & Services - Adult
Solihull MBC,Adult Social Care,Adult Social Care,Angels Healthcare Ltd,22/08/2018,,608.16,ASC - Domiciliary Care,321000 - Social Community Care Supplies & Services - Adult
Solihull MBC,Adult Social Care,Adult Social Care,Angels Healthcare Ltd,22/08/2018,,347.52,ASC - Domiciliary Care,321000 - Social Community Care Supplies & Services - Adult
Solihull MBC,Adult Social Care,Adult Social Care,Angels Healthcare Ltd,30/08/2018,,434.40,ASC - Domiciliary Care,321000 - Social Community Care Supplies & Services - Adult
Solihull MBC,Adult Social Care,Adult Social Care,Angels Healthcare Ltd,22/08/2018,,1621.76,ASC - Domiciliary Care,321000 - Social Community Care Supplies & Services - Adult
Solihull MBC,Adult Social Care,Adult Social Care,Angels Healthcare Ltd,22/08/2018,,1824.48,ASC - Domiciliary Care,321000 - Social Community Care Supplies & Services - Adult
Solihull MBC,Adult Social Care,Adult Social Care,Anita Stone Court,31/08/2018,,393.14,ASC - Residential Care Permanent,Not Yet Classified
Solihull MBC,Adult Social Care,Adult Social Care,Anita Stone Court,07/08/2018,,2752.00,ASC - Nursing Care Permanent,Not Yet Classified
Solihull MBC,Adult Social Care,Adult Social Care,Anita Stone Court,07/08/2018,,2892.00,ASC - Nursing Care Permanent,Not Yet Classified
Solihull MBC,Resources,Central Services to the Public,Annodata Business Communications,28/08/2018,,85792.35,General Office Expenses,Not Yet Classified
Solihull MBC,Adult Social Care,Adult Social Care,Apetito Ltd,30/08/2018,,283.83,Catering Provisions,321000 - Social Community Care Supplies & Services - Adult
Solihull MBC,Adult Social Care,Adult Social Care,Apna Ghar(1995) Ltd,07/08/2018,,280.00,ASC - Day Care,321000 - Social Community Care Supplies & Services - Adult
Solihull MBC,Adult Social Care,Adult Social Care,Apna Ghar(1995) Ltd,07/08/2018,,280.00,ASC - Day Care,321000 - Social Community Care Supplies & Services - Adult
Solihull MBC,Adult Social Care,Adult Social Care,Apna Ghar(1995) Ltd,28/08/2018,,280.00,ASC - Day Care,321000 - Social Community Care Supplies & Services - Adult
Solihull MBC,Children's Services & Skills,Children & Education Services,Apollo Home Healthcare Ltd,29/08/2018,,519.50,Clients Expenses,Not Yet Classified
Solihull MBC,Children's Services & Skills,Children & Education Services,Apollo Home Healthcare Ltd,29/08/2018,,519.50,Clients Expenses,Not Yet Classified
Solihull MBC,Children's Services & Skills,Children & Education Services,Apollo Home Healthcare Ltd,29/08/2018,,355.50,Clients Expenses,Not Yet Classified
Solihull MBC,Children's Services & Skills,Children & Education Services,Apollo Home Healthcare Ltd,29/08/2018,,550.25,Clients Expenses,Not Yet Classified
Solihull MBC,Children's Services & Skills,Children & Education Services,Approved Design Consultancy Limited,10/08/2018,,375.00,Contractors,Not Yet Classified
Solihull MBC,Managed Growth and Communities,Environmental and Regulatory Services,Arco Ltd,08/08/2018,,47.94,Clothing & Uniforms,Not Yet Classified
Solihull MBC,Managed Growth and Communities,Environmental and Regulatory Services,Arco Ltd,08/08/2018,,47.94,Clothing & Uniforms,Not Yet Classified
Solihull MBC,Managed Growth and Communities,Environmental and Regulatory Services,Arco Ltd,08/08/2018,,47.94,Clothing & Uniforms,Not Yet Classified
Solihull MBC,Managed Growth and Communities,Environmental and Regulatory Services,Arco Ltd,08/08/2018,,47.94,Clothing & Uniforms,Not Yet Classified
Solihull MBC,Managed Growth and Communities,Environmental and Regulatory Services,Arco Ltd,08/08/2018,,47.94,Clothing & Uniforms,Not Yet Classified
Solihull MBC,Managed Growth and Communities,Environmental and Regulatory Services,Arco Ltd,08/08/2018,,41.91,Clothing & Uniforms,Not Yet Classified
Solihull MBC,Managed Growth and Communities,Environmental and Regulatory Services,Arco Ltd,08/08/2018,,41.91,Clothing & Uniforms,Not Yet Classified
Solihull MBC,Managed Growth and Communities,Environmental and Regulatory Services,Arco Ltd,08/08/2018,,-41.91,Clothing & Uniforms,Not Yet Classified
Solihull MBC,Managed Growth and Communities,Environmental and Regulatory Services,Arco Ltd,08/08/2018,,-41.91,Clothing & Uniforms,Not Yet Classified
Solihull MBC,Public Health & Commissioning,Adult Social Care,Arden Medical Centre,08/08/2018,,1600.77,Other Contracted Services,Not Yet Classified
Solihull MBC,Public Health & Commissioning,Adult Social Care,Arden Medical Centre,08/08/2018,,1300.00,Other Contracted Services,Not Yet Classified
Solihull MBC,Public Health & Commissioning,Adult Social Care,Arden Medical Centre,08/08/2018,,1279.42,Other Contracted Services,Not Yet Classified
Solihull MBC,Public Health & Commissioning,Adult Social Care,Arden Medical Centre,08/08/2018,,875.00,Other Contracted Services,Not Yet Classified
Solihull MBC,Adult Social Care,Adult Social Care,Ardenlea Court,31/08/2018,,3529.04,ASC - Nursing Care Permanent,321000 - Social Community Care Supplies & Services - Adult
Solihull MBC,Resources,Cultural & Related Services,Aries Entertainment Ltd,06/08/2018,,175.00,Other Fees,290000 - Arts & Leisure Services
Solihull MBC,Resources,Cultural & Related Services,Aries Entertainment Ltd,06/08/2018,,295.00,Other Fees,290000 - Arts & Leisure Services
Solihull MBC,Resources,Cultural & Related Services,Aries Entertainment Ltd,10/08/2018,,175.00,Other Fees,290000 - Arts & Leisure Services
Solihull MBC,Resources,Cultural & Related Services,Aries Entertainment Ltd,10/08/2018,,295.00,Other Fees,290000 - Arts & Leisure Services
Solihull MBC,Resources,Cultural & Related Services,Aries Entertainment Ltd,23/08/2018,,175.00,Other Fees,290000 - Arts & Leisure Services
Solihull MBC,Resources,Cultural & Related Services,Aries Entertainment Ltd,23/08/2018,,295.00,Other Fees,290000 - Arts & Leisure Services
Solihull MBC,Resources,Cultural & Related Services,Aries Entertainment Ltd,23/08/2018,,365.00,Other Fees,290000 - Arts & Leisure Services
Solihull MBC,Resources,Cultural & Related Services,Aries Entertainment Ltd,23/08/2018,,175.00,Other Fees,290000 - Arts & Leisure Services
Solihull MBC,Resources,Cultural & Related Services,Aries Entertainment Ltd,23/08/2018,,295.00,Other Fees,290000 - Arts & Leisure Services
Solihull MBC,Resources,Cultural & Related Services,Aries Entertainment Ltd,23/08/2018,,20.00,Other Fees,290000 - Arts & Leisure Services
Solihull MBC,Resources,Cultural & Related Services,Aries Entertainment Ltd,23/08/2018,,250.00,Other Fees,290000 - Arts & Leisure Services
Solihull MBC,Adult Social Care,Adult Social Care,Arjo Ltd,30/08/2018,,5232.60,Furniture & Equipment,321000 - Social Community Care Supplies & Services - Adult
Solihull MBC,Children's Services - DSG Central.,Children & Education Services,Arrow County Supplies,06/08/2018,,148.68,Cleaning,130000 - Cleaning & Janitorial
Solihull MBC,Children's Services - DSG Central.,Children & Education Services,Arrow County Supplies,06/08/2018,,5.15,Cleaning,130000 - Cleaning & Janitorial
Solihull MBC,Children's Services - DSG Central.,Children & Education Services,Arrow County Supplies,06/08/2018,,142.30,Cleaning,130000 - Cleaning & Janitorial
Solihull MBC,Adult Social Care,Adult Social Care,Ashdale Care Homes Ltd,22/08/2018,,2880.00,ASC - Residential Care Permanent,321000 - Social Community Care Supplies & Services - Adult
Solihull MBC,Adult Social Care,Adult Social Care,Ashram Housing Association Ltd,13/08/2018,,2298.34,Block Contracts,Not Yet Classified
Solihull MBC,Resources,Central Services to the Public,Asite Solutions Ltd,21/08/2018,,12000.00,IT Equipment & Software,Not Yet Classified
Solihull MBC,Adult Social Care,Cultural & Related Services,Askews Library Services Ltd,15/08/2018,,1109.29,Materials,170000 - Education
Solihull MBC,Adult Social Care,Cultural & Related Services,Askews Library Services Ltd,15/08/2018,,3431.87,Materials,170000 - Education
Solihull MBC,Adult Social Care,Cultural & Related Services,Askews Library Services Ltd,21/08/2018,,1004.79,Materials,170000 - Education
Solihull MBC,Adult Social Care,Cultural & Related Services,Askews Library Services Ltd,30/08/2018,,3129.52,Materials,170000 - Education
Solihull MBC,Adult Social Care,Adult Social Care,Aspects Care Ltd,22/08/2018,,2523.20,ASC - Supported Living Care Costs,Not Yet Classified
Solihull MBC,Adult Social Care,Adult Social Care,Aspects Care Ltd,22/08/2018,,849.28,ASC - Supported Living Care Costs,Not Yet Classified
Solihull MBC,Adult Social Care,Adult Social Care,Aspects Care Ltd,22/08/2018,,1365.12,ASC - Home Care Support Services,Not Yet Classified
Solihull MBC,Adult Social Care,Adult Social Care,Aspects Care Ltd,22/08/2018,,2069.60,ASC - Supported Living Care Costs,Not Yet Classified
Solihull MBC,Adult Social Care,Adult Social Care,Aspects Care Ltd,22/08/2018,,1327.00,ASC - Home Care Support Services,Not Yet Classified
Solihull MBC,Adult Social Care,Adult Social Care,Aspects Care Ltd,22/08/2018,,4164.80,ASC - Supported Living Care Costs,Not Yet Classified
Solihull MBC,Adult Social Care,Adult Social Care,Aspects Care Ltd,22/08/2018,,9555.84,ASC - Domiciliary Care,Not Yet Classified
Solihull MBC,Adult Social Care,Adult Social Care,Aspects Care Ltd,22/08/2018,,663.50,ASC - Home Care Support Services,Not Yet Classified
Solihull MBC,Adult Social Care,Adult Social Care,Aspects Care Ltd,22/08/2018,,3867.84,ASC - Domiciliary Care,Not Yet Classified
Solihull MBC,Adult Social Care,Adult Social Care,Aspects Care Ltd,22/08/2018,,1804.72,ASC - Domiciliary Care,Not Yet Classified
Solihull MBC,Adult Social Care,Adult Social Care,Aspects Care Ltd,22/08/2018,,743.12,ASC - Home Care Support Services,Not Yet Classified
Solihull MBC,Adult Social Care,Adult Social Care,Aspects Care Ltd,22/08/2018,,796.20,ASC - Supported Living Care Costs,Not Yet Classified
Solihull MBC,Adult Social Care,Adult Social Care,Aspects Care Ltd,22/08/2018,,902.36,ASC - Supported Living Care Costs,Not Yet Classified
Solihull MBC,Adult Social Care,Adult Social Care,Aspects Care Ltd,22/08/2018,,849.28,ASC - Supported Living Care Costs,Not Yet Classified
Solihull MBC,Adult Social Care,Adult Social Care,Aspects Care Ltd,22/08/2018,,796.20,ASC - Domiciliary Care,Not Yet Classified
Solihull MBC,Adult Social Care,Adult Social Care,Aspects Care Ltd,22/08/2018,,1112.24,ASC - Supported Living Care Costs,Not Yet Classified
Solihull MBC,Adult Social Care,Adult Social Care,Aspects Care Ltd,22/08/2018,,1406.62,ASC - Home Care Support Services,Not Yet Classified
Solihull MBC,Adult Social Care,Adult Social Care,Aspects Care Ltd,22/08/2018,,1592.40,ASC - Supported Living Care Costs,Not Yet Classified
Solihull MBC,Adult Social Care,Adult Social Care,Aspects Care Ltd,22/08/2018,,1114.68,ASC - Supported Living Care Costs,Not Yet Classified
Solihull MBC,Adult Social Care,Adult Social Care,Aspects Care Ltd,22/08/2018,,2811.20,ASC - Supported Living Care Costs,Not Yet Classified
Solihull MBC,Adult Social Care,Adult Social Care,Aspects Care Ltd,22/08/2018,,836.00,ASC - Supported Living Care Costs,Not Yet Classified
Solihull MBC,Adult Social Care,Adult Social Care,Aspects Care Ltd,22/08/2018,,5979.20,ASC - Supported Living Care Costs,Not Yet Classified
Solihull MBC,Adult Social Care,Adult Social Care,Aspects Care Ltd,22/08/2018,,2148.80,ASC - Supported Living Care Costs,Not Yet Classified
Solihull MBC,Adult Social Care,Adult Social Care,Aspects Care Ltd,15/08/2018,,1562.16,ASC - Direct Payments,Not Yet Classified
Solihull MBC,Adult Social Care,Adult Social Care,Aspects Care Ltd,15/08/2018,,2669.20,ASC - Direct Payments,Not Yet Classified
Solihull MBC,Adult Social Care,Adult Social Care,Aspects Care Ltd,15/08/2018,,1940.80,ASC - Direct Payments,Not Yet Classified
Solihull MBC,Adult Social Care,Adult Social Care,Aspects Care Ltd,15/08/2018,,3451.12,ASC - Direct Payments,Not Yet Classified
Solihull MBC,Adult Social Care,Adult Social Care,Aspects Care Ltd,15/08/2018,,2582.00,ASC - Direct Payments,Not Yet Classified
Solihull MBC,Children's Services & Skills,Children & Education Services,Aspire Childrens Services,28/08/2018,,2086.48,Supported Lodgings,Not Yet Classified
Solihull MBC,Children's Services & Skills,Children & Education Services,Aspire Childrens Services,28/08/2018,,819.69,Supported Lodgings,Not Yet Classified
Solihull MBC,Children's Services & Skills,Children & Education Services,Aspire Childrens Services,28/08/2018,,2086.48,Supported Lodgings,Not Yet Classified
Solihull MBC,Children's Services & Skills,Children & Education Services,Aston Childrens Care,10/08/2018,,13028.40,Other Contracted Services,Not Yet Classified
Solihull MBC,Children's Services & Skills,Children & Education Services,Aston Childrens Care,02/08/2018,,15199.80,Other Contracted Services,Not Yet Classified
Solihull MBC,Managed Growth and Communities,Highways & Transport Services,Atkins,06/08/2018,,15044.94,Agency Staff,150000 - Consultancy
Solihull MBC,Managed Growth and Communities,Highways & Transport Services,Atkins,06/08/2018,,2253.86,Agency Staff,150000 - Consultancy
Solihull MBC,Managed Growth and Communities,Highways & Transport Services,Atkins,08/08/2018,,6236.56,Contractors,150000 - Consultancy
Solihull MBC,Managed Growth and Communities,Highways & Transport Services,Atkins,21/08/2018,,11561.91,Agency Staff,150000 - Consultancy
Solihull MBC,Managed Growth and Communities,Highways & Transport Services,Atkins,21/08/2018,,1988.70,Agency Staff,150000 - Consultancy
Solihull MBC,Managed Growth and Communities,Highways & Transport Services,Atkins,28/08/2018,,1929.92,Contractors,150000 - Consultancy
Solihull MBC,Managed Growth and Communities,Planning & Development Services,Atkins Ltd,03/08/2018,,4484.50,Professional Fees,150000 - Consultancy
Solihull MBC,Managed Growth and Communities,Planning & Development Services,Atkins Ltd,03/08/2018,,4484.50,Professional Fees,150000 - Consultancy
Solihull MBC,Resources,Other Housing Services,Auriga Services Ltd,09/08/2018,,983.40,Clients Expenses,Not Yet Classified
Solihull MBC,Adult Social Care,Adult Social Care,Austen Court Care Home,20/08/2018,,4040.00,ASC - Nursing Care Permanent,Not Yet Classified
Solihull MBC,Adult Social Care,Adult Social Care,Autism West Midlands,30/08/2018,,5874.24,ASC - Residential Care Permanent,321000 - Social Community Care Supplies & Services - Adult
Solihull MBC,Adult Social Care,Adult Social Care,Autism West Midlands,30/08/2018,,528.84,ASC - Home Care Support Services,321000 - Social Community Care Supplies & Services - Adult
Solihull MBC,Adult Social Care,Adult Social Care,Autism West Midlands,30/08/2018,,293.80,ASC - Home Care Support Services,321000 - Social Community Care Supplies & Services - Adult
Solihull MBC,Adult Social Care,Adult Social Care,Autism West Midlands,30/08/2018,,9816.80,ASC - Residential Care Permanent,321000 - Social Community Care Supplies & Services - Adult
Solihull MBC,Adult Social Care,Adult Social Care,Autism West Midlands,30/08/2018,,9816.80,ASC - Residential Care Permanent,321000 - Social Community Care Supplies & Services - Adult
Solihull MBC,Adult Social Care,Adult Social Care,Autism West Midlands,30/08/2018,,6337.36,ASC - Residential Care Permanent,321000 - Social Community Care Supplies & Services - Adult
Solihull MBC,Adult Social Care,Adult Social Care,Autism West Midlands,30/08/2018,,2875.32,ASC - Domiciliary Care,321000 - Social Community Care Supplies & Services - Adult
Solihull MBC,Adult Social Care,Adult Social Care,Autism West Midlands,30/08/2018,,4409.04,ASC - Residential Care Permanent,321000 - Social Community Care Supplies & Services - Adult
Solihull MBC,Adult Social Care,Adult Social Care,Auxilio Care Ltd,01/08/2018,,7568.68,ASC - Supported Living Care Costs,Not Yet Classified
Solihull MBC,Adult Social Care,Adult Social Care,Auxilio Care Ltd,31/08/2018,,7568.68,ASC - Supported Living Care Costs,Not Yet Classified
Solihull MBC,Adult Social Care,Adult Social Care,Auxilio Care Ltd,01/08/2018,,4394.08,ASC - Supported Living Care Costs,Not Yet Classified
Solihull MBC,Adult Social Care,Adult Social Care,Auxilio Care Ltd,31/08/2018,,4394.08,ASC - Supported Living Care Costs,Not Yet Classified
Solihull MBC,Adult Social Care,Adult Social Care,Auxilio Care Ltd,01/08/2018,,5202.16,ASC - Supported Living Care Costs,Not Yet Classified
Solihull MBC,Adult Social Care,Adult Social Care,Auxilio Care Ltd,31/08/2018,,5202.16,ASC - Supported Living Care Costs,Not Yet Classified
Solihull MBC,Adult Social Care,Adult Social Care,Auxilio Care Ltd,01/08/2018,,4394.08,ASC - Supported Living Care Costs,Not Yet Classified
Solihull MBC,Adult Social Care,Adult Social Care,Auxilio Care Ltd,31/08/2018,,4394.08,ASC - Supported Living Care Costs,Not Yet Classified
Solihull MBC,Adult Social Care,Adult Social Care,Auxilio Care Ltd,01/08/2018,,3239.68,ASC - Supported Living Care Costs,Not Yet Classified
Solihull MBC,Adult Social Care,Adult Social Care,Auxilio Care Ltd,31/08/2018,,3239.68,ASC - Supported Living Care Costs,Not Yet Classified
Solihull MBC,Adult Social Care,Adult Social Care,Auxilio Care Ltd,01/08/2018,,9184.84,ASC - Supported Living Care Costs,Not Yet Classified
Solihull MBC,Adult Social Care,Adult Social Care,Auxilio Care Ltd,31/08/2018,,9184.84,ASC - Supported Living Care Costs,Not Yet Classified
Solihull MBC,Adult Social Care,Adult Social Care,Auxilio Care Ltd,01/08/2018,,7568.68,ASC - Supported Living Care Costs,Not Yet Classified
Solihull MBC,Adult Social Care,Adult Social Care,Auxilio Care Ltd,31/08/2018,,7568.68,ASC - Supported Living Care Costs,Not Yet Classified
Solihull MBC,Managed Growth and Communities,Environmental and Regulatory Services,Avery Weigh-Tronix,28/08/2018,,600.00,Furniture & Equipment,Not Yet Classified
Solihull MBC,Adult Social Care,Adult Social Care,B&M Investments Ltd (Reference:Tm0318),22/08/2018,,2493.32,ASC - Nursing Care Permanent,Not Yet Classified
Solihull MBC,Adult Social Care,Cultural & Related Services,Badgemaster Ltd,20/07/2018,Card Transaction,455.45,Furniture & Equipment,161000 - Domestic Goods - Commercial
Solihull MBC,Managed Growth and Communities,Environmental and Regulatory Services,Balfour Beatty Living Places Ltd,09/08/2018,,537.40,Other Contracted Services,"391400 - Works - Construction, Repair & Maintenance"
Solihull MBC,Managed Growth and Communities,Highways & Transport Services,Balfour Beatty Living Places Ltd,09/08/2018,,1063.14,Other Contracted Services,"391400 - Works - Construction, Repair & Maintenance"
Solihull MBC,Managed Growth and Communities,Highways & Transport Services,Balfour Beatty Living Places Ltd,09/08/2018,,11806.08,Other Contracted Services,"391400 - Works - Construction, Repair & Maintenance"
Solihull MBC,Managed Growth and Communities,Highways & Transport Services,Balfour Beatty Living Places Ltd,09/08/2018,,6.20,Other Contracted Services,"391400 - Works - Construction, Repair & Maintenance"
Solihull MBC,Managed Growth and Communities,Highways & Transport Services,Balfour Beatty Living Places Ltd,09/08/2018,,6.82,Other Contracted Services,"391400 - Works - Construction, Repair & Maintenance"
Solihull MBC,Managed Growth and Communities,Highways & Transport Services,Balfour Beatty Living Places Ltd,09/08/2018,,4.65,Other Contracted Services,"391400 - Works - Construction, Repair & Maintenance"
Solihull MBC,Managed Growth and Communities,Highways & Transport Services,Balfour Beatty Living Places Ltd,09/08/2018,,4.34,Other Contracted Services,"391400 - Works - Construction, Repair & Maintenance"
Solihull MBC,Managed Growth and Communities,Highways & Transport Services,Balfour Beatty Living Places Ltd,09/08/2018,,208.88,Other Contracted Services,"391400 - Works - Construction, Repair & Maintenance"
Solihull MBC,Managed Growth and Communities,Highways & Transport Services,Balfour Beatty Living Places Ltd,09/08/2018,,3.12,Other Contracted Services,"391400 - Works - Construction, Repair & Maintenance"
Solihull MBC,Managed Growth and Communities,Highways & Transport Services,Balfour Beatty Living Places Ltd,09/08/2018,,233.46,Other Contracted Services,"391400 - Works - Construction, Repair & Maintenance"
Solihull MBC,Managed Growth and Communities,Highways & Transport Services,Balfour Beatty Living Places Ltd,09/08/2018,,2283.96,Other Contracted Services,"391400 - Works - Construction, Repair & Maintenance"
Solihull MBC,Managed Growth and Communities,Highways & Transport Services,Balfour Beatty Living Places Ltd,09/08/2018,,3.07,Other Contracted Services,"391400 - Works - Construction, Repair & Maintenance"
Solihull MBC,Managed Growth and Communities,Highways & Transport Services,Balfour Beatty Living Places Ltd,09/08/2018,,8270.80,Other Contracted Services,"391400 - Works - Construction, Repair & Maintenance"
Solihull MBC,Managed Growth and Communities,Highways & Transport Services,Balfour Beatty Living Places Ltd,09/08/2018,,1051.79,Other Contracted Services,"391400 - Works - Construction, Repair & Maintenance"
Solihull MBC,Managed Growth and Communities,Highways & Transport Services,Balfour Beatty Living Places Ltd,09/08/2018,,506.03,Other Contracted Services,"391400 - Works - Construction, Repair & Maintenance"
Solihull MBC,Managed Growth and Communities,Highways & Transport Services,Balfour Beatty Living Places Ltd,09/08/2018,,994.49,Other Contracted Services,"391400 - Works - Construction, Repair & Maintenance"
Solihull MBC,Managed Growth and Communities,Highways & Transport Services,Balfour Beatty Living Places Ltd,09/08/2018,,767.00,Other Contracted Services,"391400 - Works - Construction, Repair & Maintenance"
Solihull MBC,Managed Growth and Communities,Highways & Transport Services,Balfour Beatty Living Places Ltd,09/08/2018,,742.55,Other Contracted Services,"391400 - Works - Construction, Repair & Maintenance"
Solihull MBC,Managed Growth and Communities,Highways & Transport Services,Balfour Beatty Living Places Ltd,09/08/2018,,1115.02,Other Contracted Services,"391400 - Works - Construction, Repair & Maintenance"
Solihull MBC,Managed Growth and Communities,Highways & Transport Services,Balfour Beatty Living Places Ltd,09/08/2018,,143.25,Other Contracted Services,"391400 - Works - Construction, Repair & Maintenance"
Solihull MBC,Managed Growth and Communities,Highways & Transport Services,Balfour Beatty Living Places Ltd,09/08/2018,,300.38,Other Contracted Services,"391400 - Works - Construction, Repair & Maintenance"
Solihull MBC,Managed Growth and Communities,Highways & Transport Services,Balfour Beatty Living Places Ltd,09/08/2018,,732.18,Other Contracted Services,"391400 - Works - Construction, Repair & Maintenance"
Solihull MBC,Managed Growth and Communities,Highways & Transport Services,Balfour Beatty Living Places Ltd,09/08/2018,,25736.28,Other Contracted Services,"391400 - Works - Construction, Repair & Maintenance"
Solihull MBC,Managed Growth and Communities,Highways & Transport Services,Balfour Beatty Living Places Ltd,09/08/2018,,4675.57,Other Contracted Services,"391400 - Works - Construction, Repair & Maintenance"
Solihull MBC,Managed Growth and Communities,Highways & Transport Services,Balfour Beatty Living Places Ltd,09/08/2018,,1130.16,Other Contracted Services,"391400 - Works - Construction, Repair & Maintenance"
Solihull MBC,Managed Growth and Communities,Highways & Transport Services,Balfour Beatty Living Places Ltd,09/08/2018,,543.66,Other Contracted Services,"391400 - Works - Construction, Repair & Maintenance"
Solihull MBC,Managed Growth and Communities,Highways & Transport Services,Balfour Beatty Living Places Ltd,09/08/2018,,237.60,Other Contracted Services,"391400 - Works - Construction, Repair & Maintenance"
Solihull MBC,Managed Growth and Communities,Highways & Transport Services,Balfour Beatty Living Places Ltd,09/08/2018,,519.33,Other Contracted Services,"391400 - Works - Construction, Repair & Maintenance"
Solihull MBC,Managed Growth and Communities,Highways & Transport Services,Balfour Beatty Living Places Ltd,09/08/2018,,4473.06,Other Contracted Services,"391400 - Works - Construction, Repair & Maintenance"
Solihull MBC,Managed Growth and Communities,Highways & Transport Services,Balfour Beatty Living Places Ltd,09/08/2018,,118.38,Other Contracted Services,"391400 - Works - Construction, Repair & Maintenance"
Solihull MBC,Managed Growth and Communities,Highways & Transport Services,Balfour Beatty Living Places Ltd,09/08/2018,,69.05,Other Contracted Services,"391400 - Works - Construction, Repair & Maintenance"
Solihull MBC,Managed Growth and Communities,Highways & Transport Services,Balfour Beatty Living Places Ltd,09/08/2018,,76.96,Other Contracted Services,"391400 - Works - Construction, Repair & Maintenance"
Solihull MBC,Managed Growth and Communities,Highways & Transport Services,Balfour Beatty Living Places Ltd,09/08/2018,,7.60,Other Contracted Services,"391400 - Works - Construction, Repair & Maintenance"
Solihull MBC,Managed Growth and Communities,Highways & Transport Services,Balfour Beatty Living Places Ltd,09/08/2018,,74.43,Other Contracted Services,"391400 - Works - Construction, Repair & Maintenance"
Solihull MBC,Managed Growth and Communities,Highways & Transport Services,Balfour Beatty Living Places Ltd,09/08/2018,,2.00,Other Contracted Services,"391400 - Works - Construction, Repair & Maintenance"
Solihull MBC,Managed Growth and Communities,Highways & Transport Services,Balfour Beatty Living Places Ltd,09/08/2018,,377.96,Other Contracted Services,"391400 - Works - Construction, Repair & Maintenance"
Solihull MBC,Managed Growth and Communities,Highways & Transport Services,Balfour Beatty Living Places Ltd,09/08/2018,,207.60,Other Contracted Services,"391400 - Works - Construction, Repair & Maintenance"
Solihull MBC,Managed Growth and Communities,Highways & Transport Services,Balfour Beatty Living Places Ltd,09/08/2018,,216.25,Other Contracted Services,"391400 - Works - Construction, Repair & Maintenance"
Solihull MBC,Managed Growth and Communities,Highways & Transport Services,Balfour Beatty Living Places Ltd,09/08/2018,,2.00,Other Contracted Services,"391400 - Works - Construction, Repair & Maintenance"
Solihull MBC,Managed Growth and Communities,Highways & Transport Services,Balfour Beatty Living Places Ltd,09/08/2018,,1820.60,Other Contracted Services,"391400 - Works - Construction, Repair & Maintenance"
Solihull MBC,Managed Growth and Communities,Highways & Transport Services,Balfour Beatty Living Places Ltd,09/08/2018,,951.07,Other Contracted Services,"391400 - Works - Construction, Repair & Maintenance"
Solihull MBC,Managed Growth and Communities,Highways & Transport Services,Balfour Beatty Living Places Ltd,09/08/2018,,1062.47,Other Contracted Services,"391400 - Works - Construction, Repair & Maintenance"
Solihull MBC,Managed Growth and Communities,Highways & Transport Services,Balfour Beatty Living Places Ltd,09/08/2018,,4574.62,Other Contracted Services,"391400 - Works - Construction, Repair & Maintenance"
Solihull MBC,Managed Growth and Communities,Highways & Transport Services,Balfour Beatty Living Places Ltd,09/08/2018,,167.68,Other Contracted Services,"391400 - Works - Construction, Repair & Maintenance"
Solihull MBC,Managed Growth and Communities,Highways & Transport Services,Balfour Beatty Living Places Ltd,09/08/2018,,295.43,Other Contracted Services,"391400 - Works - Construction, Repair & Maintenance"
Solihull MBC,Managed Growth and Communities,Highways & Transport Services,Balfour Beatty Living Places Ltd,09/08/2018,,5993.39,Other Contracted Services,"391400 - Works - Construction, Repair & Maintenance"
Solihull MBC,Managed Growth and Communities,Highways & Transport Services,Balfour Beatty Living Places Ltd,09/08/2018,,3714.83,Other Contracted Services,"391400 - Works - Construction, Repair & Maintenance"
Solihull MBC,Managed Growth and Communities,Highways & Transport Services,Balfour Beatty Living Places Ltd,09/08/2018,,547.51,Other Contracted Services,"391400 - Works - Construction, Repair & Maintenance"
Solihull MBC,Managed Growth and Communities,Highways & Transport Services,Balfour Beatty Living Places Ltd,09/08/2018,,176.82,Other Contracted Services,"391400 - Works - Construction, Repair & Maintenance"
Solihull MBC,Managed Growth and Communities,Highways & Transport Services,Balfour Beatty Living Places Ltd,09/08/2018,,444.62,Other Contracted Services,"391400 - Works - Construction, Repair & Maintenance"
Solihull MBC,Managed Growth and Communities,Highways & Transport Services,Balfour Beatty Living Places Ltd,09/08/2018,,517.12,Other Contracted Services,"391400 - Works - Construction, Repair & Maintenance"
Solihull MBC,Managed Growth and Communities,Highways & Transport Services,Balfour Beatty Living Places Ltd,09/08/2018,,488.12,Other Contracted Services,"391400 - Works - Construction, Repair & Maintenance"
Solihull MBC,Managed Growth and Communities,Highways & Transport Services,Balfour Beatty Living Places Ltd,09/08/2018,,719.32,Other Contracted Services,"391400 - Works - Construction, Repair & Maintenance"
Solihull MBC,Managed Growth and Communities,Highways & Transport Services,Balfour Beatty Living Places Ltd,09/08/2018,,632.09,Other Contracted Services,"391400 - Works - Construction, Repair & Maintenance"
Solihull MBC,Managed Growth and Communities,Highways & Transport Services,Balfour Beatty Living Places Ltd,09/08/2018,,647.44,Other Contracted Services,"391400 - Works - Construction, Repair & Maintenance"
Solihull MBC,Managed Growth and Communities,Highways & Transport Services,Balfour Beatty Living Places Ltd,09/08/2018,,405.54,Other Contracted Services,"391400 - Works - Construction, Repair & Maintenance"
Solihull MBC,Managed Growth and Communities,Highways & Transport Services,Balfour Beatty Living Places Ltd,09/08/2018,,542.62,Other Contracted Services,"391400 - Works - Construction, Repair & Maintenance"
Solihull MBC,Managed Growth and Communities,Highways & Transport Services,Balfour Beatty Living Places Ltd,09/08/2018,,496.06,Other Contracted Services,"391400 - Works - Construction, Repair & Maintenance"
Solihull MBC,Managed Growth and Communities,Highways & Transport Services,Balfour Beatty Living Places Ltd,09/08/2018,,702.02,Other Contracted Services,"391400 - Works - Construction, Repair & Maintenance"
Solihull MBC,Managed Growth and Communities,Highways & Transport Services,Balfour Beatty Living Places Ltd,09/08/2018,,392.74,Other Contracted Services,"391400 - Works - Construction, Repair & Maintenance"
Solihull MBC,Managed Growth and Communities,Highways & Transport Services,Balfour Beatty Living Places Ltd,09/08/2018,,230.18,Other Contracted Services,"391400 - Works - Construction, Repair & Maintenance"
Solihull MBC,Managed Growth and Communities,Highways & Transport Services,Balfour Beatty Living Places Ltd,09/08/2018,,588.18,Other Contracted Services,"391400 - Works - Construction, Repair & Maintenance"
Solihull MBC,Managed Growth and Communities,Highways & Transport Services,Balfour Beatty Living Places Ltd,09/08/2018,,71.89,Other Contracted Services,"391400 - Works - Construction, Repair & Maintenance"
Solihull MBC,Managed Growth and Communities,Highways & Transport Services,Balfour Beatty Living Places Ltd,09/08/2018,,23.30,Other Contracted Services,"391400 - Works - Construction, Repair & Maintenance"
Solihull MBC,Managed Growth and Communities,Highways & Transport Services,Balfour Beatty Living Places Ltd,09/08/2018,,2549.84,Other Contracted Services,"391400 - Works - Construction, Repair & Maintenance"
Solihull MBC,Managed Growth and Communities,Highways & Transport Services,Balfour Beatty Living Places Ltd,09/08/2018,,4896.97,Other Contracted Services,"391400 - Works - Construction, Repair & Maintenance"
Solihull MBC,Managed Growth and Communities,Highways & Transport Services,Balfour Beatty Living Places Ltd,09/08/2018,,3134.31,Other Contracted Services,"391400 - Works - Construction, Repair & Maintenance"
Solihull MBC,Managed Growth and Communities,Highways & Transport Services,Balfour Beatty Living Places Ltd,09/08/2018,,122.70,Other Contracted Services,"391400 - Works - Construction, Repair & Maintenance"
Solihull MBC,Managed Growth and Communities,Highways & Transport Services,Balfour Beatty Living Places Ltd,09/08/2018,,250.55,Other Contracted Services,"391400 - Works - Construction, Repair & Maintenance"
Solihull MBC,Managed Growth and Communities,Highways & Transport Services,Balfour Beatty Living Places Ltd,09/08/2018,,572.56,Other Contracted Services,"391400 - Works - Construction, Repair & Maintenance"
Solihull MBC,Managed Growth and Communities,Highways & Transport Services,Balfour Beatty Living Places Ltd,09/08/2018,,4356.45,Other Contracted Services,"391400 - Works - Construction, Repair & Maintenance"
Solihull MBC,Managed Growth and Communities,Highways & Transport Services,Balfour Beatty Living Places Ltd,09/08/2018,,8752.57,Other Contracted Services,"391400 - Works - Construction, Repair & Maintenance"
Solihull MBC,Managed Growth and Communities,Highways & Transport Services,Balfour Beatty Living Places Ltd,09/08/2018,,5306.47,Other Contracted Services,"391400 - Works - Construction, Repair & Maintenance"
Solihull MBC,Managed Growth and Communities,Highways & Transport Services,Balfour Beatty Living Places Ltd,09/08/2018,,7179.57,Other Contracted Services,"391400 - Works - Construction, Repair & Maintenance"
Solihull MBC,Managed Growth and Communities,Highways & Transport Services,Balfour Beatty Living Places Ltd,09/08/2018,,71.89,Other Contracted Services,"391400 - Works - Construction, Repair & Maintenance"
Solihull MBC,Managed Growth and Communities,Highways & Transport Services,Balfour Beatty Living Places Ltd,09/08/2018,,5695.25,Other Contracted Services,"391400 - Works - Construction, Repair & Maintenance"
Solihull MBC,Managed Growth and Communities,Highways & Transport Services,Balfour Beatty Living Places Ltd,09/08/2018,,103.26,Other Contracted Services,"391400 - Works - Construction, Repair & Maintenance"
Solihull MBC,Managed Growth and Communities,Highways & Transport Services,Balfour Beatty Living Places Ltd,09/08/2018,,278.86,Other Contracted Services,"391400 - Works - Construction, Repair & Maintenance"
Solihull MBC,Managed Growth and Communities,Highways & Transport Services,Balfour Beatty Living Places Ltd,09/08/2018,,7048.07,Other Contracted Services,"391400 - Works - Construction, Repair & Maintenance"
Solihull MBC,Managed Growth and Communities,Highways & Transport Services,Balfour Beatty Living Places Ltd,09/08/2018,,2562.07,Other Contracted Services,"391400 - Works - Construction, Repair & Maintenance"
Solihull MBC,Managed Growth and Communities,Highways & Transport Services,Balfour Beatty Living Places Ltd,09/08/2018,,11723.90,Other Contracted Services,"391400 - Works - Construction, Repair & Maintenance"
Solihull MBC,Managed Growth and Communities,Highways & Transport Services,Balfour Beatty Living Places Ltd,09/08/2018,,71.89,Other Contracted Services,"391400 - Works - Construction, Repair & Maintenance"
Solihull MBC,Managed Growth and Communities,Highways & Transport Services,Balfour Beatty Living Places Ltd,09/08/2018,,71.89,Other Contracted Services,"391400 - Works - Construction, Repair & Maintenance"
Solihull MBC,Managed Growth and Communities,Highways & Transport Services,Balfour Beatty Living Places Ltd,09/08/2018,,121.24,Other Contracted Services,"391400 - Works - Construction, Repair & Maintenance"
Solihull MBC,Managed Growth and Communities,Highways & Transport Services,Balfour Beatty Living Places Ltd,09/08/2018,,5769.32,Other Contracted Services,"391400 - Works - Construction, Repair & Maintenance"
Solihull MBC,Managed Growth and Communities,Highways & Transport Services,Balfour Beatty Living Places Ltd,09/08/2018,,71.89,Other Contracted Services,"391400 - Works - Construction, Repair & Maintenance"
Solihull MBC,Managed Growth and Communities,Highways & Transport Services,Balfour Beatty Living Places Ltd,09/08/2018,,59.23,Other Contracted Services,"391400 - Works - Construction, Repair & Maintenance"
Solihull MBC,Managed Growth and Communities,Highways & Transport Services,Balfour Beatty Living Places Ltd,09/08/2018,,4782.25,Other Contracted Services,"391400 - Works - Construction, Repair & Maintenance"
Solihull MBC,Managed Growth and Communities,Highways & Transport Services,Balfour Beatty Living Places Ltd,09/08/2018,,107.02,Other Contracted Services,"391400 - Works - Construction, Repair & Maintenance"
Solihull MBC,Managed Growth and Communities,Highways & Transport Services,Balfour Beatty Living Places Ltd,09/08/2018,,6546.75,Other Contracted Services,"391400 - Works - Construction, Repair & Maintenance"
Solihull MBC,Managed Growth and Communities,Highways & Transport Services,Balfour Beatty Living Places Ltd,09/08/2018,,19.74,Other Contracted Services,"391400 - Works - Construction, Repair & Maintenance"
Solihull MBC,Managed Growth and Communities,Highways & Transport Services,Balfour Beatty Living Places Ltd,09/08/2018,,242.48,Other Contracted Services,"391400 - Works - Construction, Repair & Maintenance"
Solihull MBC,Managed Growth and Communities,Highways & Transport Services,Balfour Beatty Living Places Ltd,09/08/2018,,68.84,Other Contracted Services,"391400 - Works - Construction, Repair & Maintenance"
Solihull MBC,Managed Growth and Communities,Highways & Transport Services,Balfour Beatty Living Places Ltd,09/08/2018,,74.30,Other Contracted Services,"391400 - Works - Construction, Repair & Maintenance"
Solihull MBC,Managed Growth and Communities,Highways & Transport Services,Balfour Beatty Living Places Ltd,09/08/2018,,1.00,Other Contracted Services,"391400 - Works - Construction, Repair & Maintenance"
Solihull MBC,Managed Growth and Communities,Highways & Transport Services,Balfour Beatty Living Places Ltd,09/08/2018,,69.60,Other Contracted Services,"391400 - Works - Construction, Repair & Maintenance"
Solihull MBC,Managed Growth and Communities,Highways & Transport Services,Balfour Beatty Living Places Ltd,09/08/2018,,145.96,Other Contracted Services,"391400 - Works - Construction, Repair & Maintenance"
Solihull MBC,Managed Growth and Communities,Highways & Transport Services,Balfour Beatty Living Places Ltd,09/08/2018,,71.89,Other Contracted Services,"391400 - Works - Construction, Repair & Maintenance"
Solihull MBC,Managed Growth and Communities,Highways & Transport Services,Balfour Beatty Living Places Ltd,09/08/2018,,461.58,Other Contracted Services,"391400 - Works - Construction, Repair & Maintenance"
Solihull MBC,Managed Growth and Communities,Highways & Transport Services,Balfour Beatty Living Places Ltd,09/08/2018,,1.36,Other Contracted Services,"391400 - Works - Construction, Repair & Maintenance"
Solihull MBC,Managed Growth and Communities,Highways & Transport Services,Balfour Beatty Living Places Ltd,09/08/2018,,660.88,Other Contracted Services,"391400 - Works - Construction, Repair & Maintenance"
Solihull MBC,Managed Growth and Communities,Highways & Transport Services,Balfour Beatty Living Places Ltd,09/08/2018,,49.60,Other Contracted Services,"391400 - Works - Construction, Repair & Maintenance"
Solihull MBC,Managed Growth and Communities,Highways & Transport Services,Balfour Beatty Living Places Ltd,09/08/2018,,93.00,Other Contracted Services,"391400 - Works - Construction, Repair & Maintenance"
Solihull MBC,Managed Growth and Communities,Highways & Transport Services,Balfour Beatty Living Places Ltd,09/08/2018,,45.74,Other Contracted Services,"391400 - Works - Construction, Repair & Maintenance"
Solihull MBC,Managed Growth and Communities,Highways & Transport Services,Balfour Beatty Living Places Ltd,09/08/2018,,82.86,Other Contracted Services,"391400 - Works - Construction, Repair & Maintenance"
Solihull MBC,Managed Growth and Communities,Highways & Transport Services,Balfour Beatty Living Places Ltd,09/08/2018,,1.00,Other Contracted Services,"391400 - Works - Construction, Repair & Maintenance"
Solihull MBC,Managed Growth and Communities,Highways & Transport Services,Balfour Beatty Living Places Ltd,09/08/2018,,1.00,Other Contracted Services,"391400 - Works - Construction, Repair & Maintenance"
Solihull MBC,Managed Growth and Communities,Highways & Transport Services,Balfour Beatty Living Places Ltd,09/08/2018,,6981.36,Other Contracted Services,"391400 - Works - Construction, Repair & Maintenance"
Solihull MBC,Managed Growth and Communities,Highways & Transport Services,Balfour Beatty Living Places Ltd,09/08/2018,,194.04,Other Contracted Services,"391400 - Works - Construction, Repair & Maintenance"
Solihull MBC,Managed Growth and Communities,Highways & Transport Services,Balfour Beatty Living Places Ltd,09/08/2018,,485.10,Other Contracted Services,"391400 - Works - Construction, Repair & Maintenance"
Solihull MBC,Managed Growth and Communities,Highways & Transport Services,Balfour Beatty Living Places Ltd,09/08/2018,,1.00,Other Contracted Services,"391400 - Works - Construction, Repair & Maintenance"
Solihull MBC,Managed Growth and Communities,Highways & Transport Services,Balfour Beatty Living Places Ltd,09/08/2018,,1.00,Other Contracted Services,"391400 - Works - Construction, Repair & Maintenance"
Solihull MBC,Managed Growth and Communities,Highways & Transport Services,Balfour Beatty Living Places Ltd,09/08/2018,,1.00,Other Contracted Services,"391400 - Works - Construction, Repair & Maintenance"
Solihull MBC,Managed Growth and Communities,Highways & Transport Services,Balfour Beatty Living Places Ltd,09/08/2018,,1.00,Other Contracted Services,"391400 - Works - Construction, Repair & Maintenance"
Solihull MBC,Managed Growth and Communities,Highways & Transport Services,Balfour Beatty Living Places Ltd,09/08/2018,,1.00,Other Contracted Services,"391400 - Works - Construction, Repair & Maintenance"
Solihull MBC,Managed Growth and Communities,Highways & Transport Services,Balfour Beatty Living Places Ltd,09/08/2018,,64.05,Other Contracted Services,"391400 - Works - Construction, Repair & Maintenance"
Solihull MBC,Managed Growth and Communities,Highways & Transport Services,Balfour Beatty Living Places Ltd,09/08/2018,,1.00,Other Contracted Services,"391400 - Works - Construction, Repair & Maintenance"
Solihull MBC,Managed Growth and Communities,Highways & Transport Services,Balfour Beatty Living Places Ltd,09/08/2018,,1.00,Other Contracted Services,"391400 - Works - Construction, Repair & Maintenance"
Solihull MBC,Managed Growth and Communities,Highways & Transport Services,Balfour Beatty Living Places Ltd,09/08/2018,,16.84,Other Contracted Services,"391400 - Works - Construction, Repair & Maintenance"
Solihull MBC,Managed Growth and Communities,Highways & Transport Services,Balfour Beatty Living Places Ltd,09/08/2018,,2.71,Other Contracted Services,"391400 - Works - Construction, Repair & Maintenance"
Solihull MBC,Managed Growth and Communities,Highways & Transport Services,Balfour Beatty Living Places Ltd,09/08/2018,,71.36,Other Contracted Services,"391400 - Works - Construction, Repair & Maintenance"
Solihull MBC,Managed Growth and Communities,Highways & Transport Services,Balfour Beatty Living Places Ltd,09/08/2018,,71.36,Other Contracted Services,"391400 - Works - Construction, Repair & Maintenance"
Solihull MBC,Managed Growth and Communities,Highways & Transport Services,Balfour Beatty Living Places Ltd,09/08/2018,,64.25,Other Contracted Services,"391400 - Works - Construction, Repair & Maintenance"
Solihull MBC,Managed Growth and Communities,Highways & Transport Services,Balfour Beatty Living Places Ltd,09/08/2018,,99.73,Other Contracted Services,"391400 - Works - Construction, Repair & Maintenance"
Solihull MBC,Managed Growth and Communities,Highways & Transport Services,Balfour Beatty Living Places Ltd,09/08/2018,,329.02,Other Contracted Services,"391400 - Works - Construction, Repair & Maintenance"
Solihull MBC,Managed Growth and Communities,Highways & Transport Services,Balfour Beatty Living Places Ltd,09/08/2018,,1.00,Other Contracted Services,"391400 - Works - Construction, Repair & Maintenance"
Solihull MBC,Managed Growth and Communities,Highways & Transport Services,Balfour Beatty Living Places Ltd,09/08/2018,,311.40,Other Contracted Services,"391400 - Works - Construction, Repair & Maintenance"
Solihull MBC,Managed Growth and Communities,Highways & Transport Services,Balfour Beatty Living Places Ltd,09/08/2018,,7.11,Other Contracted Services,"391400 - Works - Construction, Repair & Maintenance"
Solihull MBC,Managed Growth and Communities,Highways & Transport Services,Balfour Beatty Living Places Ltd,09/08/2018,,7.11,Other Contracted Services,"391400 - Works - Construction, Repair & Maintenance"
Solihull MBC,Managed Growth and Communities,Highways & Transport Services,Balfour Beatty Living Places Ltd,09/08/2018,,25.90,Other Contracted Services,"391400 - Works - Construction, Repair & Maintenance"
Solihull MBC,Managed Growth and Communities,Highways & Transport Services,Balfour Beatty Living Places Ltd,09/08/2018,,1635.16,Other Contracted Services,"391400 - Works - Construction, Repair & Maintenance"
Solihull MBC,Managed Growth and Communities,Highways & Transport Services,Balfour Beatty Living Places Ltd,09/08/2018,,22.56,Other Contracted Services,"391400 - Works - Construction, Repair & Maintenance"
Solihull MBC,Managed Growth and Communities,Highways & Transport Services,Balfour Beatty Living Places Ltd,09/08/2018,,233.40,Other Contracted Services,"391400 - Works - Construction, Repair & Maintenance"
Solihull MBC,Managed Growth and Communities,Highways & Transport Services,Balfour Beatty Living Places Ltd,09/08/2018,,15.00,Other Contracted Services,"391400 - Works - Construction, Repair & Maintenance"
Solihull MBC,Managed Growth and Communities,Highways & Transport Services,Balfour Beatty Living Places Ltd,09/08/2018,,30.42,Other Contracted Services,"391400 - Works - Construction, Repair & Maintenance"
Solihull MBC,Managed Growth and Communities,Highways & Transport Services,Balfour Beatty Living Places Ltd,09/08/2018,,201.04,Other Contracted Services,"391400 - Works - Construction, Repair & Maintenance"
Solihull MBC,Managed Growth and Communities,Highways & Transport Services,Balfour Beatty Living Places Ltd,09/08/2018,,72.78,Other Contracted Services,"391400 - Works - Construction, Repair & Maintenance"
Solihull MBC,Managed Growth and Communities,Highways & Transport Services,Balfour Beatty Living Places Ltd,09/08/2018,,16.05,Other Contracted Services,"391400 - Works - Construction, Repair & Maintenance"
Solihull MBC,Managed Growth and Communities,Highways & Transport Services,Balfour Beatty Living Places Ltd,09/08/2018,,46.41,Other Contracted Services,"391400 - Works - Construction, Repair & Maintenance"
Solihull MBC,Managed Growth and Communities,Highways & Transport Services,Balfour Beatty Living Places Ltd,09/08/2018,,72.78,Other Contracted Services,"391400 - Works - Construction, Repair & Maintenance"
Solihull MBC,Managed Growth and Communities,Highways & Transport Services,Balfour Beatty Living Places Ltd,09/08/2018,,47.17,Other Contracted Services,"391400 - Works - Construction, Repair & Maintenance"
Solihull MBC,Managed Growth and Communities,Highways & Transport Services,Balfour Beatty Living Places Ltd,09/08/2018,,23656.90,Other Contracted Services,"391400 - Works - Construction, Repair & Maintenance"
Solihull MBC,Managed Growth and Communities,Highways & Transport Services,Balfour Beatty Living Places Ltd,09/08/2018,,3846.27,Other Contracted Services,"391400 - Works - Construction, Repair & Maintenance"
Solihull MBC,Managed Growth and Communities,Highways & Transport Services,Balfour Beatty Living Places Ltd,09/08/2018,,30918.61,Other Contracted Services,"391400 - Works - Construction, Repair & Maintenance"
Solihull MBC,Managed Growth and Communities,Highways & Transport Services,Balfour Beatty Living Places Ltd,09/08/2018,,17597.29,Other Contracted Services,"391400 - Works - Construction, Repair & Maintenance"
Solihull MBC,Managed Growth and Communities,Highways & Transport Services,Balfour Beatty Living Places Ltd,09/08/2018,,19732.70,Other Contracted Services,"391400 - Works - Construction, Repair & Maintenance"
Solihull MBC,Managed Growth and Communities,Highways & Transport Services,Balfour Beatty Living Places Ltd,09/08/2018,,43029.72,Other Contracted Services,"391400 - Works - Construction, Repair & Maintenance"
Solihull MBC,Managed Growth and Communities,Highways & Transport Services,Balfour Beatty Living Places Ltd,09/08/2018,,44888.98,Other Contracted Services,"391400 - Works - Construction, Repair & Maintenance"
Solihull MBC,Managed Growth and Communities,Highways & Transport Services,Balfour Beatty Living Places Ltd,09/08/2018,,2141.78,Other Contracted Services,"391400 - Works - Construction, Repair & Maintenance"
Solihull MBC,Managed Growth and Communities,Highways & Transport Services,Balfour Beatty Living Places Ltd,09/08/2018,,72.78,Other Contracted Services,"391400 - Works - Construction, Repair & Maintenance"
Solihull MBC,Managed Growth and Communities,Highways & Transport Services,Balfour Beatty Living Places Ltd,09/08/2018,,1489.60,Other Contracted Services,"391400 - Works - Construction, Repair & Maintenance"
Solihull MBC,Managed Growth and Communities,Highways & Transport Services,Balfour Beatty Living Places Ltd,09/08/2018,,81485.84,Other Contracted Services,"391400 - Works - Construction, Repair & Maintenance"
Solihull MBC,Managed Growth and Communities,Highways & Transport Services,Balfour Beatty Living Places Ltd,09/08/2018,,1849.14,Other Contracted Services,"391400 - Works - Construction, Repair & Maintenance"
Solihull MBC,Managed Growth and Communities,Highways & Transport Services,Balfour Beatty Living Places Ltd,09/08/2018,,250.23,Other Contracted Services,"391400 - Works - Construction, Repair & Maintenance"
Solihull MBC,Managed Growth and Communities,Highways & Transport Services,Balfour Beatty Living Places Ltd,09/08/2018,,127.95,Other Contracted Services,"391400 - Works - Construction, Repair & Maintenance"
Solihull MBC,Managed Growth and Communities,Highways & Transport Services,Balfour Beatty Living Places Ltd,09/08/2018,,72.78,Other Contracted Services,"391400 - Works - Construction, Repair & Maintenance"
Solihull MBC,Managed Growth and Communities,Highways & Transport Services,Balfour Beatty Living Places Ltd,09/08/2018,,6091.76,Other Contracted Services,"391400 - Works - Construction, Repair & Maintenance"
Solihull MBC,Managed Growth and Communities,Highways & Transport Services,Balfour Beatty Living Places Ltd,09/08/2018,,10997.08,Other Contracted Services,"391400 - Works - Construction, Repair & Maintenance"
Solihull MBC,Managed Growth and Communities,Highways & Transport Services,Balfour Beatty Living Places Ltd,09/08/2018,,26093.32,Other Contracted Services,"391400 - Works - Construction, Repair & Maintenance"
Solihull MBC,Managed Growth and Communities,Highways & Transport Services,Balfour Beatty Living Places Ltd,09/08/2018,,5822.29,Other Contracted Services,"391400 - Works - Construction, Repair & Maintenance"
Solihull MBC,Managed Growth and Communities,Highways & Transport Services,Balfour Beatty Living Places Ltd,09/08/2018,,3249.25,Other Contracted Services,"391400 - Works - Construction, Repair & Maintenance"
Solihull MBC,Managed Growth and Communities,Highways & Transport Services,Balfour Beatty Living Places Ltd,09/08/2018,,11806.38,Other Contracted Services,"391400 - Works - Construction, Repair & Maintenance"
Solihull MBC,Managed Growth and Communities,Highways & Transport Services,Balfour Beatty Living Places Ltd,09/08/2018,,164.80,Other Contracted Services,"391400 - Works - Construction, Repair & Maintenance"
Solihull MBC,Managed Growth and Communities,Highways & Transport Services,Balfour Beatty Living Places Ltd,09/08/2018,,436.68,Other Contracted Services,"391400 - Works - Construction, Repair & Maintenance"
Solihull MBC,Managed Growth and Communities,Highways & Transport Services,Balfour Beatty Living Places Ltd,09/08/2018,,161.04,Other Contracted Services,"391400 - Works - Construction, Repair & Maintenance"
Solihull MBC,Managed Growth and Communities,Highways & Transport Services,Balfour Beatty Living Places Ltd,09/08/2018,,72.78,Other Contracted Services,"391400 - Works - Construction, Repair & Maintenance"
Solihull MBC,Managed Growth and Communities,Highways & Transport Services,Balfour Beatty Living Places Ltd,09/08/2018,,4146.00,Other Contracted Services,"391400 - Works - Construction, Repair & Maintenance"
Solihull MBC,Managed Growth and Communities,Highways & Transport Services,Balfour Beatty Living Places Ltd,09/08/2018,,72.78,Other Contracted Services,"391400 - Works - Construction, Repair & Maintenance"
Solihull MBC,Managed Growth and Communities,Highways & Transport Services,Balfour Beatty Living Places Ltd,09/08/2018,,57.59,Other Contracted Services,"391400 - Works - Construction, Repair & Maintenance"
Solihull MBC,Managed Growth and Communities,Highways & Transport Services,Balfour Beatty Living Places Ltd,09/08/2018,,194.01,Other Contracted Services,"391400 - Works - Construction, Repair & Maintenance"
Solihull MBC,Managed Growth and Communities,Highways & Transport Services,Balfour Beatty Living Places Ltd,09/08/2018,,222.70,Other Contracted Services,"391400 - Works - Construction, Repair & Maintenance"
Solihull MBC,Managed Growth and Communities,Highways & Transport Services,Balfour Beatty Living Places Ltd,09/08/2018,,153.54,Other Contracted Services,"391400 - Works - Construction, Repair & Maintenance"
Solihull MBC,Managed Growth and Communities,Highways & Transport Services,Balfour Beatty Living Places Ltd,09/08/2018,,209.20,Other Contracted Services,"391400 - Works - Construction, Repair & Maintenance"
Solihull MBC,Managed Growth and Communities,Highways & Transport Services,Balfour Beatty Living Places Ltd,09/08/2018,,94.34,Other Contracted Services,"391400 - Works - Construction, Repair & Maintenance"
Solihull MBC,Managed Growth and Communities,Highways & Transport Services,Balfour Beatty Living Places Ltd,09/08/2018,,72.78,Other Contracted Services,"391400 - Works - Construction, Repair & Maintenance"
Solihull MBC,Managed Growth and Communities,Highways & Transport Services,Balfour Beatty Living Places Ltd,09/08/2018,,72.78,Other Contracted Services,"391400 - Works - Construction, Repair & Maintenance"
Solihull MBC,Managed Growth and Communities,Highways & Transport Services,Balfour Beatty Living Places Ltd,09/08/2018,,57.59,Other Contracted Services,"391400 - Works - Construction, Repair & Maintenance"
Solihull MBC,Managed Growth and Communities,Highways & Transport Services,Balfour Beatty Living Places Ltd,09/08/2018,,72.78,Other Contracted Services,"391400 - Works - Construction, Repair & Maintenance"
Solihull MBC,Managed Growth and Communities,Highways & Transport Services,Balfour Beatty Living Places Ltd,09/08/2018,,72.78,Other Contracted Services,"391400 - Works - Construction, Repair & Maintenance"
Solihull MBC,Managed Growth and Communities,Highways & Transport Services,Balfour Beatty Living Places Ltd,09/08/2018,,175.53,Other Contracted Services,"391400 - Works - Construction, Repair & Maintenance"
Solihull MBC,Managed Growth and Communities,Highways & Transport Services,Balfour Beatty Living Places Ltd,09/08/2018,,269.53,Other Contracted Services,"391400 - Works - Construction, Repair & Maintenance"
Solihull MBC,Managed Growth and Communities,Highways & Transport Services,Balfour Beatty Living Places Ltd,09/08/2018,,145.56,Other Contracted Services,"391400 - Works - Construction, Repair & Maintenance"
Solihull MBC,Managed Growth and Communities,Highways & Transport Services,Balfour Beatty Living Places Ltd,09/08/2018,,72.78,Other Contracted Services,"391400 - Works - Construction, Repair & Maintenance"
Solihull MBC,Managed Growth and Communities,Highways & Transport Services,Balfour Beatty Living Places Ltd,09/08/2018,,187.53,Other Contracted Services,"391400 - Works - Construction, Repair & Maintenance"
Solihull MBC,Managed Growth and Communities,Highways & Transport Services,Balfour Beatty Living Places Ltd,09/08/2018,,159.14,Other Contracted Services,"391400 - Works - Construction, Repair & Maintenance"
Solihull MBC,Managed Growth and Communities,Highways & Transport Services,Balfour Beatty Living Places Ltd,09/08/2018,,122.16,Other Contracted Services,"391400 - Works - Construction, Repair & Maintenance"
Solihull MBC,Managed Growth and Communities,Highways & Transport Services,Balfour Beatty Living Places Ltd,09/08/2018,,248.31,Other Contracted Services,"391400 - Works - Construction, Repair & Maintenance"
Solihull MBC,Managed Growth and Communities,Highways & Transport Services,Balfour Beatty Living Places Ltd,09/08/2018,,151.23,Other Contracted Services,"391400 - Works - Construction, Repair & Maintenance"
Solihull MBC,Managed Growth and Communities,Highways & Transport Services,Balfour Beatty Living Places Ltd,09/08/2018,,218.34,Other Contracted Services,"391400 - Works - Construction, Repair & Maintenance"
Solihull MBC,Managed Growth and Communities,Highways & Transport Services,Balfour Beatty Living Places Ltd,09/08/2018,,72.78,Other Contracted Services,"391400 - Works - Construction, Repair & Maintenance"
Solihull MBC,Managed Growth and Communities,Highways & Transport Services,Balfour Beatty Living Places Ltd,09/08/2018,,72.78,Other Contracted Services,"391400 - Works - Construction, Repair & Maintenance"
Solihull MBC,Managed Growth and Communities,Highways & Transport Services,Balfour Beatty Living Places Ltd,09/08/2018,,119.95,Other Contracted Services,"391400 - Works - Construction, Repair & Maintenance"
Solihull MBC,Managed Growth and Communities,Highways & Transport Services,Balfour Beatty Living Places Ltd,09/08/2018,,47.17,Other Contracted Services,"391400 - Works - Construction, Repair & Maintenance"
Solihull MBC,Managed Growth and Communities,Highways & Transport Services,Balfour Beatty Living Places Ltd,09/08/2018,,72.78,Other Contracted Services,"391400 - Works - Construction, Repair & Maintenance"
Solihull MBC,Managed Growth and Communities,Highways & Transport Services,Balfour Beatty Living Places Ltd,09/08/2018,,47.17,Other Contracted Services,"391400 - Works - Construction, Repair & Maintenance"
Solihull MBC,Managed Growth and Communities,Highways & Transport Services,Balfour Beatty Living Places Ltd,09/08/2018,,129.56,Other Contracted Services,"391400 - Works - Construction, Repair & Maintenance"
Solihull MBC,Managed Growth and Communities,Highways & Transport Services,Balfour Beatty Living Places Ltd,09/08/2018,,72.78,Other Contracted Services,"391400 - Works - Construction, Repair & Maintenance"
Solihull MBC,Managed Growth and Communities,Highways & Transport Services,Balfour Beatty Living Places Ltd,09/08/2018,,72.78,Other Contracted Services,"391400 - Works - Construction, Repair & Maintenance"
Solihull MBC,Managed Growth and Communities,Highways & Transport Services,Balfour Beatty Living Places Ltd,09/08/2018,,72.78,Other Contracted Services,"391400 - Works - Construction, Repair & Maintenance"
Solihull MBC,Managed Growth and Communities,Highways & Transport Services,Balfour Beatty Living Places Ltd,09/08/2018,,72.78,Other Contracted Services,"391400 - Works - Construction, Repair & Maintenance"
Solihull MBC,Managed Growth and Communities,Highways & Transport Services,Balfour Beatty Living Places Ltd,09/08/2018,,72.78,Other Contracted Services,"391400 - Works - Construction, Repair & Maintenance"
Solihull MBC,Managed Growth and Communities,Highways & Transport Services,Balfour Beatty Living Places Ltd,09/08/2018,,215.10,Other Contracted Services,"391400 - Works - Construction, Repair & Maintenance"
Solihull MBC,Managed Growth and Communities,Highways & Transport Services,Balfour Beatty Living Places Ltd,09/08/2018,,84.79,Other Contracted Services,"391400 - Works - Construction, Repair & Maintenance"
Solihull MBC,Managed Growth and Communities,Highways & Transport Services,Balfour Beatty Living Places Ltd,09/08/2018,,388.71,Other Contracted Services,"391400 - Works - Construction, Repair & Maintenance"
Solihull MBC,Managed Growth and Communities,Highways & Transport Services,Balfour Beatty Living Places Ltd,09/08/2018,,104.60,Other Contracted Services,"391400 - Works - Construction, Repair & Maintenance"
Solihull MBC,Managed Growth and Communities,Highways & Transport Services,Balfour Beatty Living Places Ltd,09/08/2018,,157.61,Other Contracted Services,"391400 - Works - Construction, Repair & Maintenance"
Solihull MBC,Managed Growth and Communities,Highways & Transport Services,Balfour Beatty Living Places Ltd,09/08/2018,,175.53,Other Contracted Services,"391400 - Works - Construction, Repair & Maintenance"
Solihull MBC,Managed Growth and Communities,Highways & Transport Services,Balfour Beatty Living Places Ltd,09/08/2018,,295.48,Other Contracted Services,"391400 - Works - Construction, Repair & Maintenance"
Solihull MBC,Managed Growth and Communities,Highways & Transport Services,Balfour Beatty Living Places Ltd,09/08/2018,,23.59,Other Contracted Services,"391400 - Works - Construction, Repair & Maintenance"
Solihull MBC,Managed Growth and Communities,Highways & Transport Services,Balfour Beatty Living Places Ltd,09/08/2018,,149.92,Other Contracted Services,"391400 - Works - Construction, Repair & Maintenance"
Solihull MBC,Managed Growth and Communities,Highways & Transport Services,Balfour Beatty Living Places Ltd,09/08/2018,,149.92,Other Contracted Services,"391400 - Works - Construction, Repair & Maintenance"
Solihull MBC,Managed Growth and Communities,Highways & Transport Services,Balfour Beatty Living Places Ltd,09/08/2018,,151.00,Other Contracted Services,"391400 - Works - Construction, Repair & Maintenance"
Solihull MBC,Managed Growth and Communities,Highways & Transport Services,Balfour Beatty Living Places Ltd,09/08/2018,,23.59,Other Contracted Services,"391400 - Works - Construction, Repair & Maintenance"
Solihull MBC,Managed Growth and Communities,Highways & Transport Services,Balfour Beatty Living Places Ltd,09/08/2018,,5.62,Other Contracted Services,"391400 - Works - Construction, Repair & Maintenance"
Solihull MBC,Managed Growth and Communities,Highways & Transport Services,Balfour Beatty Living Places Ltd,09/08/2018,,34.02,Other Contracted Services,"391400 - Works - Construction, Repair & Maintenance"
Solihull MBC,Managed Growth and Communities,Highways & Transport Services,Balfour Beatty Living Places Ltd,09/08/2018,,186.62,Other Contracted Services,"391400 - Works - Construction, Repair & Maintenance"
Solihull MBC,Managed Growth and Communities,Highways & Transport Services,Balfour Beatty Living Places Ltd,09/08/2018,,19.64,Other Contracted Services,"391400 - Works - Construction, Repair & Maintenance"
Solihull MBC,Managed Growth and Communities,Highways & Transport Services,Balfour Beatty Living Places Ltd,09/08/2018,,47.17,Other Contracted Services,"391400 - Works - Construction, Repair & Maintenance"
Solihull MBC,Managed Growth and Communities,Highways & Transport Services,Balfour Beatty Living Places Ltd,09/08/2018,,111.31,Other Contracted Services,"391400 - Works - Construction, Repair & Maintenance"
Solihull MBC,Managed Growth and Communities,Highways & Transport Services,Balfour Beatty Living Places Ltd,09/08/2018,,119.95,Other Contracted Services,"391400 - Works - Construction, Repair & Maintenance"
Solihull MBC,Managed Growth and Communities,Highways & Transport Services,Balfour Beatty Living Places Ltd,09/08/2018,,243.38,Other Contracted Services,"391400 - Works - Construction, Repair & Maintenance"
Solihull MBC,Managed Growth and Communities,Highways & Transport Services,Balfour Beatty Living Places Ltd,09/08/2018,,72.78,Other Contracted Services,"391400 - Works - Construction, Repair & Maintenance"
Solihull MBC,Managed Growth and Communities,Highways & Transport Services,Balfour Beatty Living Places Ltd,09/08/2018,,167.12,Other Contracted Services,"391400 - Works - Construction, Repair & Maintenance"
Solihull MBC,Managed Growth and Communities,Highways & Transport Services,Balfour Beatty Living Places Ltd,09/08/2018,,47.17,Other Contracted Services,"391400 - Works - Construction, Repair & Maintenance"
Solihull MBC,Managed Growth and Communities,Highways & Transport Services,Balfour Beatty Living Places Ltd,09/08/2018,,57.59,Other Contracted Services,"391400 - Works - Construction, Repair & Maintenance"
Solihull MBC,Managed Growth and Communities,Highways & Transport Services,Balfour Beatty Living Places Ltd,09/08/2018,,391.12,Other Contracted Services,"391400 - Works - Construction, Repair & Maintenance"
Solihull MBC,Managed Growth and Communities,Highways & Transport Services,Balfour Beatty Living Places Ltd,09/08/2018,,72.78,Other Contracted Services,"391400 - Works - Construction, Repair & Maintenance"
Solihull MBC,Managed Growth and Communities,Highways & Transport Services,Balfour Beatty Living Places Ltd,09/08/2018,,72.78,Other Contracted Services,"391400 - Works - Construction, Repair & Maintenance"
Solihull MBC,Managed Growth and Communities,Highways & Transport Services,Balfour Beatty Living Places Ltd,09/08/2018,,215.56,Other Contracted Services,"391400 - Works - Construction, Repair & Maintenance"
Solihull MBC,Managed Growth and Communities,Highways & Transport Services,Balfour Beatty Living Places Ltd,09/08/2018,,291.12,Other Contracted Services,"391400 - Works - Construction, Repair & Maintenance"
Solihull MBC,Managed Growth and Communities,Highways & Transport Services,Balfour Beatty Living Places Ltd,09/08/2018,,394.77,Other Contracted Services,"391400 - Works - Construction, Repair & Maintenance"
Solihull MBC,Managed Growth and Communities,Highways & Transport Services,Balfour Beatty Living Places Ltd,09/08/2018,,248.38,Other Contracted Services,"391400 - Works - Construction, Repair & Maintenance"
Solihull MBC,Managed Growth and Communities,Highways & Transport Services,Balfour Beatty Living Places Ltd,09/08/2018,,72.78,Other Contracted Services,"391400 - Works - Construction, Repair & Maintenance"
Solihull MBC,Managed Growth and Communities,Highways & Transport Services,Balfour Beatty Living Places Ltd,09/08/2018,,115.18,Other Contracted Services,"391400 - Works - Construction, Repair & Maintenance"
Solihull MBC,Managed Growth and Communities,Highways & Transport Services,Balfour Beatty Living Places Ltd,09/08/2018,,25.14,Other Contracted Services,"391400 - Works - Construction, Repair & Maintenance"
Solihull MBC,Managed Growth and Communities,Highways & Transport Services,Balfour Beatty Living Places Ltd,09/08/2018,,151.00,Other Contracted Services,"391400 - Works - Construction, Repair & Maintenance"
Solihull MBC,Managed Growth and Communities,Highways & Transport Services,Balfour Beatty Living Places Ltd,09/08/2018,,72.78,Other Contracted Services,"391400 - Works - Construction, Repair & Maintenance"
Solihull MBC,Managed Growth and Communities,Highways & Transport Services,Balfour Beatty Living Places Ltd,09/08/2018,,47.17,Other Contracted Services,"391400 - Works - Construction, Repair & Maintenance"
Solihull MBC,Managed Growth and Communities,Highways & Transport Services,Balfour Beatty Living Places Ltd,09/08/2018,,219.00,Other Contracted Services,"391400 - Works - Construction, Repair & Maintenance"
Solihull MBC,Managed Growth and Communities,Highways & Transport Services,Balfour Beatty Living Places Ltd,09/08/2018,,24.47,Other Contracted Services,"391400 - Works - Construction, Repair & Maintenance"
Solihull MBC,Managed Growth and Communities,Highways & Transport Services,Balfour Beatty Living Places Ltd,09/08/2018,,145.56,Other Contracted Services,"391400 - Works - Construction, Repair & Maintenance"
Solihull MBC,Managed Growth and Communities,Highways & Transport Services,Balfour Beatty Living Places Ltd,09/08/2018,,151.00,Other Contracted Services,"391400 - Works - Construction, Repair & Maintenance"
Solihull MBC,Managed Growth and Communities,Highways & Transport Services,Balfour Beatty Living Places Ltd,09/08/2018,,24.47,Other Contracted Services,"391400 - Works - Construction, Repair & Maintenance"
Solihull MBC,Managed Growth and Communities,Highways & Transport Services,Balfour Beatty Living Places Ltd,09/08/2018,,72.78,Other Contracted Services,"391400 - Works - Construction, Repair & Maintenance"
Solihull MBC,Managed Growth and Communities,Highways & Transport Services,Balfour Beatty Living Places Ltd,09/08/2018,,24.47,Other Contracted Services,"391400 - Works - Construction, Repair & Maintenance"
Solihull MBC,Managed Growth and Communities,Highways & Transport Services,Balfour Beatty Living Places Ltd,09/08/2018,,555.60,Other Contracted Services,"391400 - Works - Construction, Repair & Maintenance"
Solihull MBC,Managed Growth and Communities,Highways & Transport Services,Balfour Beatty Living Places Ltd,09/08/2018,,24.47,Other Contracted Services,"391400 - Works - Construction, Repair & Maintenance"
Solihull MBC,Managed Growth and Communities,Highways & Transport Services,Balfour Beatty Living Places Ltd,09/08/2018,,72.78,Other Contracted Services,"391400 - Works - Construction, Repair & Maintenance"
Solihull MBC,Managed Growth and Communities,Highways & Transport Services,Balfour Beatty Living Places Ltd,09/08/2018,,72.78,Other Contracted Services,"391400 - Works - Construction, Repair & Maintenance"
Solihull MBC,Managed Growth and Communities,Highways & Transport Services,Balfour Beatty Living Places Ltd,09/08/2018,,72.78,Other Contracted Services,"391400 - Works - Construction, Repair & Maintenance"
Solihull MBC,Managed Growth and Communities,Highways & Transport Services,Balfour Beatty Living Places Ltd,09/08/2018,,195.52,Other Contracted Services,"391400 - Works - Construction, Repair & Maintenance"
Solihull MBC,Managed Growth and Communities,Highways & Transport Services,Balfour Beatty Living Places Ltd,09/08/2018,,122.74,Other Contracted Services,"391400 - Works - Construction, Repair & Maintenance"
Solihull MBC,Managed Growth and Communities,Highways & Transport Services,Balfour Beatty Living Places Ltd,09/08/2018,,24.47,Other Contracted Services,"391400 - Works - Construction, Repair & Maintenance"
Solihull MBC,Managed Growth and Communities,Highways & Transport Services,Balfour Beatty Living Places Ltd,09/08/2018,,48.06,Other Contracted Services,"391400 - Works - Construction, Repair & Maintenance"
Solihull MBC,Managed Growth and Communities,Highways & Transport Services,Balfour Beatty Living Places Ltd,09/08/2018,,129.56,Other Contracted Services,"391400 - Works - Construction, Repair & Maintenance"
Solihull MBC,Managed Growth and Communities,Highways & Transport Services,Balfour Beatty Living Places Ltd,09/08/2018,,315.46,Other Contracted Services,"391400 - Works - Construction, Repair & Maintenance"
Solihull MBC,Managed Growth and Communities,Highways & Transport Services,Balfour Beatty Living Places Ltd,09/08/2018,,186.12,Other Contracted Services,"391400 - Works - Construction, Repair & Maintenance"
Solihull MBC,Managed Growth and Communities,Highways & Transport Services,Balfour Beatty Living Places Ltd,09/08/2018,,294.45,Other Contracted Services,"391400 - Works - Construction, Repair & Maintenance"
Solihull MBC,Managed Growth and Communities,Highways & Transport Services,Balfour Beatty Living Places Ltd,09/08/2018,,72.78,Other Contracted Services,"391400 - Works - Construction, Repair & Maintenance"
Solihull MBC,Managed Growth and Communities,Highways & Transport Services,Balfour Beatty Living Places Ltd,09/08/2018,,202.34,Other Contracted Services,"391400 - Works - Construction, Repair & Maintenance"
Solihull MBC,Managed Growth and Communities,Highways & Transport Services,Balfour Beatty Living Places Ltd,09/08/2018,,473.19,Other Contracted Services,"391400 - Works - Construction, Repair & Maintenance"
Solihull MBC,Managed Growth and Communities,Highways & Transport Services,Balfour Beatty Living Places Ltd,09/08/2018,,901.30,Other Contracted Services,"391400 - Works - Construction, Repair & Maintenance"
Solihull MBC,Managed Growth and Communities,Highways & Transport Services,Balfour Beatty Living Places Ltd,09/08/2018,,211.32,Other Contracted Services,"391400 - Works - Construction, Repair & Maintenance"
Solihull MBC,Managed Growth and Communities,Highways & Transport Services,Balfour Beatty Living Places Ltd,09/08/2018,,72.78,Other Contracted Services,"391400 - Works - Construction, Repair & Maintenance"
Solihull MBC,Managed Growth and Communities,Highways & Transport Services,Balfour Beatty Living Places Ltd,09/08/2018,,47.17,Other Contracted Services,"391400 - Works - Construction, Repair & Maintenance"
Solihull MBC,Managed Growth and Communities,Highways & Transport Services,Balfour Beatty Living Places Ltd,09/08/2018,,24.47,Other Contracted Services,"391400 - Works - Construction, Repair & Maintenance"
Solihull MBC,Managed Growth and Communities,Highways & Transport Services,Balfour Beatty Living Places Ltd,09/08/2018,,41.50,Other Contracted Services,"391400 - Works - Construction, Repair & Maintenance"
Solihull MBC,Managed Growth and Communities,Highways & Transport Services,Balfour Beatty Living Places Ltd,09/08/2018,,300.54,Other Contracted Services,"391400 - Works - Construction, Repair & Maintenance"
Solihull MBC,Managed Growth and Communities,Highways & Transport Services,Balfour Beatty Living Places Ltd,09/08/2018,,72.78,Other Contracted Services,"391400 - Works - Construction, Repair & Maintenance"
Solihull MBC,Managed Growth and Communities,Highways & Transport Services,Balfour Beatty Living Places Ltd,09/08/2018,,72.78,Other Contracted Services,"391400 - Works - Construction, Repair & Maintenance"
Solihull MBC,Managed Growth and Communities,Highways & Transport Services,Balfour Beatty Living Places Ltd,09/08/2018,,72.78,Other Contracted Services,"391400 - Works - Construction, Repair & Maintenance"
Solihull MBC,Managed Growth and Communities,Highways & Transport Services,Balfour Beatty Living Places Ltd,09/08/2018,,143.54,Other Contracted Services,"391400 - Works - Construction, Repair & Maintenance"
Solihull MBC,Managed Growth and Communities,Highways & Transport Services,Balfour Beatty Living Places Ltd,09/08/2018,,71.64,Other Contracted Services,"391400 - Works - Construction, Repair & Maintenance"
Solihull MBC,Managed Growth and Communities,Highways & Transport Services,Balfour Beatty Living Places Ltd,09/08/2018,,492.90,Other Contracted Services,"391400 - Works - Construction, Repair & Maintenance"
Solihull MBC,Managed Growth and Communities,Highways & Transport Services,Balfour Beatty Living Places Ltd,09/08/2018,,72.78,Other Contracted Services,"391400 - Works - Construction, Repair & Maintenance"
Solihull MBC,Managed Growth and Communities,Highways & Transport Services,Balfour Beatty Living Places Ltd,09/08/2018,,102.36,Other Contracted Services,"391400 - Works - Construction, Repair & Maintenance"
Solihull MBC,Managed Growth and Communities,Highways & Transport Services,Balfour Beatty Living Places Ltd,09/08/2018,,145.56,Other Contracted Services,"391400 - Works - Construction, Repair & Maintenance"
Solihull MBC,Managed Growth and Communities,Highways & Transport Services,Balfour Beatty Living Places Ltd,09/08/2018,,23.59,Other Contracted Services,"391400 - Works - Construction, Repair & Maintenance"
Solihull MBC,Managed Growth and Communities,Highways & Transport Services,Balfour Beatty Living Places Ltd,09/08/2018,,23.59,Other Contracted Services,"391400 - Works - Construction, Repair & Maintenance"
Solihull MBC,Managed Growth and Communities,Highways & Transport Services,Balfour Beatty Living Places Ltd,09/08/2018,,155.76,Other Contracted Services,"391400 - Works - Construction, Repair & Maintenance"
Solihull MBC,Managed Growth and Communities,Highways & Transport Services,Balfour Beatty Living Places Ltd,09/08/2018,,23.59,Other Contracted Services,"391400 - Works - Construction, Repair & Maintenance"
Solihull MBC,Managed Growth and Communities,Highways & Transport Services,Balfour Beatty Living Places Ltd,09/08/2018,,72.78,Other Contracted Services,"391400 - Works - Construction, Repair & Maintenance"
Solihull MBC,Managed Growth and Communities,Highways & Transport Services,Balfour Beatty Living Places Ltd,09/08/2018,,130.75,Other Contracted Services,"391400 - Works - Construction, Repair & Maintenance"
Solihull MBC,Managed Growth and Communities,Highways & Transport Services,Balfour Beatty Living Places Ltd,09/08/2018,,218.52,Other Contracted Services,"391400 - Works - Construction, Repair & Maintenance"
Solihull MBC,Managed Growth and Communities,Highways & Transport Services,Balfour Beatty Living Places Ltd,09/08/2018,,61.96,Other Contracted Services,"391400 - Works - Construction, Repair & Maintenance"
Solihull MBC,Managed Growth and Communities,Highways & Transport Services,Balfour Beatty Living Places Ltd,09/08/2018,,72.78,Other Contracted Services,"391400 - Works - Construction, Repair & Maintenance"
Solihull MBC,Managed Growth and Communities,Highways & Transport Services,Balfour Beatty Living Places Ltd,09/08/2018,,57.59,Other Contracted Services,"391400 - Works - Construction, Repair & Maintenance"
Solihull MBC,Managed Growth and Communities,Highways & Transport Services,Balfour Beatty Living Places Ltd,09/08/2018,,46.41,Other Contracted Services,"391400 - Works - Construction, Repair & Maintenance"
Solihull MBC,Managed Growth and Communities,Highways & Transport Services,Balfour Beatty Living Places Ltd,09/08/2018,,70.44,Other Contracted Services,"391400 - Works - Construction, Repair & Maintenance"
Solihull MBC,Managed Growth and Communities,Highways & Transport Services,Balfour Beatty Living Places Ltd,09/08/2018,,24.47,Other Contracted Services,"391400 - Works - Construction, Repair & Maintenance"
Solihull MBC,Managed Growth and Communities,Highways & Transport Services,Balfour Beatty Living Places Ltd,09/08/2018,,52.12,Other Contracted Services,"391400 - Works - Construction, Repair & Maintenance"
Solihull MBC,Managed Growth and Communities,Highways & Transport Services,Balfour Beatty Living Places Ltd,09/08/2018,,211.85,Other Contracted Services,"391400 - Works - Construction, Repair & Maintenance"
Solihull MBC,Managed Growth and Communities,Highways & Transport Services,Balfour Beatty Living Places Ltd,09/08/2018,,72.78,Other Contracted Services,"391400 - Works - Construction, Repair & Maintenance"
Solihull MBC,Managed Growth and Communities,Highways & Transport Services,Balfour Beatty Living Places Ltd,09/08/2018,,23.59,Other Contracted Services,"391400 - Works - Construction, Repair & Maintenance"
Solihull MBC,Managed Growth and Communities,Highways & Transport Services,Balfour Beatty Living Places Ltd,09/08/2018,,72.78,Other Contracted Services,"391400 - Works - Construction, Repair & Maintenance"
Solihull MBC,Managed Growth and Communities,Highways & Transport Services,Balfour Beatty Living Places Ltd,09/08/2018,,47.17,Other Contracted Services,"391400 - Works - Construction, Repair & Maintenance"
Solihull MBC,Managed Growth and Communities,Highways & Transport Services,Balfour Beatty Living Places Ltd,09/08/2018,,72.78,Other Contracted Services,"391400 - Works - Construction, Repair & Maintenance"
Solihull MBC,Managed Growth and Communities,Highways & Transport Services,Balfour Beatty Living Places Ltd,09/08/2018,,174.05,Other Contracted Services,"391400 - Works - Construction, Repair & Maintenance"
Solihull MBC,Managed Growth and Communities,Highways & Transport Services,Balfour Beatty Living Places Ltd,09/08/2018,,1305.27,Other Contracted Services,"391400 - Works - Construction, Repair & Maintenance"
Solihull MBC,Managed Growth and Communities,Highways & Transport Services,Balfour Beatty Living Places Ltd,09/08/2018,,3798.37,Other Contracted Services,"391400 - Works - Construction, Repair & Maintenance"
Solihull MBC,Managed Growth and Communities,Highways & Transport Services,Balfour Beatty Living Places Ltd,09/08/2018,,990.08,Other Contracted Services,"391400 - Works - Construction, Repair & Maintenance"
Solihull MBC,Managed Growth and Communities,Highways & Transport Services,Balfour Beatty Living Places Ltd,09/08/2018,,55.08,Other Contracted Services,"391400 - Works - Construction, Repair & Maintenance"
Solihull MBC,Managed Growth and Communities,Highways & Transport Services,Balfour Beatty Living Places Ltd,09/08/2018,,2000.00,Other Contracted Services,"391400 - Works - Construction, Repair & Maintenance"
Solihull MBC,Managed Growth and Communities,Highways & Transport Services,Balfour Beatty Living Places Ltd,09/08/2018,,240.57,Other Contracted Services,"391400 - Works - Construction, Repair & Maintenance"
Solihull MBC,Managed Growth and Communities,Highways & Transport Services,Balfour Beatty Living Places Ltd,09/08/2018,,61.96,Other Contracted Services,"391400 - Works - Construction, Repair & Maintenance"
Solihull MBC,Managed Growth and Communities,Highways & Transport Services,Balfour Beatty Living Places Ltd,09/08/2018,,47.17,Other Contracted Services,"391400 - Works - Construction, Repair & Maintenance"
Solihull MBC,Managed Growth and Communities,Highways & Transport Services,Balfour Beatty Living Places Ltd,09/08/2018,,23.59,Other Contracted Services,"391400 - Works - Construction, Repair & Maintenance"
Solihull MBC,Managed Growth and Communities,Highways & Transport Services,Balfour Beatty Living Places Ltd,09/08/2018,,23.59,Other Contracted Services,"391400 - Works - Construction, Repair & Maintenance"
Solihull MBC,Managed Growth and Communities,Highways & Transport Services,Balfour Beatty Living Places Ltd,09/08/2018,,57.59,Other Contracted Services,"391400 - Works - Construction, Repair & Maintenance"
Solihull MBC,Managed Growth and Communities,Highways & Transport Services,Balfour Beatty Living Places Ltd,09/08/2018,,117.86,Other Contracted Services,"391400 - Works - Construction, Repair & Maintenance"
Solihull MBC,Managed Growth and Communities,Highways & Transport Services,Balfour Beatty Living Places Ltd,09/08/2018,,151.00,Other Contracted Services,"391400 - Works - Construction, Repair & Maintenance"
Solihull MBC,Managed Growth and Communities,Highways & Transport Services,Balfour Beatty Living Places Ltd,09/08/2018,,72.78,Other Contracted Services,"391400 - Works - Construction, Repair & Maintenance"
Solihull MBC,Managed Growth and Communities,Highways & Transport Services,Balfour Beatty Living Places Ltd,09/08/2018,,48.94,Other Contracted Services,"391400 - Works - Construction, Repair & Maintenance"
Solihull MBC,Managed Growth and Communities,Highways & Transport Services,Balfour Beatty Living Places Ltd,09/08/2018,,74.07,Other Contracted Services,"391400 - Works - Construction, Repair & Maintenance"
Solihull MBC,Managed Growth and Communities,Highways & Transport Services,Balfour Beatty Living Places Ltd,09/08/2018,,72.78,Other Contracted Services,"391400 - Works - Construction, Repair & Maintenance"
Solihull MBC,Managed Growth and Communities,Highways & Transport Services,Balfour Beatty Living Places Ltd,09/08/2018,,72.78,Other Contracted Services,"391400 - Works - Construction, Repair & Maintenance"
Solihull MBC,Managed Growth and Communities,Highways & Transport Services,Balfour Beatty Living Places Ltd,09/08/2018,,104.60,Other Contracted Services,"391400 - Works - Construction, Repair & Maintenance"
Solihull MBC,Managed Growth and Communities,Highways & Transport Services,Balfour Beatty Living Places Ltd,09/08/2018,,57.59,Other Contracted Services,"391400 - Works - Construction, Repair & Maintenance"
Solihull MBC,Managed Growth and Communities,Highways & Transport Services,Balfour Beatty Living Places Ltd,09/08/2018,,245.48,Other Contracted Services,"391400 - Works - Construction, Repair & Maintenance"
Solihull MBC,Managed Growth and Communities,Highways & Transport Services,Balfour Beatty Living Places Ltd,09/08/2018,,223.78,Other Contracted Services,"391400 - Works - Construction, Repair & Maintenance"
Solihull MBC,Managed Growth and Communities,Highways & Transport Services,Balfour Beatty Living Places Ltd,09/08/2018,,78.45,Other Contracted Services,"391400 - Works - Construction, Repair & Maintenance"
Solihull MBC,Managed Growth and Communities,Highways & Transport Services,Balfour Beatty Living Places Ltd,09/08/2018,,78.23,Other Contracted Services,"391400 - Works - Construction, Repair & Maintenance"
Solihull MBC,Managed Growth and Communities,Highways & Transport Services,Balfour Beatty Living Places Ltd,09/08/2018,,85.44,Other Contracted Services,"391400 - Works - Construction, Repair & Maintenance"
Solihull MBC,Managed Growth and Communities,Highways & Transport Services,Balfour Beatty Living Places Ltd,09/08/2018,,300.54,Other Contracted Services,"391400 - Works - Construction, Repair & Maintenance"
Solihull MBC,Managed Growth and Communities,Highways & Transport Services,Balfour Beatty Living Places Ltd,09/08/2018,,17.10,Other Contracted Services,"391400 - Works - Construction, Repair & Maintenance"
Solihull MBC,Managed Growth and Communities,Highways & Transport Services,Balfour Beatty Living Places Ltd,09/08/2018,,173.35,Other Contracted Services,"391400 - Works - Construction, Repair & Maintenance"
Solihull MBC,Managed Growth and Communities,Highways & Transport Services,Balfour Beatty Living Places Ltd,09/08/2018,,24.47,Other Contracted Services,"391400 - Works - Construction, Repair & Maintenance"
Solihull MBC,Managed Growth and Communities,Highways & Transport Services,Balfour Beatty Living Places Ltd,09/08/2018,,2401.58,Other Contracted Services,"391400 - Works - Construction, Repair & Maintenance"
Solihull MBC,Managed Growth and Communities,Highways & Transport Services,Balfour Beatty Living Places Ltd,09/08/2018,,113.56,Other Contracted Services,"391400 - Works - Construction, Repair & Maintenance"
Solihull MBC,Managed Growth and Communities,Highways & Transport Services,Balfour Beatty Living Places Ltd,09/08/2018,,16.92,Other Contracted Services,"391400 - Works - Construction, Repair & Maintenance"
Solihull MBC,Managed Growth and Communities,Highways & Transport Services,Balfour Beatty Living Places Ltd,09/08/2018,,52.12,Other Contracted Services,"391400 - Works - Construction, Repair & Maintenance"
Solihull MBC,Managed Growth and Communities,Highways & Transport Services,Balfour Beatty Living Places Ltd,09/08/2018,,23.59,Other Contracted Services,"391400 - Works - Construction, Repair & Maintenance"
Solihull MBC,Managed Growth and Communities,Highways & Transport Services,Balfour Beatty Living Places Ltd,09/08/2018,,151.00,Other Contracted Services,"391400 - Works - Construction, Repair & Maintenance"
Solihull MBC,Managed Growth and Communities,Highways & Transport Services,Balfour Beatty Living Places Ltd,09/08/2018,,24.47,Other Contracted Services,"391400 - Works - Construction, Repair & Maintenance"
Solihull MBC,Managed Growth and Communities,Highways & Transport Services,Balfour Beatty Living Places Ltd,09/08/2018,,72.78,Other Contracted Services,"391400 - Works - Construction, Repair & Maintenance"
Solihull MBC,Managed Growth and Communities,Highways & Transport Services,Balfour Beatty Living Places Ltd,09/08/2018,,155.76,Other Contracted Services,"391400 - Works - Construction, Repair & Maintenance"
Solihull MBC,Managed Growth and Communities,Highways & Transport Services,Balfour Beatty Living Places Ltd,09/08/2018,,155.76,Other Contracted Services,"391400 - Works - Construction, Repair & Maintenance"
Solihull MBC,Managed Growth and Communities,Highways & Transport Services,Balfour Beatty Living Places Ltd,09/08/2018,,109.50,Other Contracted Services,"391400 - Works - Construction, Repair & Maintenance"
Solihull MBC,Managed Growth and Communities,Highways & Transport Services,Balfour Beatty Living Places Ltd,09/08/2018,,23.59,Other Contracted Services,"391400 - Works - Construction, Repair & Maintenance"
Solihull MBC,Managed Growth and Communities,Highways & Transport Services,Balfour Beatty Living Places Ltd,09/08/2018,,118.75,Other Contracted Services,"391400 - Works - Construction, Repair & Maintenance"
Solihull MBC,Managed Growth and Communities,Highways & Transport Services,Balfour Beatty Living Places Ltd,09/08/2018,,61.96,Other Contracted Services,"391400 - Works - Construction, Repair & Maintenance"
Solihull MBC,Managed Growth and Communities,Highways & Transport Services,Balfour Beatty Living Places Ltd,09/08/2018,,24.47,Other Contracted Services,"391400 - Works - Construction, Repair & Maintenance"
Solihull MBC,Managed Growth and Communities,Highways & Transport Services,Balfour Beatty Living Places Ltd,09/08/2018,,72.78,Other Contracted Services,"391400 - Works - Construction, Repair & Maintenance"
Solihull MBC,Managed Growth and Communities,Highways & Transport Services,Balfour Beatty Living Places Ltd,09/08/2018,,72.78,Other Contracted Services,"391400 - Works - Construction, Repair & Maintenance"
Solihull MBC,Managed Growth and Communities,Highways & Transport Services,Balfour Beatty Living Places Ltd,09/08/2018,,23.59,Other Contracted Services,"391400 - Works - Construction, Repair & Maintenance"
Solihull MBC,Managed Growth and Communities,Highways & Transport Services,Balfour Beatty Living Places Ltd,09/08/2018,,61.96,Other Contracted Services,"391400 - Works - Construction, Repair & Maintenance"
Solihull MBC,Managed Growth and Communities,Highways & Transport Services,Balfour Beatty Living Places Ltd,09/08/2018,,61.96,Other Contracted Services,"391400 - Works - Construction, Repair & Maintenance"
Solihull MBC,Managed Growth and Communities,Highways & Transport Services,Balfour Beatty Living Places Ltd,09/08/2018,,61.96,Other Contracted Services,"391400 - Works - Construction, Repair & Maintenance"
Solihull MBC,Managed Growth and Communities,Highways & Transport Services,Balfour Beatty Living Places Ltd,09/08/2018,,52.30,Other Contracted Services,"391400 - Works - Construction, Repair & Maintenance"
Solihull MBC,Managed Growth and Communities,Highways & Transport Services,Balfour Beatty Living Places Ltd,09/08/2018,,211.32,Other Contracted Services,"391400 - Works - Construction, Repair & Maintenance"
Solihull MBC,Managed Growth and Communities,Highways & Transport Services,Balfour Beatty Living Places Ltd,09/08/2018,,81.96,Other Contracted Services,"391400 - Works - Construction, Repair & Maintenance"
Solihull MBC,Managed Growth and Communities,Highways & Transport Services,Balfour Beatty Living Places Ltd,09/08/2018,,61.96,Other Contracted Services,"391400 - Works - Construction, Repair & Maintenance"
Solihull MBC,Managed Growth and Communities,Highways & Transport Services,Balfour Beatty Living Places Ltd,09/08/2018,,813.11,Other Contracted Services,"391400 - Works - Construction, Repair & Maintenance"
Solihull MBC,Managed Growth and Communities,Highways & Transport Services,Balfour Beatty Living Places Ltd,09/08/2018,,122.74,Other Contracted Services,"391400 - Works - Construction, Repair & Maintenance"
Solihull MBC,Managed Growth and Communities,Highways & Transport Services,Balfour Beatty Living Places Ltd,09/08/2018,,218.34,Other Contracted Services,"391400 - Works - Construction, Repair & Maintenance"
Solihull MBC,Managed Growth and Communities,Highways & Transport Services,Balfour Beatty Living Places Ltd,09/08/2018,,72.78,Other Contracted Services,"391400 - Works - Construction, Repair & Maintenance"
Solihull MBC,Managed Growth and Communities,Highways & Transport Services,Balfour Beatty Living Places Ltd,09/08/2018,,299.71,Other Contracted Services,"391400 - Works - Construction, Repair & Maintenance"
Solihull MBC,Managed Growth and Communities,Highways & Transport Services,Balfour Beatty Living Places Ltd,09/08/2018,,72.78,Other Contracted Services,"391400 - Works - Construction, Repair & Maintenance"
Solihull MBC,Managed Growth and Communities,Highways & Transport Services,Balfour Beatty Living Places Ltd,09/08/2018,,72.78,Other Contracted Services,"391400 - Works - Construction, Repair & Maintenance"
Solihull MBC,Managed Growth and Communities,Highways & Transport Services,Balfour Beatty Living Places Ltd,09/08/2018,,84.79,Other Contracted Services,"391400 - Works - Construction, Repair & Maintenance"
Solihull MBC,Managed Growth and Communities,Highways & Transport Services,Balfour Beatty Living Places Ltd,09/08/2018,,119.95,Other Contracted Services,"391400 - Works - Construction, Repair & Maintenance"
Solihull MBC,Managed Growth and Communities,Highways & Transport Services,Balfour Beatty Living Places Ltd,09/08/2018,,47.17,Other Contracted Services,"391400 - Works - Construction, Repair & Maintenance"
Solihull MBC,Managed Growth and Communities,Highways & Transport Services,Balfour Beatty Living Places Ltd,09/08/2018,,49.12,Other Contracted Services,"391400 - Works - Construction, Repair & Maintenance"
Solihull MBC,Managed Growth and Communities,Highways & Transport Services,Balfour Beatty Living Places Ltd,09/08/2018,,47.18,Other Contracted Services,"391400 - Works - Construction, Repair & Maintenance"
Solihull MBC,Managed Growth and Communities,Highways & Transport Services,Balfour Beatty Living Places Ltd,09/08/2018,,23.59,Other Contracted Services,"391400 - Works - Construction, Repair & Maintenance"
Solihull MBC,Managed Growth and Communities,Highways & Transport Services,Balfour Beatty Living Places Ltd,09/08/2018,,23.59,Other Contracted Services,"391400 - Works - Construction, Repair & Maintenance"
Solihull MBC,Managed Growth and Communities,Highways & Transport Services,Balfour Beatty Living Places Ltd,09/08/2018,,61.96,Other Contracted Services,"391400 - Works - Construction, Repair & Maintenance"
Solihull MBC,Managed Growth and Communities,Highways & Transport Services,Balfour Beatty Living Places Ltd,09/08/2018,,61.96,Other Contracted Services,"391400 - Works - Construction, Repair & Maintenance"
Solihull MBC,Managed Growth and Communities,Highways & Transport Services,Balfour Beatty Living Places Ltd,09/08/2018,,158.90,Other Contracted Services,"391400 - Works - Construction, Repair & Maintenance"
Solihull MBC,Managed Growth and Communities,Highways & Transport Services,Balfour Beatty Living Places Ltd,09/08/2018,,61.96,Other Contracted Services,"391400 - Works - Construction, Repair & Maintenance"
Solihull MBC,Managed Growth and Communities,Highways & Transport Services,Balfour Beatty Living Places Ltd,09/08/2018,,18.66,Other Contracted Services,"391400 - Works - Construction, Repair & Maintenance"
Solihull MBC,Managed Growth and Communities,Highways & Transport Services,Balfour Beatty Living Places Ltd,09/08/2018,,72.78,Other Contracted Services,"391400 - Works - Construction, Repair & Maintenance"
Solihull MBC,Managed Growth and Communities,Highways & Transport Services,Balfour Beatty Living Places Ltd,09/08/2018,,72.78,Other Contracted Services,"391400 - Works - Construction, Repair & Maintenance"
Solihull MBC,Managed Growth and Communities,Highways & Transport Services,Balfour Beatty Living Places Ltd,09/08/2018,,9.33,Other Contracted Services,"391400 - Works - Construction, Repair & Maintenance"
Solihull MBC,Managed Growth and Communities,Highways & Transport Services,Balfour Beatty Living Places Ltd,09/08/2018,,58.93,Other Contracted Services,"391400 - Works - Construction, Repair & Maintenance"
Solihull MBC,Managed Growth and Communities,Highways & Transport Services,Balfour Beatty Living Places Ltd,09/08/2018,,206.74,Other Contracted Services,"391400 - Works - Construction, Repair & Maintenance"
Solihull MBC,Managed Growth and Communities,Highways & Transport Services,Balfour Beatty Living Places Ltd,09/08/2018,,206.74,Other Contracted Services,"391400 - Works - Construction, Repair & Maintenance"
Solihull MBC,Managed Growth and Communities,Highways & Transport Services,Balfour Beatty Living Places Ltd,09/08/2018,,71.20,Other Contracted Services,"391400 - Works - Construction, Repair & Maintenance"
Solihull MBC,Managed Growth and Communities,Highways & Transport Services,Balfour Beatty Living Places Ltd,09/08/2018,,72.78,Other Contracted Services,"391400 - Works - Construction, Repair & Maintenance"
Solihull MBC,Managed Growth and Communities,Highways & Transport Services,Balfour Beatty Living Places Ltd,09/08/2018,,78.45,Other Contracted Services,"391400 - Works - Construction, Repair & Maintenance"
Solihull MBC,Managed Growth and Communities,Highways & Transport Services,Balfour Beatty Living Places Ltd,09/08/2018,,235.73,Other Contracted Services,"391400 - Works - Construction, Repair & Maintenance"
Solihull MBC,Managed Growth and Communities,Highways & Transport Services,Balfour Beatty Living Places Ltd,09/08/2018,,24.47,Other Contracted Services,"391400 - Works - Construction, Repair & Maintenance"
Solihull MBC,Managed Growth and Communities,Highways & Transport Services,Balfour Beatty Living Places Ltd,09/08/2018,,65.38,Other Contracted Services,"391400 - Works - Construction, Repair & Maintenance"
Solihull MBC,Managed Growth and Communities,Highways & Transport Services,Balfour Beatty Living Places Ltd,09/08/2018,,57.59,Other Contracted Services,"391400 - Works - Construction, Repair & Maintenance"
Solihull MBC,Managed Growth and Communities,Highways & Transport Services,Balfour Beatty Living Places Ltd,09/08/2018,,60.15,Other Contracted Services,"391400 - Works - Construction, Repair & Maintenance"
Solihull MBC,Managed Growth and Communities,Highways & Transport Services,Balfour Beatty Living Places Ltd,09/08/2018,,39.23,Other Contracted Services,"391400 - Works - Construction, Repair & Maintenance"
Solihull MBC,Managed Growth and Communities,Highways & Transport Services,Balfour Beatty Living Places Ltd,09/08/2018,,47.17,Other Contracted Services,"391400 - Works - Construction, Repair & Maintenance"
Solihull MBC,Managed Growth and Communities,Highways & Transport Services,Balfour Beatty Living Places Ltd,09/08/2018,,148.60,Other Contracted Services,"391400 - Works - Construction, Repair & Maintenance"
Solihull MBC,Managed Growth and Communities,Highways & Transport Services,Balfour Beatty Living Places Ltd,09/08/2018,,18.66,Other Contracted Services,"391400 - Works - Construction, Repair & Maintenance"
Solihull MBC,Managed Growth and Communities,Highways & Transport Services,Balfour Beatty Living Places Ltd,09/08/2018,,48.94,Other Contracted Services,"391400 - Works - Construction, Repair & Maintenance"
Solihull MBC,Managed Growth and Communities,Highways & Transport Services,Balfour Beatty Living Places Ltd,09/08/2018,,47.17,Other Contracted Services,"391400 - Works - Construction, Repair & Maintenance"
Solihull MBC,Managed Growth and Communities,Highways & Transport Services,Balfour Beatty Living Places Ltd,09/08/2018,,63441.23,Other Contracted Services,"391400 - Works - Construction, Repair & Maintenance"
Solihull MBC,Managed Growth and Communities,Highways & Transport Services,Balfour Beatty Living Places Ltd,09/08/2018,,47.17,Other Contracted Services,"391400 - Works - Construction, Repair & Maintenance"
Solihull MBC,Managed Growth and Communities,Highways & Transport Services,Balfour Beatty Living Places Ltd,09/08/2018,,23.59,Other Contracted Services,"391400 - Works - Construction, Repair & Maintenance"
Solihull MBC,Managed Growth and Communities,Highways & Transport Services,Balfour Beatty Living Places Ltd,09/08/2018,,72.78,Other Contracted Services,"391400 - Works - Construction, Repair & Maintenance"
Solihull MBC,Managed Growth and Communities,Highways & Transport Services,Balfour Beatty Living Places Ltd,09/08/2018,,157.95,Other Contracted Services,"391400 - Works - Construction, Repair & Maintenance"
Solihull MBC,Managed Growth and Communities,Highways & Transport Services,Balfour Beatty Living Places Ltd,09/08/2018,,109.50,Other Contracted Services,"391400 - Works - Construction, Repair & Maintenance"
Solihull MBC,Managed Growth and Communities,Highways & Transport Services,Balfour Beatty Living Places Ltd,09/08/2018,,109.50,Other Contracted Services,"391400 - Works - Construction, Repair & Maintenance"
Solihull MBC,Managed Growth and Communities,Highways & Transport Services,Balfour Beatty Living Places Ltd,09/08/2018,,24.47,Other Contracted Services,"391400 - Works - Construction, Repair & Maintenance"
Solihull MBC,Managed Growth and Communities,Highways & Transport Services,Balfour Beatty Living Places Ltd,09/08/2018,,84.79,Other Contracted Services,"391400 - Works - Construction, Repair & Maintenance"
Solihull MBC,Managed Growth and Communities,Highways & Transport Services,Balfour Beatty Living Places Ltd,09/08/2018,,74.43,Other Contracted Services,"391400 - Works - Construction, Repair & Maintenance"
Solihull MBC,Managed Growth and Communities,Highways & Transport Services,Balfour Beatty Living Places Ltd,09/08/2018,,72.78,Other Contracted Services,"391400 - Works - Construction, Repair & Maintenance"
Solihull MBC,Managed Growth and Communities,Highways & Transport Services,Balfour Beatty Living Places Ltd,09/08/2018,,47.17,Other Contracted Services,"391400 - Works - Construction, Repair & Maintenance"
Solihull MBC,Managed Growth and Communities,Highways & Transport Services,Balfour Beatty Living Places Ltd,09/08/2018,,56.96,Other Contracted Services,"391400 - Works - Construction, Repair & Maintenance"
Solihull MBC,Managed Growth and Communities,Highways & Transport Services,Balfour Beatty Living Places Ltd,09/08/2018,,206.74,Other Contracted Services,"391400 - Works - Construction, Repair & Maintenance"
Solihull MBC,Managed Growth and Communities,Highways & Transport Services,Balfour Beatty Living Places Ltd,09/08/2018,,72.78,Other Contracted Services,"391400 - Works - Construction, Repair & Maintenance"
Solihull MBC,Managed Growth and Communities,Highways & Transport Services,Balfour Beatty Living Places Ltd,09/08/2018,,156.90,Other Contracted Services,"391400 - Works - Construction, Repair & Maintenance"
Solihull MBC,Managed Growth and Communities,Highways & Transport Services,Balfour Beatty Living Places Ltd,09/08/2018,,71.08,Other Contracted Services,"391400 - Works - Construction, Repair & Maintenance"
Solihull MBC,Managed Growth and Communities,Highways & Transport Services,Balfour Beatty Living Places Ltd,09/08/2018,,461.39,Other Contracted Services,"391400 - Works - Construction, Repair & Maintenance"
Solihull MBC,Managed Growth and Communities,Highways & Transport Services,Balfour Beatty Living Places Ltd,09/08/2018,,1626.22,Other Contracted Services,"391400 - Works - Construction, Repair & Maintenance"
Solihull MBC,Managed Growth and Communities,Highways & Transport Services,Balfour Beatty Living Places Ltd,09/08/2018,,813.11,Other Contracted Services,"391400 - Works - Construction, Repair & Maintenance"
Solihull MBC,Managed Growth and Communities,Highways & Transport Services,Balfour Beatty Living Places Ltd,09/08/2018,,206.74,Other Contracted Services,"391400 - Works - Construction, Repair & Maintenance"
Solihull MBC,Managed Growth and Communities,Highways & Transport Services,Balfour Beatty Living Places Ltd,09/08/2018,,24.47,Other Contracted Services,"391400 - Works - Construction, Repair & Maintenance"
Solihull MBC,Managed Growth and Communities,Highways & Transport Services,Balfour Beatty Living Places Ltd,09/08/2018,,250.23,Other Contracted Services,"391400 - Works - Construction, Repair & Maintenance"
Solihull MBC,Managed Growth and Communities,Highways & Transport Services,Balfour Beatty Living Places Ltd,09/08/2018,,464.10,Other Contracted Services,"391400 - Works - Construction, Repair & Maintenance"
Solihull MBC,Managed Growth and Communities,Highways & Transport Services,Balfour Beatty Living Places Ltd,09/08/2018,,109.50,Other Contracted Services,"391400 - Works - Construction, Repair & Maintenance"
Solihull MBC,Managed Growth and Communities,Highways & Transport Services,Balfour Beatty Living Places Ltd,09/08/2018,,72.78,Other Contracted Services,"391400 - Works - Construction, Repair & Maintenance"
Solihull MBC,Managed Growth and Communities,Highways & Transport Services,Balfour Beatty Living Places Ltd,09/08/2018,,174.13,Other Contracted Services,"391400 - Works - Construction, Repair & Maintenance"
Solihull MBC,Managed Growth and Communities,Highways & Transport Services,Balfour Beatty Living Places Ltd,09/08/2018,,186.12,Other Contracted Services,"391400 - Works - Construction, Repair & Maintenance"
Solihull MBC,Managed Growth and Communities,Highways & Transport Services,Balfour Beatty Living Places Ltd,09/08/2018,,305.54,Other Contracted Services,"391400 - Works - Construction, Repair & Maintenance"
Solihull MBC,Managed Growth and Communities,Highways & Transport Services,Balfour Beatty Living Places Ltd,09/08/2018,,72.78,Other Contracted Services,"391400 - Works - Construction, Repair & Maintenance"
Solihull MBC,Managed Growth and Communities,Highways & Transport Services,Balfour Beatty Living Places Ltd,09/08/2018,,204.07,Other Contracted Services,"391400 - Works - Construction, Repair & Maintenance"
Solihull MBC,Managed Growth and Communities,Highways & Transport Services,Balfour Beatty Living Places Ltd,09/08/2018,,47.17,Other Contracted Services,"391400 - Works - Construction, Repair & Maintenance"
Solihull MBC,Managed Growth and Communities,Highways & Transport Services,Balfour Beatty Living Places Ltd,09/08/2018,,57.59,Other Contracted Services,"391400 - Works - Construction, Repair & Maintenance"
Solihull MBC,Managed Growth and Communities,Highways & Transport Services,Balfour Beatty Living Places Ltd,09/08/2018,,208.92,Other Contracted Services,"391400 - Works - Construction, Repair & Maintenance"
Solihull MBC,Managed Growth and Communities,Highways & Transport Services,Balfour Beatty Living Places Ltd,09/08/2018,,12.57,Other Contracted Services,"391400 - Works - Construction, Repair & Maintenance"
Solihull MBC,Managed Growth and Communities,Highways & Transport Services,Balfour Beatty Living Places Ltd,09/08/2018,,54281.90,Other Contracted Services,"391400 - Works - Construction, Repair & Maintenance"
Solihull MBC,Managed Growth and Communities,Highways & Transport Services,Balfour Beatty Living Places Ltd,09/08/2018,,172.77,Other Contracted Services,"391400 - Works - Construction, Repair & Maintenance"
Solihull MBC,Managed Growth and Communities,Highways & Transport Services,Balfour Beatty Living Places Ltd,09/08/2018,,6.42,Other Contracted Services,"391400 - Works - Construction, Repair & Maintenance"
Solihull MBC,Managed Growth and Communities,Highways & Transport Services,Balfour Beatty Living Places Ltd,09/08/2018,,154.79,Other Contracted Services,"391400 - Works - Construction, Repair & Maintenance"
Solihull MBC,Managed Growth and Communities,Highways & Transport Services,Balfour Beatty Living Places Ltd,09/08/2018,,485.80,Other Contracted Services,"391400 - Works - Construction, Repair & Maintenance"
Solihull MBC,Managed Growth and Communities,Highways & Transport Services,Balfour Beatty Living Places Ltd,09/08/2018,,279.52,Other Contracted Services,"391400 - Works - Construction, Repair & Maintenance"
Solihull MBC,Managed Growth and Communities,Highways & Transport Services,Balfour Beatty Living Places Ltd,09/08/2018,,143.50,Other Contracted Services,"391400 - Works - Construction, Repair & Maintenance"
Solihull MBC,Managed Growth and Communities,Highways & Transport Services,Balfour Beatty Living Places Ltd,09/08/2018,,413.45,Other Contracted Services,"391400 - Works - Construction, Repair & Maintenance"
Solihull MBC,Managed Growth and Communities,Highways & Transport Services,Balfour Beatty Living Places Ltd,09/08/2018,,72.78,Other Contracted Services,"391400 - Works - Construction, Repair & Maintenance"
Solihull MBC,Managed Growth and Communities,Highways & Transport Services,Balfour Beatty Living Places Ltd,09/08/2018,,34.38,Other Contracted Services,"391400 - Works - Construction, Repair & Maintenance"
Solihull MBC,Managed Growth and Communities,Highways & Transport Services,Balfour Beatty Living Places Ltd,09/08/2018,,29.47,Other Contracted Services,"391400 - Works - Construction, Repair & Maintenance"
Solihull MBC,Managed Growth and Communities,Highways & Transport Services,Balfour Beatty Living Places Ltd,09/08/2018,,110.57,Other Contracted Services,"391400 - Works - Construction, Repair & Maintenance"
Solihull MBC,Managed Growth and Communities,Highways & Transport Services,Balfour Beatty Living Places Ltd,09/08/2018,,57.59,Other Contracted Services,"391400 - Works - Construction, Repair & Maintenance"
Solihull MBC,Managed Growth and Communities,Highways & Transport Services,Balfour Beatty Living Places Ltd,09/08/2018,,47.17,Other Contracted Services,"391400 - Works - Construction, Repair & Maintenance"
Solihull MBC,Managed Growth and Communities,Highways & Transport Services,Balfour Beatty Living Places Ltd,09/08/2018,,37.22,Other Contracted Services,"391400 - Works - Construction, Repair & Maintenance"
Solihull MBC,Managed Growth and Communities,Highways & Transport Services,Balfour Beatty Living Places Ltd,09/08/2018,,220.11,Other Contracted Services,"391400 - Works - Construction, Repair & Maintenance"
Solihull MBC,Managed Growth and Communities,Highways & Transport Services,Balfour Beatty Living Places Ltd,09/08/2018,,211.32,Other Contracted Services,"391400 - Works - Construction, Repair & Maintenance"
Solihull MBC,Managed Growth and Communities,Highways & Transport Services,Balfour Beatty Living Places Ltd,09/08/2018,,151.00,Other Contracted Services,"391400 - Works - Construction, Repair & Maintenance"
Solihull MBC,Managed Growth and Communities,Highways & Transport Services,Balfour Beatty Living Places Ltd,09/08/2018,,151.00,Other Contracted Services,"391400 - Works - Construction, Repair & Maintenance"
Solihull MBC,Managed Growth and Communities,Highways & Transport Services,Balfour Beatty Living Places Ltd,09/08/2018,,84.79,Other Contracted Services,"391400 - Works - Construction, Repair & Maintenance"
Solihull MBC,Managed Growth and Communities,Highways & Transport Services,Balfour Beatty Living Places Ltd,09/08/2018,,175.53,Other Contracted Services,"391400 - Works - Construction, Repair & Maintenance"
Solihull MBC,Managed Growth and Communities,Highways & Transport Services,Balfour Beatty Living Places Ltd,09/08/2018,,30.62,Other Contracted Services,"391400 - Works - Construction, Repair & Maintenance"
Solihull MBC,Managed Growth and Communities,Highways & Transport Services,Balfour Beatty Living Places Ltd,09/08/2018,,24.47,Other Contracted Services,"391400 - Works - Construction, Repair & Maintenance"
Solihull MBC,Managed Growth and Communities,Highways & Transport Services,Balfour Beatty Living Places Ltd,09/08/2018,,24.47,Other Contracted Services,"391400 - Works - Construction, Repair & Maintenance"
Solihull MBC,Managed Growth and Communities,Highways & Transport Services,Balfour Beatty Living Places Ltd,09/08/2018,,23.59,Other Contracted Services,"391400 - Works - Construction, Repair & Maintenance"
Solihull MBC,Managed Growth and Communities,Highways & Transport Services,Balfour Beatty Living Places Ltd,09/08/2018,,115.18,Other Contracted Services,"391400 - Works - Construction, Repair & Maintenance"
Solihull MBC,Managed Growth and Communities,Highways & Transport Services,Balfour Beatty Living Places Ltd,09/08/2018,,72.78,Other Contracted Services,"391400 - Works - Construction, Repair & Maintenance"
Solihull MBC,Managed Growth and Communities,Highways & Transport Services,Balfour Beatty Living Places Ltd,09/08/2018,,130.75,Other Contracted Services,"391400 - Works - Construction, Repair & Maintenance"
Solihull MBC,Managed Growth and Communities,Highways & Transport Services,Balfour Beatty Living Places Ltd,09/08/2018,,72.78,Other Contracted Services,"391400 - Works - Construction, Repair & Maintenance"
Solihull MBC,Managed Growth and Communities,Highways & Transport Services,Balfour Beatty Living Places Ltd,09/08/2018,,67.28,Other Contracted Services,"391400 - Works - Construction, Repair & Maintenance"
Solihull MBC,Managed Growth and Communities,Highways & Transport Services,Balfour Beatty Living Places Ltd,09/08/2018,,196.36,Other Contracted Services,"391400 - Works - Construction, Repair & Maintenance"
Solihull MBC,Managed Growth and Communities,Highways & Transport Services,Balfour Beatty Living Places Ltd,09/08/2018,,72.78,Other Contracted Services,"391400 - Works - Construction, Repair & Maintenance"
Solihull MBC,Managed Growth and Communities,Highways & Transport Services,Balfour Beatty Living Places Ltd,09/08/2018,,1254.64,Other Contracted Services,"391400 - Works - Construction, Repair & Maintenance"
Solihull MBC,Managed Growth and Communities,Highways & Transport Services,Balfour Beatty Living Places Ltd,09/08/2018,,72.78,Other Contracted Services,"391400 - Works - Construction, Repair & Maintenance"
Solihull MBC,Managed Growth and Communities,Highways & Transport Services,Balfour Beatty Living Places Ltd,09/08/2018,,113.92,Other Contracted Services,"391400 - Works - Construction, Repair & Maintenance"
Solihull MBC,Managed Growth and Communities,Highways & Transport Services,Balfour Beatty Living Places Ltd,09/08/2018,,57.59,Other Contracted Services,"391400 - Works - Construction, Repair & Maintenance"
Solihull MBC,Managed Growth and Communities,Highways & Transport Services,Balfour Beatty Living Places Ltd,09/08/2018,,21.17,Other Contracted Services,"391400 - Works - Construction, Repair & Maintenance"
Solihull MBC,Managed Growth and Communities,Highways & Transport Services,Balfour Beatty Living Places Ltd,09/08/2018,,4964.50,Other Contracted Services,"391400 - Works - Construction, Repair & Maintenance"
Solihull MBC,Managed Growth and Communities,Highways & Transport Services,Balfour Beatty Living Places Ltd,09/08/2018,,394.88,Other Contracted Services,"391400 - Works - Construction, Repair & Maintenance"
Solihull MBC,Managed Growth and Communities,Highways & Transport Services,Balfour Beatty Living Places Ltd,09/08/2018,,387.78,Other Contracted Services,"391400 - Works - Construction, Repair & Maintenance"
Solihull MBC,Managed Growth and Communities,Highways & Transport Services,Balfour Beatty Living Places Ltd,09/08/2018,,24.47,Other Contracted Services,"391400 - Works - Construction, Repair & Maintenance"
Solihull MBC,Managed Growth and Communities,Highways & Transport Services,Balfour Beatty Living Places Ltd,09/08/2018,,84.79,Other Contracted Services,"391400 - Works - Construction, Repair & Maintenance"
Solihull MBC,Managed Growth and Communities,Highways & Transport Services,Balfour Beatty Living Places Ltd,09/08/2018,,27.81,Other Contracted Services,"391400 - Works - Construction, Repair & Maintenance"
Solihull MBC,Managed Growth and Communities,Highways & Transport Services,Balfour Beatty Living Places Ltd,09/08/2018,,3751.93,Other Contracted Services,"391400 - Works - Construction, Repair & Maintenance"
Solihull MBC,Managed Growth and Communities,Highways & Transport Services,Balfour Beatty Living Places Ltd,09/08/2018,,155.76,Other Contracted Services,"391400 - Works - Construction, Repair & Maintenance"
Solihull MBC,Managed Growth and Communities,Highways & Transport Services,Balfour Beatty Living Places Ltd,09/08/2018,,209.50,Other Contracted Services,"391400 - Works - Construction, Repair & Maintenance"
Solihull MBC,Managed Growth and Communities,Highways & Transport Services,Balfour Beatty Living Places Ltd,09/08/2018,,57.59,Other Contracted Services,"391400 - Works - Construction, Repair & Maintenance"
Solihull MBC,Managed Growth and Communities,Highways & Transport Services,Balfour Beatty Living Places Ltd,09/08/2018,,57.59,Other Contracted Services,"391400 - Works - Construction, Repair & Maintenance"
Solihull MBC,Managed Growth and Communities,Highways & Transport Services,Balfour Beatty Living Places Ltd,09/08/2018,,57.59,Other Contracted Services,"391400 - Works - Construction, Repair & Maintenance"
Solihull MBC,Managed Growth and Communities,Highways & Transport Services,Balfour Beatty Living Places Ltd,09/08/2018,,72.78,Other Contracted Services,"391400 - Works - Construction, Repair & Maintenance"
Solihull MBC,Managed Growth and Communities,Highways & Transport Services,Balfour Beatty Living Places Ltd,09/08/2018,,72.78,Other Contracted Services,"391400 - Works - Construction, Repair & Maintenance"
Solihull MBC,Managed Growth and Communities,Highways & Transport Services,Balfour Beatty Living Places Ltd,09/08/2018,,115.18,Other Contracted Services,"391400 - Works - Construction, Repair & Maintenance"
Solihull MBC,Managed Growth and Communities,Highways & Transport Services,Balfour Beatty Living Places Ltd,09/08/2018,,24.47,Other Contracted Services,"391400 - Works - Construction, Repair & Maintenance"
Solihull MBC,Managed Growth and Communities,Highways & Transport Services,Balfour Beatty Living Places Ltd,09/08/2018,,72.78,Other Contracted Services,"391400 - Works - Construction, Repair & Maintenance"
Solihull MBC,Managed Growth and Communities,Highways & Transport Services,Balfour Beatty Living Places Ltd,09/08/2018,,72.78,Other Contracted Services,"391400 - Works - Construction, Repair & Maintenance"
Solihull MBC,Managed Growth and Communities,Highways & Transport Services,Balfour Beatty Living Places Ltd,09/08/2018,,52.30,Other Contracted Services,"391400 - Works - Construction, Repair & Maintenance"
Solihull MBC,Managed Growth and Communities,Highways & Transport Services,Balfour Beatty Living Places Ltd,09/08/2018,,147.33,Other Contracted Services,"391400 - Works - Construction, Repair & Maintenance"
Solihull MBC,Managed Growth and Communities,Highways & Transport Services,Balfour Beatty Living Places Ltd,09/08/2018,,199.14,Other Contracted Services,"391400 - Works - Construction, Repair & Maintenance"
Solihull MBC,Managed Growth and Communities,Highways & Transport Services,Balfour Beatty Living Places Ltd,09/08/2018,,104.76,Other Contracted Services,"391400 - Works - Construction, Repair & Maintenance"
Solihull MBC,Managed Growth and Communities,Highways & Transport Services,Balfour Beatty Living Places Ltd,09/08/2018,,179.14,Other Contracted Services,"391400 - Works - Construction, Repair & Maintenance"
Solihull MBC,Managed Growth and Communities,Highways & Transport Services,Balfour Beatty Living Places Ltd,09/08/2018,,1.00,Other Contracted Services,"391400 - Works - Construction, Repair & Maintenance"
Solihull MBC,Managed Growth and Communities,Highways & Transport Services,Balfour Beatty Living Places Ltd,09/08/2018,,47.07,Other Contracted Services,"391400 - Works - Construction, Repair & Maintenance"
Solihull MBC,Managed Growth and Communities,Highways & Transport Services,Balfour Beatty Living Places Ltd,09/08/2018,,150.78,Other Contracted Services,"391400 - Works - Construction, Repair & Maintenance"
Solihull MBC,Managed Growth and Communities,Highways & Transport Services,Balfour Beatty Living Places Ltd,09/08/2018,,188.48,Other Contracted Services,"391400 - Works - Construction, Repair & Maintenance"
Solihull MBC,Managed Growth and Communities,Highways & Transport Services,Balfour Beatty Living Places Ltd,09/08/2018,,85.62,Other Contracted Services,"391400 - Works - Construction, Repair & Maintenance"
Solihull MBC,Managed Growth and Communities,Highways & Transport Services,Balfour Beatty Living Places Ltd,09/08/2018,,85.62,Other Contracted Services,"391400 - Works - Construction, Repair & Maintenance"
Solihull MBC,Managed Growth and Communities,Highways & Transport Services,Balfour Beatty Living Places Ltd,09/08/2018,,23.59,Other Contracted Services,"391400 - Works - Construction, Repair & Maintenance"
Solihull MBC,Managed Growth and Communities,Highways & Transport Services,Balfour Beatty Living Places Ltd,09/08/2018,,70.61,Other Contracted Services,"391400 - Works - Construction, Repair & Maintenance"
Solihull MBC,Managed Growth and Communities,Highways & Transport Services,Balfour Beatty Living Places Ltd,09/08/2018,,47.17,Other Contracted Services,"391400 - Works - Construction, Repair & Maintenance"
Solihull MBC,Managed Growth and Communities,Highways & Transport Services,Balfour Beatty Living Places Ltd,09/08/2018,,130.75,Other Contracted Services,"391400 - Works - Construction, Repair & Maintenance"
Solihull MBC,Managed Growth and Communities,Highways & Transport Services,Balfour Beatty Living Places Ltd,09/08/2018,,26.86,Other Contracted Services,"391400 - Works - Construction, Repair & Maintenance"
Solihull MBC,Managed Growth and Communities,Highways & Transport Services,Balfour Beatty Living Places Ltd,09/08/2018,,31655.15,Other Contracted Services,"391400 - Works - Construction, Repair & Maintenance"
Solihull MBC,Managed Growth and Communities,Highways & Transport Services,Balfour Beatty Living Places Ltd,09/08/2018,,32.36,Other Contracted Services,"391400 - Works - Construction, Repair & Maintenance"
Solihull MBC,Managed Growth and Communities,Highways & Transport Services,Balfour Beatty Living Places Ltd,09/08/2018,,2300.04,Other Contracted Services,"391400 - Works - Construction, Repair & Maintenance"
Solihull MBC,Managed Growth and Communities,Highways & Transport Services,Balfour Beatty Living Places Ltd,09/08/2018,,182.28,Other Contracted Services,"391400 - Works - Construction, Repair & Maintenance"
Solihull MBC,Managed Growth and Communities,Highways & Transport Services,Balfour Beatty Living Places Ltd,09/08/2018,,212.25,Other Contracted Services,"391400 - Works - Construction, Repair & Maintenance"
Solihull MBC,Managed Growth and Communities,Highways & Transport Services,Balfour Beatty Living Places Ltd,09/08/2018,,51.87,Other Contracted Services,"391400 - Works - Construction, Repair & Maintenance"
Solihull MBC,Managed Growth and Communities,Highways & Transport Services,Balfour Beatty Living Places Ltd,09/08/2018,,601.08,Other Contracted Services,"391400 - Works - Construction, Repair & Maintenance"
Solihull MBC,Managed Growth and Communities,Highways & Transport Services,Balfour Beatty Living Places Ltd,09/08/2018,,8.58,Other Contracted Services,"391400 - Works - Construction, Repair & Maintenance"
Solihull MBC,Managed Growth and Communities,Highways & Transport Services,Balfour Beatty Living Places Ltd,09/08/2018,,300.54,Other Contracted Services,"391400 - Works - Construction, Repair & Maintenance"
Solihull MBC,Managed Growth and Communities,Highways & Transport Services,Balfour Beatty Living Places Ltd,09/08/2018,,84.79,Other Contracted Services,"391400 - Works - Construction, Repair & Maintenance"
Solihull MBC,Managed Growth and Communities,Highways & Transport Services,Balfour Beatty Living Places Ltd,09/08/2018,,169.58,Other Contracted Services,"391400 - Works - Construction, Repair & Maintenance"
Solihull MBC,Managed Growth and Communities,Highways & Transport Services,Balfour Beatty Living Places Ltd,09/08/2018,,206.74,Other Contracted Services,"391400 - Works - Construction, Repair & Maintenance"
Solihull MBC,Managed Growth and Communities,Highways & Transport Services,Balfour Beatty Living Places Ltd,09/08/2018,,291.02,Other Contracted Services,"391400 - Works - Construction, Repair & Maintenance"
Solihull MBC,Managed Growth and Communities,Highways & Transport Services,Balfour Beatty Living Places Ltd,09/08/2018,,136.48,Other Contracted Services,"391400 - Works - Construction, Repair & Maintenance"
Solihull MBC,Managed Growth and Communities,Highways & Transport Services,Balfour Beatty Living Places Ltd,09/08/2018,,291.02,Other Contracted Services,"391400 - Works - Construction, Repair & Maintenance"
Solihull MBC,Managed Growth and Communities,Highways & Transport Services,Balfour Beatty Living Places Ltd,09/08/2018,,135.23,Other Contracted Services,"391400 - Works - Construction, Repair & Maintenance"
Solihull MBC,Managed Growth and Communities,Highways & Transport Services,Balfour Beatty Living Places Ltd,09/08/2018,,150.55,Other Contracted Services,"391400 - Works - Construction, Repair & Maintenance"
Solihull MBC,Managed Growth and Communities,Highways & Transport Services,Balfour Beatty Living Places Ltd,09/08/2018,,46.80,Other Contracted Services,"391400 - Works - Construction, Repair & Maintenance"
Solihull MBC,Managed Growth and Communities,Highways & Transport Services,Balfour Beatty Living Places Ltd,09/08/2018,,91.53,Other Contracted Services,"391400 - Works - Construction, Repair & Maintenance"
Solihull MBC,Managed Growth and Communities,Highways & Transport Services,Balfour Beatty Living Places Ltd,09/08/2018,,264.33,Other Contracted Services,"391400 - Works - Construction, Repair & Maintenance"
Solihull MBC,Managed Growth and Communities,Highways & Transport Services,Balfour Beatty Living Places Ltd,09/08/2018,,155.76,Other Contracted Services,"391400 - Works - Construction, Repair & Maintenance"
Solihull MBC,Managed Growth and Communities,Highways & Transport Services,Balfour Beatty Living Places Ltd,09/08/2018,,24.47,Other Contracted Services,"391400 - Works - Construction, Repair & Maintenance"
Solihull MBC,Managed Growth and Communities,Highways & Transport Services,Balfour Beatty Living Places Ltd,09/08/2018,,214.81,Other Contracted Services,"391400 - Works - Construction, Repair & Maintenance"
Solihull MBC,Managed Growth and Communities,Highways & Transport Services,Balfour Beatty Living Places Ltd,09/08/2018,,1994.25,Other Contracted Services,"391400 - Works - Construction, Repair & Maintenance"
Solihull MBC,Managed Growth and Communities,Highways & Transport Services,Balfour Beatty Living Places Ltd,09/08/2018,,48.94,Other Contracted Services,"391400 - Works - Construction, Repair & Maintenance"
Solihull MBC,Managed Growth and Communities,Highways & Transport Services,Balfour Beatty Living Places Ltd,09/08/2018,,4545.41,Other Contracted Services,"391400 - Works - Construction, Repair & Maintenance"
Solihull MBC,Managed Growth and Communities,Highways & Transport Services,Balfour Beatty Living Places Ltd,09/08/2018,,11157.83,Other Contracted Services,"391400 - Works - Construction, Repair & Maintenance"
Solihull MBC,Managed Growth and Communities,Highways & Transport Services,Balfour Beatty Living Places Ltd,09/08/2018,,242.40,Other Contracted Services,"391400 - Works - Construction, Repair & Maintenance"
Solihull MBC,Managed Growth and Communities,Highways & Transport Services,Balfour Beatty Living Places Ltd,09/08/2018,,72.78,Other Contracted Services,"391400 - Works - Construction, Repair & Maintenance"
Solihull MBC,Managed Growth and Communities,Highways & Transport Services,Balfour Beatty Living Places Ltd,09/08/2018,,23.59,Other Contracted Services,"391400 - Works - Construction, Repair & Maintenance"
Solihull MBC,Managed Growth and Communities,Highways & Transport Services,Balfour Beatty Living Places Ltd,09/08/2018,,23.59,Other Contracted Services,"391400 - Works - Construction, Repair & Maintenance"
Solihull MBC,Managed Growth and Communities,Highways & Transport Services,Balfour Beatty Living Places Ltd,09/08/2018,,61.96,Other Contracted Services,"391400 - Works - Construction, Repair & Maintenance"
Solihull MBC,Managed Growth and Communities,Highways & Transport Services,Balfour Beatty Living Places Ltd,09/08/2018,,61.96,Other Contracted Services,"391400 - Works - Construction, Repair & Maintenance"
Solihull MBC,Managed Growth and Communities,Highways & Transport Services,Balfour Beatty Living Places Ltd,09/08/2018,,61.96,Other Contracted Services,"391400 - Works - Construction, Repair & Maintenance"
Solihull MBC,Managed Growth and Communities,Highways & Transport Services,Balfour Beatty Living Places Ltd,09/08/2018,,68.10,Other Contracted Services,"391400 - Works - Construction, Repair & Maintenance"
Solihull MBC,Managed Growth and Communities,Highways & Transport Services,Balfour Beatty Living Places Ltd,09/08/2018,,24.47,Other Contracted Services,"391400 - Works - Construction, Repair & Maintenance"
Solihull MBC,Managed Growth and Communities,Highways & Transport Services,Balfour Beatty Living Places Ltd,09/08/2018,,279.52,Other Contracted Services,"391400 - Works - Construction, Repair & Maintenance"
Solihull MBC,Managed Growth and Communities,Highways & Transport Services,Balfour Beatty Living Places Ltd,09/08/2018,,57.59,Other Contracted Services,"391400 - Works - Construction, Repair & Maintenance"
Solihull MBC,Managed Growth and Communities,Highways & Transport Services,Balfour Beatty Living Places Ltd,09/08/2018,,72.78,Other Contracted Services,"391400 - Works - Construction, Repair & Maintenance"
Solihull MBC,Managed Growth and Communities,Highways & Transport Services,Balfour Beatty Living Places Ltd,09/08/2018,,104.24,Other Contracted Services,"391400 - Works - Construction, Repair & Maintenance"
Solihull MBC,Managed Growth and Communities,Highways & Transport Services,Balfour Beatty Living Places Ltd,09/08/2018,,72.78,Other Contracted Services,"391400 - Works - Construction, Repair & Maintenance"
Solihull MBC,Managed Growth and Communities,Highways & Transport Services,Balfour Beatty Living Places Ltd,09/08/2018,,24.47,Other Contracted Services,"391400 - Works - Construction, Repair & Maintenance"
Solihull MBC,Managed Growth and Communities,Highways & Transport Services,Balfour Beatty Living Places Ltd,09/08/2018,,212.25,Other Contracted Services,"391400 - Works - Construction, Repair & Maintenance"
Solihull MBC,Managed Growth and Communities,Highways & Transport Services,Balfour Beatty Living Places Ltd,09/08/2018,,57.59,Other Contracted Services,"391400 - Works - Construction, Repair & Maintenance"
Solihull MBC,Managed Growth and Communities,Highways & Transport Services,Balfour Beatty Living Places Ltd,09/08/2018,,67.08,Other Contracted Services,"391400 - Works - Construction, Repair & Maintenance"
Solihull MBC,Managed Growth and Communities,Highways & Transport Services,Balfour Beatty Living Places Ltd,09/08/2018,,164.71,Other Contracted Services,"391400 - Works - Construction, Repair & Maintenance"
Solihull MBC,Managed Growth and Communities,Highways & Transport Services,Balfour Beatty Living Places Ltd,09/08/2018,,100.56,Other Contracted Services,"391400 - Works - Construction, Repair & Maintenance"
Solihull MBC,Managed Growth and Communities,Highways & Transport Services,Balfour Beatty Living Places Ltd,09/08/2018,,109.50,Other Contracted Services,"391400 - Works - Construction, Repair & Maintenance"
Solihull MBC,Managed Growth and Communities,Highways & Transport Services,Balfour Beatty Living Places Ltd,09/08/2018,,31.08,Other Contracted Services,"391400 - Works - Construction, Repair & Maintenance"
Solihull MBC,Managed Growth and Communities,Highways & Transport Services,Balfour Beatty Living Places Ltd,09/08/2018,,61.96,Other Contracted Services,"391400 - Works - Construction, Repair & Maintenance"
Solihull MBC,Managed Growth and Communities,Highways & Transport Services,Balfour Beatty Living Places Ltd,09/08/2018,,57.59,Other Contracted Services,"391400 - Works - Construction, Repair & Maintenance"
Solihull MBC,Managed Growth and Communities,Highways & Transport Services,Balfour Beatty Living Places Ltd,09/08/2018,,102.36,Other Contracted Services,"391400 - Works - Construction, Repair & Maintenance"
Solihull MBC,Managed Growth and Communities,Highways & Transport Services,Balfour Beatty Living Places Ltd,09/08/2018,,245.55,Other Contracted Services,"391400 - Works - Construction, Repair & Maintenance"
Solihull MBC,Managed Growth and Communities,Highways & Transport Services,Balfour Beatty Living Places Ltd,09/08/2018,,232.56,Other Contracted Services,"391400 - Works - Construction, Repair & Maintenance"
Solihull MBC,Managed Growth and Communities,Highways & Transport Services,Balfour Beatty Living Places Ltd,09/08/2018,,47.17,Other Contracted Services,"391400 - Works - Construction, Repair & Maintenance"
Solihull MBC,Managed Growth and Communities,Highways & Transport Services,Balfour Beatty Living Places Ltd,09/08/2018,,47.17,Other Contracted Services,"391400 - Works - Construction, Repair & Maintenance"
Solihull MBC,Managed Growth and Communities,Highways & Transport Services,Balfour Beatty Living Places Ltd,09/08/2018,,109.50,Other Contracted Services,"391400 - Works - Construction, Repair & Maintenance"
Solihull MBC,Managed Growth and Communities,Highways & Transport Services,Balfour Beatty Living Places Ltd,09/08/2018,,100.89,Other Contracted Services,"391400 - Works - Construction, Repair & Maintenance"
Solihull MBC,Managed Growth and Communities,Highways & Transport Services,Balfour Beatty Living Places Ltd,09/08/2018,,230.82,Other Contracted Services,"391400 - Works - Construction, Repair & Maintenance"
Solihull MBC,Managed Growth and Communities,Highways & Transport Services,Balfour Beatty Living Places Ltd,09/08/2018,,249.75,Other Contracted Services,"391400 - Works - Construction, Repair & Maintenance"
Solihull MBC,Managed Growth and Communities,Highways & Transport Services,Balfour Beatty Living Places Ltd,09/08/2018,,302.00,Other Contracted Services,"391400 - Works - Construction, Repair & Maintenance"
Solihull MBC,Managed Growth and Communities,Highways & Transport Services,Balfour Beatty Living Places Ltd,09/08/2018,,111.14,Other Contracted Services,"391400 - Works - Construction, Repair & Maintenance"
Solihull MBC,Managed Growth and Communities,Highways & Transport Services,Balfour Beatty Living Places Ltd,09/08/2018,,115.18,Other Contracted Services,"391400 - Works - Construction, Repair & Maintenance"
Solihull MBC,Managed Growth and Communities,Highways & Transport Services,Balfour Beatty Living Places Ltd,09/08/2018,,41.78,Other Contracted Services,"391400 - Works - Construction, Repair & Maintenance"
Solihull MBC,Managed Growth and Communities,Highways & Transport Services,Balfour Beatty Living Places Ltd,09/08/2018,,57.59,Other Contracted Services,"391400 - Works - Construction, Repair & Maintenance"
Solihull MBC,Managed Growth and Communities,Highways & Transport Services,Balfour Beatty Living Places Ltd,09/08/2018,,214.62,Other Contracted Services,"391400 - Works - Construction, Repair & Maintenance"
Solihull MBC,Managed Growth and Communities,Highways & Transport Services,Balfour Beatty Living Places Ltd,09/08/2018,,24.47,Other Contracted Services,"391400 - Works - Construction, Repair & Maintenance"
Solihull MBC,Managed Growth and Communities,Highways & Transport Services,Balfour Beatty Living Places Ltd,09/08/2018,,140.88,Other Contracted Services,"391400 - Works - Construction, Repair & Maintenance"
Solihull MBC,Managed Growth and Communities,Highways & Transport Services,Balfour Beatty Living Places Ltd,09/08/2018,,61.96,Other Contracted Services,"391400 - Works - Construction, Repair & Maintenance"
Solihull MBC,Managed Growth and Communities,Highways & Transport Services,Balfour Beatty Living Places Ltd,09/08/2018,,125.70,Other Contracted Services,"391400 - Works - Construction, Repair & Maintenance"
Solihull MBC,Managed Growth and Communities,Highways & Transport Services,Balfour Beatty Living Places Ltd,09/08/2018,,72.78,Other Contracted Services,"391400 - Works - Construction, Repair & Maintenance"
Solihull MBC,Managed Growth and Communities,Highways & Transport Services,Balfour Beatty Living Places Ltd,09/08/2018,,175.53,Other Contracted Services,"391400 - Works - Construction, Repair & Maintenance"
Solihull MBC,Managed Growth and Communities,Highways & Transport Services,Balfour Beatty Living Places Ltd,09/08/2018,,47.17,Other Contracted Services,"391400 - Works - Construction, Repair & Maintenance"
Solihull MBC,Managed Growth and Communities,Highways & Transport Services,Balfour Beatty Living Places Ltd,09/08/2018,,84.79,Other Contracted Services,"391400 - Works - Construction, Repair & Maintenance"
Solihull MBC,Managed Growth and Communities,Highways & Transport Services,Balfour Beatty Living Places Ltd,09/08/2018,,72.78,Other Contracted Services,"391400 - Works - Construction, Repair & Maintenance"
Solihull MBC,Managed Growth and Communities,Highways & Transport Services,Balfour Beatty Living Places Ltd,09/08/2018,,57.59,Other Contracted Services,"391400 - Works - Construction, Repair & Maintenance"
Solihull MBC,Managed Growth and Communities,Highways & Transport Services,Balfour Beatty Living Places Ltd,09/08/2018,,206.74,Other Contracted Services,"391400 - Works - Construction, Repair & Maintenance"
Solihull MBC,Managed Growth and Communities,Highways & Transport Services,Balfour Beatty Living Places Ltd,09/08/2018,,206.74,Other Contracted Services,"391400 - Works - Construction, Repair & Maintenance"
Solihull MBC,Managed Growth and Communities,Highways & Transport Services,Balfour Beatty Living Places Ltd,09/08/2018,,81.18,Other Contracted Services,"391400 - Works - Construction, Repair & Maintenance"
Solihull MBC,Managed Growth and Communities,Highways & Transport Services,Balfour Beatty Living Places Ltd,09/08/2018,,151.00,Other Contracted Services,"391400 - Works - Construction, Repair & Maintenance"
Solihull MBC,Managed Growth and Communities,Highways & Transport Services,Balfour Beatty Living Places Ltd,09/08/2018,,47.17,Other Contracted Services,"391400 - Works - Construction, Repair & Maintenance"
Solihull MBC,Managed Growth and Communities,Highways & Transport Services,Balfour Beatty Living Places Ltd,09/08/2018,,151.00,Other Contracted Services,"391400 - Works - Construction, Repair & Maintenance"
Solihull MBC,Managed Growth and Communities,Highways & Transport Services,Balfour Beatty Living Places Ltd,09/08/2018,,109.50,Other Contracted Services,"391400 - Works - Construction, Repair & Maintenance"
Solihull MBC,Managed Growth and Communities,Highways & Transport Services,Balfour Beatty Living Places Ltd,09/08/2018,,57.59,Other Contracted Services,"391400 - Works - Construction, Repair & Maintenance"
Solihull MBC,Managed Growth and Communities,Highways & Transport Services,Balfour Beatty Living Places Ltd,09/08/2018,,140.88,Other Contracted Services,"391400 - Works - Construction, Repair & Maintenance"
Solihull MBC,Managed Growth and Communities,Highways & Transport Services,Balfour Beatty Living Places Ltd,09/08/2018,,61.96,Other Contracted Services,"391400 - Works - Construction, Repair & Maintenance"
Solihull MBC,Managed Growth and Communities,Highways & Transport Services,Balfour Beatty Living Places Ltd,09/08/2018,,57.06,Other Contracted Services,"391400 - Works - Construction, Repair & Maintenance"
Solihull MBC,Managed Growth and Communities,Highways & Transport Services,Balfour Beatty Living Places Ltd,09/08/2018,,72.78,Other Contracted Services,"391400 - Works - Construction, Repair & Maintenance"
Solihull MBC,Managed Growth and Communities,Highways & Transport Services,Balfour Beatty Living Places Ltd,09/08/2018,,52.12,Other Contracted Services,"391400 - Works - Construction, Repair & Maintenance"
Solihull MBC,Managed Growth and Communities,Highways & Transport Services,Balfour Beatty Living Places Ltd,09/08/2018,,72.78,Other Contracted Services,"391400 - Works - Construction, Repair & Maintenance"
Solihull MBC,Managed Growth and Communities,Highways & Transport Services,Balfour Beatty Living Places Ltd,09/08/2018,,145.56,Other Contracted Services,"391400 - Works - Construction, Repair & Maintenance"
Solihull MBC,Managed Growth and Communities,Highways & Transport Services,Balfour Beatty Living Places Ltd,09/08/2018,,72.78,Other Contracted Services,"391400 - Works - Construction, Repair & Maintenance"
Solihull MBC,Managed Growth and Communities,Highways & Transport Services,Balfour Beatty Living Places Ltd,09/08/2018,,72.78,Other Contracted Services,"391400 - Works - Construction, Repair & Maintenance"
Solihull MBC,Managed Growth and Communities,Highways & Transport Services,Balfour Beatty Living Places Ltd,09/08/2018,,72.78,Other Contracted Services,"391400 - Works - Construction, Repair & Maintenance"
Solihull MBC,Managed Growth and Communities,Highways & Transport Services,Balfour Beatty Living Places Ltd,09/08/2018,,72.78,Other Contracted Services,"391400 - Works - Construction, Repair & Maintenance"
Solihull MBC,Managed Growth and Communities,Highways & Transport Services,Balfour Beatty Living Places Ltd,09/08/2018,,414.60,Other Contracted Services,"391400 - Works - Construction, Repair & Maintenance"
Solihull MBC,Managed Growth and Communities,Highways & Transport Services,Balfour Beatty Living Places Ltd,09/08/2018,,403.05,Other Contracted Services,"391400 - Works - Construction, Repair & Maintenance"
Solihull MBC,Managed Growth and Communities,Highways & Transport Services,Balfour Beatty Living Places Ltd,09/08/2018,,52.12,Other Contracted Services,"391400 - Works - Construction, Repair & Maintenance"
Solihull MBC,Managed Growth and Communities,Highways & Transport Services,Balfour Beatty Living Places Ltd,09/08/2018,,151.00,Other Contracted Services,"391400 - Works - Construction, Repair & Maintenance"
Solihull MBC,Managed Growth and Communities,Highways & Transport Services,Balfour Beatty Living Places Ltd,09/08/2018,,148.60,Other Contracted Services,"391400 - Works - Construction, Repair & Maintenance"
Solihull MBC,Managed Growth and Communities,Highways & Transport Services,Balfour Beatty Living Places Ltd,09/08/2018,,209.50,Other Contracted Services,"391400 - Works - Construction, Repair & Maintenance"
Solihull MBC,Managed Growth and Communities,Highways & Transport Services,Balfour Beatty Living Places Ltd,09/08/2018,,83.00,Other Contracted Services,"391400 - Works - Construction, Repair & Maintenance"
Solihull MBC,Managed Growth and Communities,Highways & Transport Services,Balfour Beatty Living Places Ltd,09/08/2018,,47.17,Other Contracted Services,"391400 - Works - Construction, Repair & Maintenance"
Solihull MBC,Managed Growth and Communities,Highways & Transport Services,Balfour Beatty Living Places Ltd,09/08/2018,,61.96,Other Contracted Services,"391400 - Works - Construction, Repair & Maintenance"
Solihull MBC,Managed Growth and Communities,Highways & Transport Services,Balfour Beatty Living Places Ltd,09/08/2018,,61.96,Other Contracted Services,"391400 - Works - Construction, Repair & Maintenance"
Solihull MBC,Managed Growth and Communities,Highways & Transport Services,Balfour Beatty Living Places Ltd,09/08/2018,,72.78,Other Contracted Services,"391400 - Works - Construction, Repair & Maintenance"
Solihull MBC,Managed Growth and Communities,Highways & Transport Services,Balfour Beatty Living Places Ltd,09/08/2018,,47.17,Other Contracted Services,"391400 - Works - Construction, Repair & Maintenance"
Solihull MBC,Managed Growth and Communities,Highways & Transport Services,Balfour Beatty Living Places Ltd,09/08/2018,,57.59,Other Contracted Services,"391400 - Works - Construction, Repair & Maintenance"
Solihull MBC,Managed Growth and Communities,Highways & Transport Services,Balfour Beatty Living Places Ltd,09/08/2018,,72.78,Other Contracted Services,"391400 - Works - Construction, Repair & Maintenance"
Solihull MBC,Managed Growth and Communities,Highways & Transport Services,Balfour Beatty Living Places Ltd,09/08/2018,,112.44,Other Contracted Services,"391400 - Works - Construction, Repair & Maintenance"
Solihull MBC,Managed Growth and Communities,Highways & Transport Services,Balfour Beatty Living Places Ltd,09/08/2018,,99.09,Other Contracted Services,"391400 - Works - Construction, Repair & Maintenance"
Solihull MBC,Managed Growth and Communities,Highways & Transport Services,Balfour Beatty Living Places Ltd,09/08/2018,,148.60,Other Contracted Services,"391400 - Works - Construction, Repair & Maintenance"
Solihull MBC,Managed Growth and Communities,Highways & Transport Services,Balfour Beatty Living Places Ltd,09/08/2018,,206.74,Other Contracted Services,"391400 - Works - Construction, Repair & Maintenance"
Solihull MBC,Managed Growth and Communities,Highways & Transport Services,Balfour Beatty Living Places Ltd,09/08/2018,,258.51,Other Contracted Services,"391400 - Works - Construction, Repair & Maintenance"
Solihull MBC,Managed Growth and Communities,Highways & Transport Services,Balfour Beatty Living Places Ltd,09/08/2018,,57.59,Other Contracted Services,"391400 - Works - Construction, Repair & Maintenance"
Solihull MBC,Managed Growth and Communities,Highways & Transport Services,Balfour Beatty Living Places Ltd,09/08/2018,,84.79,Other Contracted Services,"391400 - Works - Construction, Repair & Maintenance"
Solihull MBC,Managed Growth and Communities,Highways & Transport Services,Balfour Beatty Living Places Ltd,09/08/2018,,57.59,Other Contracted Services,"391400 - Works - Construction, Repair & Maintenance"
Solihull MBC,Managed Growth and Communities,Highways & Transport Services,Balfour Beatty Living Places Ltd,09/08/2018,,72.78,Other Contracted Services,"391400 - Works - Construction, Repair & Maintenance"
Solihull MBC,Managed Growth and Communities,Highways & Transport Services,Balfour Beatty Living Places Ltd,09/08/2018,,72.78,Other Contracted Services,"391400 - Works - Construction, Repair & Maintenance"
Solihull MBC,Managed Growth and Communities,Highways & Transport Services,Balfour Beatty Living Places Ltd,09/08/2018,,72.78,Other Contracted Services,"391400 - Works - Construction, Repair & Maintenance"
Solihull MBC,Managed Growth and Communities,Highways & Transport Services,Balfour Beatty Living Places Ltd,09/08/2018,,124.67,Other Contracted Services,"391400 - Works - Construction, Repair & Maintenance"
Solihull MBC,Managed Growth and Communities,Highways & Transport Services,Balfour Beatty Living Places Ltd,09/08/2018,,212.25,Other Contracted Services,"391400 - Works - Construction, Repair & Maintenance"
Solihull MBC,Managed Growth and Communities,Highways & Transport Services,Balfour Beatty Living Places Ltd,09/08/2018,,109.50,Other Contracted Services,"391400 - Works - Construction, Repair & Maintenance"
Solihull MBC,Managed Growth and Communities,Highways & Transport Services,Balfour Beatty Living Places Ltd,09/08/2018,,90.66,Other Contracted Services,"391400 - Works - Construction, Repair & Maintenance"
Solihull MBC,Managed Growth and Communities,Highways & Transport Services,Balfour Beatty Living Places Ltd,09/08/2018,,57.59,Other Contracted Services,"391400 - Works - Construction, Repair & Maintenance"
Solihull MBC,Managed Growth and Communities,Highways & Transport Services,Balfour Beatty Living Places Ltd,09/08/2018,,61.96,Other Contracted Services,"391400 - Works - Construction, Repair & Maintenance"
Solihull MBC,Managed Growth and Communities,Highways & Transport Services,Balfour Beatty Living Places Ltd,09/08/2018,,47.17,Other Contracted Services,"391400 - Works - Construction, Repair & Maintenance"
Solihull MBC,Managed Growth and Communities,Highways & Transport Services,Balfour Beatty Living Places Ltd,09/08/2018,,23.59,Other Contracted Services,"391400 - Works - Construction, Repair & Maintenance"
Solihull MBC,Managed Growth and Communities,Highways & Transport Services,Balfour Beatty Living Places Ltd,09/08/2018,,47.17,Other Contracted Services,"391400 - Works - Construction, Repair & Maintenance"
Solihull MBC,Managed Growth and Communities,Highways & Transport Services,Balfour Beatty Living Places Ltd,09/08/2018,,160.34,Other Contracted Services,"391400 - Works - Construction, Repair & Maintenance"
Solihull MBC,Managed Growth and Communities,Highways & Transport Services,Balfour Beatty Living Places Ltd,09/08/2018,,72.78,Other Contracted Services,"391400 - Works - Construction, Repair & Maintenance"
Solihull MBC,Managed Growth and Communities,Highways & Transport Services,Balfour Beatty Living Places Ltd,09/08/2018,,72.78,Other Contracted Services,"391400 - Works - Construction, Repair & Maintenance"
Solihull MBC,Managed Growth and Communities,Highways & Transport Services,Balfour Beatty Living Places Ltd,09/08/2018,,72.78,Other Contracted Services,"391400 - Works - Construction, Repair & Maintenance"
Solihull MBC,Managed Growth and Communities,Highways & Transport Services,Balfour Beatty Living Places Ltd,09/08/2018,,54.75,Other Contracted Services,"391400 - Works - Construction, Repair & Maintenance"
Solihull MBC,Managed Growth and Communities,Highways & Transport Services,Balfour Beatty Living Places Ltd,09/08/2018,,72.78,Other Contracted Services,"391400 - Works - Construction, Repair & Maintenance"
Solihull MBC,Managed Growth and Communities,Highways & Transport Services,Balfour Beatty Living Places Ltd,09/08/2018,,792.38,Other Contracted Services,"391400 - Works - Construction, Repair & Maintenance"
Solihull MBC,Managed Growth and Communities,Highways & Transport Services,Balfour Beatty Living Places Ltd,09/08/2018,,260.74,Other Contracted Services,"391400 - Works - Construction, Repair & Maintenance"
Solihull MBC,Managed Growth and Communities,Highways & Transport Services,Balfour Beatty Living Places Ltd,09/08/2018,,805.53,Other Contracted Services,"391400 - Works - Construction, Repair & Maintenance"
Solihull MBC,Managed Growth and Communities,Highways & Transport Services,Balfour Beatty Living Places Ltd,09/08/2018,,896.29,Other Contracted Services,"391400 - Works - Construction, Repair & Maintenance"
Solihull MBC,Managed Growth and Communities,Highways & Transport Services,Balfour Beatty Living Places Ltd,09/08/2018,,1013.86,Other Contracted Services,"391400 - Works - Construction, Repair & Maintenance"
Solihull MBC,Managed Growth and Communities,Highways & Transport Services,Balfour Beatty Living Places Ltd,09/08/2018,,106.71,Other Contracted Services,"391400 - Works - Construction, Repair & Maintenance"
Solihull MBC,Managed Growth and Communities,Highways & Transport Services,Balfour Beatty Living Places Ltd,09/08/2018,,26.88,Other Contracted Services,"391400 - Works - Construction, Repair & Maintenance"
Solihull MBC,Managed Growth and Communities,Highways & Transport Services,Balfour Beatty Living Places Ltd,09/08/2018,,121.92,Other Contracted Services,"391400 - Works - Construction, Repair & Maintenance"
Solihull MBC,Managed Growth and Communities,Highways & Transport Services,Balfour Beatty Living Places Ltd,09/08/2018,,184.60,Other Contracted Services,"391400 - Works - Construction, Repair & Maintenance"
Solihull MBC,Managed Growth and Communities,Highways & Transport Services,Balfour Beatty Living Places Ltd,09/08/2018,,200.87,Other Contracted Services,"391400 - Works - Construction, Repair & Maintenance"
Solihull MBC,Managed Growth and Communities,Highways & Transport Services,Balfour Beatty Living Places Ltd,09/08/2018,,530.76,Other Contracted Services,"391400 - Works - Construction, Repair & Maintenance"
Solihull MBC,Managed Growth and Communities,Highways & Transport Services,Balfour Beatty Living Places Ltd,09/08/2018,,391.66,Other Contracted Services,"391400 - Works - Construction, Repair & Maintenance"
Solihull MBC,Managed Growth and Communities,Highways & Transport Services,Balfour Beatty Living Places Ltd,09/08/2018,,984.47,Other Contracted Services,"391400 - Works - Construction, Repair & Maintenance"
Solihull MBC,Managed Growth and Communities,Highways & Transport Services,Balfour Beatty Living Places Ltd,09/08/2018,,22.32,Other Contracted Services,"391400 - Works - Construction, Repair & Maintenance"
Solihull MBC,Managed Growth and Communities,Highways & Transport Services,Balfour Beatty Living Places Ltd,09/08/2018,,37.32,Other Contracted Services,"391400 - Works - Construction, Repair & Maintenance"
Solihull MBC,Managed Growth and Communities,Highways & Transport Services,Balfour Beatty Living Places Ltd,09/08/2018,,221.20,Other Contracted Services,"391400 - Works - Construction, Repair & Maintenance"
Solihull MBC,Managed Growth and Communities,Highways & Transport Services,Balfour Beatty Living Places Ltd,09/08/2018,,51.39,Other Contracted Services,"391400 - Works - Construction, Repair & Maintenance"
Solihull MBC,Managed Growth and Communities,Highways & Transport Services,Balfour Beatty Living Places Ltd,09/08/2018,,51.39,Other Contracted Services,"391400 - Works - Construction, Repair & Maintenance"
Solihull MBC,Managed Growth and Communities,Highways & Transport Services,Balfour Beatty Living Places Ltd,09/08/2018,,51.39,Other Contracted Services,"391400 - Works - Construction, Repair & Maintenance"
Solihull MBC,Managed Growth and Communities,Highways & Transport Services,Balfour Beatty Living Places Ltd,09/08/2018,,51.39,Other Contracted Services,"391400 - Works - Construction, Repair & Maintenance"
Solihull MBC,Managed Growth and Communities,Highways & Transport Services,Balfour Beatty Living Places Ltd,09/08/2018,,51.39,Other Contracted Services,"391400 - Works - Construction, Repair & Maintenance"
Solihull MBC,Managed Growth and Communities,Highways & Transport Services,Balfour Beatty Living Places Ltd,09/08/2018,,429.16,Other Contracted Services,"391400 - Works - Construction, Repair & Maintenance"
Solihull MBC,Managed Growth and Communities,Highways & Transport Services,Balfour Beatty Living Places Ltd,09/08/2018,,553.83,Other Contracted Services,"391400 - Works - Construction, Repair & Maintenance"
Solihull MBC,Managed Growth and Communities,Highways & Transport Services,Balfour Beatty Living Places Ltd,09/08/2018,,106.70,Other Contracted Services,"391400 - Works - Construction, Repair & Maintenance"
Solihull MBC,Managed Growth and Communities,Highways & Transport Services,Balfour Beatty Living Places Ltd,09/08/2018,,113.75,Other Contracted Services,"391400 - Works - Construction, Repair & Maintenance"
Solihull MBC,Managed Growth and Communities,Highways & Transport Services,Balfour Beatty Living Places Ltd,09/08/2018,,136.87,Other Contracted Services,"391400 - Works - Construction, Repair & Maintenance"
Solihull MBC,Managed Growth and Communities,Highways & Transport Services,Balfour Beatty Living Places Ltd,09/08/2018,,264.87,Other Contracted Services,"391400 - Works - Construction, Repair & Maintenance"
Solihull MBC,Managed Growth and Communities,Highways & Transport Services,Balfour Beatty Living Places Ltd,09/08/2018,,38.40,Other Contracted Services,"391400 - Works - Construction, Repair & Maintenance"
Solihull MBC,Managed Growth and Communities,Highways & Transport Services,Balfour Beatty Living Places Ltd,09/08/2018,,51.20,Other Contracted Services,"391400 - Works - Construction, Repair & Maintenance"
Solihull MBC,Managed Growth and Communities,Highways & Transport Services,Balfour Beatty Living Places Ltd,09/08/2018,,285.95,Other Contracted Services,"391400 - Works - Construction, Repair & Maintenance"
Solihull MBC,Managed Growth and Communities,Highways & Transport Services,Balfour Beatty Living Places Ltd,09/08/2018,,80.00,Other Contracted Services,"391400 - Works - Construction, Repair & Maintenance"
Solihull MBC,Managed Growth and Communities,Highways & Transport Services,Balfour Beatty Living Places Ltd,09/08/2018,,134.40,Other Contracted Services,"391400 - Works - Construction, Repair & Maintenance"
Solihull MBC,Managed Growth and Communities,Highways & Transport Services,Balfour Beatty Living Places Ltd,09/08/2018,,6.40,Other Contracted Services,"391400 - Works - Construction, Repair & Maintenance"
Solihull MBC,Managed Growth and Communities,Highways & Transport Services,Balfour Beatty Living Places Ltd,09/08/2018,,115.18,Other Contracted Services,"391400 - Works - Construction, Repair & Maintenance"
Solihull MBC,Managed Growth and Communities,Highways & Transport Services,Balfour Beatty Living Places Ltd,09/08/2018,,47.17,Other Contracted Services,"391400 - Works - Construction, Repair & Maintenance"
Solihull MBC,Managed Growth and Communities,Highways & Transport Services,Balfour Beatty Living Places Ltd,09/08/2018,,23.59,Other Contracted Services,"391400 - Works - Construction, Repair & Maintenance"
Solihull MBC,Managed Growth and Communities,Highways & Transport Services,Balfour Beatty Living Places Ltd,09/08/2018,,47.17,Other Contracted Services,"391400 - Works - Construction, Repair & Maintenance"
Solihull MBC,Managed Growth and Communities,Highways & Transport Services,Balfour Beatty Living Places Ltd,09/08/2018,,214.74,Other Contracted Services,"391400 - Works - Construction, Repair & Maintenance"
Solihull MBC,Managed Growth and Communities,Highways & Transport Services,Balfour Beatty Living Places Ltd,09/08/2018,,72.78,Other Contracted Services,"391400 - Works - Construction, Repair & Maintenance"
Solihull MBC,Managed Growth and Communities,Highways & Transport Services,Balfour Beatty Living Places Ltd,09/08/2018,,151.00,Other Contracted Services,"391400 - Works - Construction, Repair & Maintenance"
Solihull MBC,Managed Growth and Communities,Highways & Transport Services,Balfour Beatty Living Places Ltd,09/08/2018,,23.59,Other Contracted Services,"391400 - Works - Construction, Repair & Maintenance"
Solihull MBC,Managed Growth and Communities,Highways & Transport Services,Balfour Beatty Living Places Ltd,09/08/2018,,72.78,Other Contracted Services,"391400 - Works - Construction, Repair & Maintenance"
Solihull MBC,Managed Growth and Communities,Highways & Transport Services,Balfour Beatty Living Places Ltd,09/08/2018,,57.59,Other Contracted Services,"391400 - Works - Construction, Repair & Maintenance"
Solihull MBC,Managed Growth and Communities,Highways & Transport Services,Balfour Beatty Living Places Ltd,09/08/2018,,118.75,Other Contracted Services,"391400 - Works - Construction, Repair & Maintenance"
Solihull MBC,Managed Growth and Communities,Highways & Transport Services,Balfour Beatty Living Places Ltd,09/08/2018,,84.79,Other Contracted Services,"391400 - Works - Construction, Repair & Maintenance"
Solihull MBC,Managed Growth and Communities,Highways & Transport Services,Balfour Beatty Living Places Ltd,09/08/2018,,151.00,Other Contracted Services,"391400 - Works - Construction, Repair & Maintenance"
Solihull MBC,Managed Growth and Communities,Highways & Transport Services,Balfour Beatty Living Places Ltd,09/08/2018,,151.00,Other Contracted Services,"391400 - Works - Construction, Repair & Maintenance"
Solihull MBC,Managed Growth and Communities,Highways & Transport Services,Balfour Beatty Living Places Ltd,09/08/2018,,151.00,Other Contracted Services,"391400 - Works - Construction, Repair & Maintenance"
Solihull MBC,Managed Growth and Communities,Highways & Transport Services,Balfour Beatty Living Places Ltd,09/08/2018,,151.00,Other Contracted Services,"391400 - Works - Construction, Repair & Maintenance"
Solihull MBC,Managed Growth and Communities,Highways & Transport Services,Balfour Beatty Living Places Ltd,09/08/2018,,20.36,Other Contracted Services,"391400 - Works - Construction, Repair & Maintenance"
Solihull MBC,Managed Growth and Communities,Highways & Transport Services,Balfour Beatty Living Places Ltd,09/08/2018,,171.46,Other Contracted Services,"391400 - Works - Construction, Repair & Maintenance"
Solihull MBC,Managed Growth and Communities,Highways & Transport Services,Balfour Beatty Living Places Ltd,09/08/2018,,109.50,Other Contracted Services,"391400 - Works - Construction, Repair & Maintenance"
Solihull MBC,Managed Growth and Communities,Highways & Transport Services,Balfour Beatty Living Places Ltd,09/08/2018,,57.59,Other Contracted Services,"391400 - Works - Construction, Repair & Maintenance"
Solihull MBC,Managed Growth and Communities,Highways & Transport Services,Balfour Beatty Living Places Ltd,09/08/2018,,50.28,Other Contracted Services,"391400 - Works - Construction, Repair & Maintenance"
Solihull MBC,Managed Growth and Communities,Highways & Transport Services,Balfour Beatty Living Places Ltd,09/08/2018,,72.78,Other Contracted Services,"391400 - Works - Construction, Repair & Maintenance"
Solihull MBC,Managed Growth and Communities,Highways & Transport Services,Balfour Beatty Living Places Ltd,09/08/2018,,164.12,Other Contracted Services,"391400 - Works - Construction, Repair & Maintenance"
Solihull MBC,Managed Growth and Communities,Highways & Transport Services,Balfour Beatty Living Places Ltd,09/08/2018,,537.40,Other Contracted Services,"391400 - Works - Construction, Repair & Maintenance"
Solihull MBC,Managed Growth and Communities,Highways & Transport Services,Balfour Beatty Living Places Ltd,09/08/2018,,709.86,Other Contracted Services,"391400 - Works - Construction, Repair & Maintenance"
Solihull MBC,Managed Growth and Communities,Highways & Transport Services,Balfour Beatty Living Places Ltd,09/08/2018,,709.86,Other Contracted Services,"391400 - Works - Construction, Repair & Maintenance"
Solihull MBC,Managed Growth and Communities,Highways & Transport Services,Balfour Beatty Living Places Ltd,09/08/2018,,453.86,Other Contracted Services,"391400 - Works - Construction, Repair & Maintenance"
Solihull MBC,Managed Growth and Communities,Highways & Transport Services,Balfour Beatty Living Places Ltd,09/08/2018,,581.86,Other Contracted Services,"391400 - Works - Construction, Repair & Maintenance"
Solihull MBC,Managed Growth and Communities,Highways & Transport Services,Balfour Beatty Living Places Ltd,09/08/2018,,325.86,Other Contracted Services,"391400 - Works - Construction, Repair & Maintenance"
Solihull MBC,Managed Growth and Communities,Highways & Transport Services,Balfour Beatty Living Places Ltd,09/08/2018,,217.06,Other Contracted Services,"391400 - Works - Construction, Repair & Maintenance"
Solihull MBC,Managed Growth and Communities,Highways & Transport Services,Balfour Beatty Living Places Ltd,09/08/2018,,690.71,Other Contracted Services,"391400 - Works - Construction, Repair & Maintenance"
Solihull MBC,Managed Growth and Communities,Highways & Transport Services,Balfour Beatty Living Places Ltd,09/08/2018,,717.42,Other Contracted Services,"391400 - Works - Construction, Repair & Maintenance"
Solihull MBC,Managed Growth and Communities,Highways & Transport Services,Balfour Beatty Living Places Ltd,09/08/2018,,717.42,Other Contracted Services,"391400 - Works - Construction, Repair & Maintenance"
Solihull MBC,Managed Growth and Communities,Highways & Transport Services,Balfour Beatty Living Places Ltd,09/08/2018,,717.42,Other Contracted Services,"391400 - Works - Construction, Repair & Maintenance"
Solihull MBC,Managed Growth and Communities,Highways & Transport Services,Balfour Beatty Living Places Ltd,09/08/2018,,61.96,Other Contracted Services,"391400 - Works - Construction, Repair & Maintenance"
Solihull MBC,Managed Growth and Communities,Highways & Transport Services,Balfour Beatty Living Places Ltd,09/08/2018,,316.98,Other Contracted Services,"391400 - Works - Construction, Repair & Maintenance"
Solihull MBC,Managed Growth and Communities,Highways & Transport Services,Balfour Beatty Living Places Ltd,09/08/2018,,64.72,Other Contracted Services,"391400 - Works - Construction, Repair & Maintenance"
Solihull MBC,Managed Growth and Communities,Highways & Transport Services,Balfour Beatty Living Places Ltd,09/08/2018,,717.42,Other Contracted Services,"391400 - Works - Construction, Repair & Maintenance"
Solihull MBC,Managed Growth and Communities,Highways & Transport Services,Balfour Beatty Living Places Ltd,09/08/2018,,717.42,Other Contracted Services,"391400 - Works - Construction, Repair & Maintenance"
Solihull MBC,Managed Growth and Communities,Highways & Transport Services,Balfour Beatty Living Places Ltd,09/08/2018,,47.17,Other Contracted Services,"391400 - Works - Construction, Repair & Maintenance"
Solihull MBC,Managed Growth and Communities,Highways & Transport Services,Balfour Beatty Living Places Ltd,09/08/2018,,84.79,Other Contracted Services,"391400 - Works - Construction, Repair & Maintenance"
Solihull MBC,Managed Growth and Communities,Highways & Transport Services,Balfour Beatty Living Places Ltd,09/08/2018,,293.86,Other Contracted Services,"391400 - Works - Construction, Repair & Maintenance"
Solihull MBC,Managed Growth and Communities,Highways & Transport Services,Balfour Beatty Living Places Ltd,09/08/2018,,517.86,Other Contracted Services,"391400 - Works - Construction, Repair & Maintenance"
Solihull MBC,Managed Growth and Communities,Highways & Transport Services,Balfour Beatty Living Places Ltd,09/08/2018,,159.50,Other Contracted Services,"391400 - Works - Construction, Repair & Maintenance"
Solihull MBC,Managed Growth and Communities,Highways & Transport Services,Balfour Beatty Living Places Ltd,09/08/2018,,169.83,Other Contracted Services,"391400 - Works - Construction, Repair & Maintenance"
Solihull MBC,Managed Growth and Communities,Highways & Transport Services,Balfour Beatty Living Places Ltd,09/08/2018,,253.75,Other Contracted Services,"391400 - Works - Construction, Repair & Maintenance"
Solihull MBC,Managed Growth and Communities,Highways & Transport Services,Balfour Beatty Living Places Ltd,09/08/2018,,57.59,Other Contracted Services,"391400 - Works - Construction, Repair & Maintenance"
Solihull MBC,Managed Growth and Communities,Highways & Transport Services,Balfour Beatty Living Places Ltd,09/08/2018,,820.90,Other Contracted Services,"391400 - Works - Construction, Repair & Maintenance"
Solihull MBC,Managed Growth and Communities,Highways & Transport Services,Balfour Beatty Living Places Ltd,09/08/2018,,52.12,Other Contracted Services,"391400 - Works - Construction, Repair & Maintenance"
Solihull MBC,Managed Growth and Communities,Highways & Transport Services,Balfour Beatty Living Places Ltd,09/08/2018,,57.59,Other Contracted Services,"391400 - Works - Construction, Repair & Maintenance"
Solihull MBC,Managed Growth and Communities,Highways & Transport Services,Balfour Beatty Living Places Ltd,09/08/2018,,94.34,Other Contracted Services,"391400 - Works - Construction, Repair & Maintenance"
Solihull MBC,Managed Growth and Communities,Highways & Transport Services,Balfour Beatty Living Places Ltd,09/08/2018,,72.78,Other Contracted Services,"391400 - Works - Construction, Repair & Maintenance"
Solihull MBC,Managed Growth and Communities,Highways & Transport Services,Balfour Beatty Living Places Ltd,09/08/2018,,72.78,Other Contracted Services,"391400 - Works - Construction, Repair & Maintenance"
Solihull MBC,Managed Growth and Communities,Highways & Transport Services,Balfour Beatty Living Places Ltd,09/08/2018,,67.08,Other Contracted Services,"391400 - Works - Construction, Repair & Maintenance"
Solihull MBC,Managed Growth and Communities,Highways & Transport Services,Balfour Beatty Living Places Ltd,09/08/2018,,67.08,Other Contracted Services,"391400 - Works - Construction, Repair & Maintenance"
Solihull MBC,Managed Growth and Communities,Highways & Transport Services,Balfour Beatty Living Places Ltd,09/08/2018,,72.78,Other Contracted Services,"391400 - Works - Construction, Repair & Maintenance"
Solihull MBC,Managed Growth and Communities,Highways & Transport Services,Balfour Beatty Living Places Ltd,09/08/2018,,173.35,Other Contracted Services,"391400 - Works - Construction, Repair & Maintenance"
Solihull MBC,Managed Growth and Communities,Highways & Transport Services,Balfour Beatty Living Places Ltd,09/08/2018,,175.53,Other Contracted Services,"391400 - Works - Construction, Repair & Maintenance"
Solihull MBC,Managed Growth and Communities,Highways & Transport Services,Balfour Beatty Living Places Ltd,09/08/2018,,72.78,Other Contracted Services,"391400 - Works - Construction, Repair & Maintenance"
Solihull MBC,Managed Growth and Communities,Highways & Transport Services,Balfour Beatty Living Places Ltd,09/08/2018,,159.50,Other Contracted Services,"391400 - Works - Construction, Repair & Maintenance"
Solihull MBC,Managed Growth and Communities,Highways & Transport Services,Balfour Beatty Living Places Ltd,09/08/2018,,72.78,Other Contracted Services,"391400 - Works - Construction, Repair & Maintenance"
Solihull MBC,Managed Growth and Communities,Highways & Transport Services,Balfour Beatty Living Places Ltd,09/08/2018,,148.60,Other Contracted Services,"391400 - Works - Construction, Repair & Maintenance"
Solihull MBC,Managed Growth and Communities,Highways & Transport Services,Balfour Beatty Living Places Ltd,09/08/2018,,3000.00,Other Contracted Services,"391400 - Works - Construction, Repair & Maintenance"
Solihull MBC,Managed Growth and Communities,Highways & Transport Services,Balfour Beatty Living Places Ltd,09/08/2018,,120.78,Other Contracted Services,"391400 - Works - Construction, Repair & Maintenance"
Solihull MBC,Managed Growth and Communities,Highways & Transport Services,Balfour Beatty Living Places Ltd,09/08/2018,,148.60,Other Contracted Services,"391400 - Works - Construction, Repair & Maintenance"
Solihull MBC,Managed Growth and Communities,Highways & Transport Services,Balfour Beatty Living Places Ltd,09/08/2018,,57.59,Other Contracted Services,"391400 - Works - Construction, Repair & Maintenance"
Solihull MBC,Managed Growth and Communities,Highways & Transport Services,Balfour Beatty Living Places Ltd,09/08/2018,,2382.94,Other Contracted Services,"391400 - Works - Construction, Repair & Maintenance"
Solihull MBC,Managed Growth and Communities,Highways & Transport Services,Balfour Beatty Living Places Ltd,09/08/2018,,425.46,Other Contracted Services,"391400 - Works - Construction, Repair & Maintenance"
Solihull MBC,Managed Growth and Communities,Highways & Transport Services,Balfour Beatty Living Places Ltd,09/08/2018,,453.86,Other Contracted Services,"391400 - Works - Construction, Repair & Maintenance"
Solihull MBC,Managed Growth and Communities,Highways & Transport Services,Balfour Beatty Living Places Ltd,09/08/2018,,1595.71,Other Contracted Services,"391400 - Works - Construction, Repair & Maintenance"
Solihull MBC,Managed Growth and Communities,Highways & Transport Services,Balfour Beatty Living Places Ltd,09/08/2018,,57.59,Other Contracted Services,"391400 - Works - Construction, Repair & Maintenance"
Solihull MBC,Managed Growth and Communities,Highways & Transport Services,Balfour Beatty Living Places Ltd,09/08/2018,,159.50,Other Contracted Services,"391400 - Works - Construction, Repair & Maintenance"
Solihull MBC,Managed Growth and Communities,Highways & Transport Services,Balfour Beatty Living Places Ltd,09/08/2018,,527.64,Other Contracted Services,"391400 - Works - Construction, Repair & Maintenance"
Solihull MBC,Managed Growth and Communities,Highways & Transport Services,Balfour Beatty Living Places Ltd,09/08/2018,,289.19,Other Contracted Services,"391400 - Works - Construction, Repair & Maintenance"
Solihull MBC,Managed Growth and Communities,Highways & Transport Services,Balfour Beatty Living Places Ltd,09/08/2018,,109.50,Other Contracted Services,"391400 - Works - Construction, Repair & Maintenance"
Solihull MBC,Managed Growth and Communities,Highways & Transport Services,Balfour Beatty Living Places Ltd,09/08/2018,,1618.26,Other Contracted Services,"391400 - Works - Construction, Repair & Maintenance"
Solihull MBC,Managed Growth and Communities,Highways & Transport Services,Balfour Beatty Living Places Ltd,09/08/2018,,57.59,Other Contracted Services,"391400 - Works - Construction, Repair & Maintenance"
Solihull MBC,Managed Growth and Communities,Highways & Transport Services,Balfour Beatty Living Places Ltd,09/08/2018,,361.84,Other Contracted Services,"391400 - Works - Construction, Repair & Maintenance"
Solihull MBC,Managed Growth and Communities,Highways & Transport Services,Balfour Beatty Living Places Ltd,09/08/2018,,72.78,Other Contracted Services,"391400 - Works - Construction, Repair & Maintenance"
Solihull MBC,Managed Growth and Communities,Highways & Transport Services,Balfour Beatty Living Places Ltd,09/08/2018,,72.78,Other Contracted Services,"391400 - Works - Construction, Repair & Maintenance"
Solihull MBC,Managed Growth and Communities,Highways & Transport Services,Balfour Beatty Living Places Ltd,09/08/2018,,72.78,Other Contracted Services,"391400 - Works - Construction, Repair & Maintenance"
Solihull MBC,Managed Growth and Communities,Highways & Transport Services,Balfour Beatty Living Places Ltd,09/08/2018,,94.80,Other Contracted Services,"391400 - Works - Construction, Repair & Maintenance"
Solihull MBC,Managed Growth and Communities,Highways & Transport Services,Balfour Beatty Living Places Ltd,09/08/2018,,94.80,Other Contracted Services,"391400 - Works - Construction, Repair & Maintenance"
Solihull MBC,Managed Growth and Communities,Highways & Transport Services,Balfour Beatty Living Places Ltd,09/08/2018,,268.70,Other Contracted Services,"391400 - Works - Construction, Repair & Maintenance"
Solihull MBC,Managed Growth and Communities,Highways & Transport Services,Balfour Beatty Living Places Ltd,09/08/2018,,15986.62,Other Contracted Services,"391400 - Works - Construction, Repair & Maintenance"
Solihull MBC,Managed Growth and Communities,Highways & Transport Services,Balfour Beatty Living Places Ltd,09/08/2018,,91.86,Other Contracted Services,"391400 - Works - Construction, Repair & Maintenance"
Solihull MBC,Managed Growth and Communities,Planning & Development Services,Balfour Beatty Living Places Ltd,09/08/2018,,4361.92,Other Contracted Services,"391400 - Works - Construction, Repair & Maintenance"
Solihull MBC,Managed Growth and Communities,Planning & Development Services,Balfour Beatty Living Places Ltd,09/08/2018,,6676.35,Other Contracted Services,"391400 - Works - Construction, Repair & Maintenance"
Solihull MBC,Managed Growth and Communities,Environmental and Regulatory Services,Balfour Beatty Living Places Ltd,09/08/2018,,7160.35,Other Contracted Services,"391400 - Works - Construction, Repair & Maintenance"
Solihull MBC,Managed Growth and Communities,Highways & Transport Services,Balfour Beatty Living Places Ltd,09/08/2018,,18640.89,Other Contracted Services,"391400 - Works - Construction, Repair & Maintenance"
Solihull MBC,Managed Growth and Communities,Highways & Transport Services,Balfour Beatty Living Places Ltd,09/08/2018,,4967.81,Other Contracted Services,"391400 - Works - Construction, Repair & Maintenance"
Solihull MBC,Managed Growth and Communities,Highways & Transport Services,Balfour Beatty Living Places Ltd,09/08/2018,,3726.94,Contractors,"391400 - Works - Construction, Repair & Maintenance"
Solihull MBC,Managed Growth and Communities,Highways & Transport Services,Balfour Beatty Living Places Ltd,09/08/2018,,218.34,Contractors,"391400 - Works - Construction, Repair & Maintenance"
Solihull MBC,Managed Growth and Communities,Highways & Transport Services,Balfour Beatty Living Places Ltd,09/08/2018,,72.78,Contractors,"391400 - Works - Construction, Repair & Maintenance"
Solihull MBC,Managed Growth and Communities,Highways & Transport Services,Balfour Beatty Living Places Ltd,09/08/2018,,72.78,Contractors,"391400 - Works - Construction, Repair & Maintenance"
Solihull MBC,Managed Growth and Communities,Highways & Transport Services,Balfour Beatty Living Places Ltd,09/08/2018,,72.78,Contractors,"391400 - Works - Construction, Repair & Maintenance"
